Workbook

Sheet AVISO LEGAL
J23: www.ree.es

Sheet Estructura mensual nacional
O1: 4
M4: Sistema eléctrico
M5: Horizonte temporal
M6: Periodo
C8: Ene. | D8: Feb. | E8: Mar. | F8: Abr. | G8: May. | H8: Jun. | I8: Jul. | J8: Ago. | K8: Sep. | L8: Oct. | M8: Nov. | N8: Dic. | O8: =OFFSET(Año!B19,($O$1-1),0) -> 2010
B10: Hidráulica | C10: =OFFSET(Estructura!C66,0,($O$1-1)*12) -> 19.8 | D10: =OFFSET(Estructura!D66,0,($O$1-1)*12) -> 16.9 | E10: =OFFSET(Estructura!E66,0,($O$1-1)*12) -> 23.1 | F10: =OFFSET(Estructura!F66,0,($O$1-1)*12) -> 21.3 | G10: =OFFSET(Estructura!G66,0,($O$1-1)*12) -> 17.2 | H10: =OFFSET(Estructura!H66,0,($O$1-1)*12) -> 15.6 | I10: =OFFSET(Estructura!I66,0,($O$1-1)*12) -> 11.2 | J10: =OFFSET(Estructura!J66,0,($O$1-1)*12) -> 8.5 | K10: =OFFSET(Estructura!K66,0,($O$1-1)*12) -> 6.6 | L10: =OFFSET(Estructura!L66,0,($O$1-1)*12) -> 6.8 | M10: =OFFSET(Estructura!M66,0,($O$1-1)*12) -> 10.8 | N10: =OFFSET(Estructura!N66,0,($O$1-1)*12) -> 15.6 | O10: =OFFSET(Estructura!C147,0,($O$1-1)) -> 14.5
B11: Turbinación bombeo | C11: =OFFSET(Estructura!C67,0,($O$1-1)*12) -> 2 | D11: =OFFSET(Estructura!D67,0,($O$1-1)*12) -> 1.6 | E11: =OFFSET(Estructura!E67,0,($O$1-1)*12) -> 1.5 | F11: =OFFSET(Estructura!F67,0,($O$1-1)*12) -> 1 | G11: =OFFSET(Estructura!G67,0,($O$1-1)*12) -> 0.9 | H11: =OFFSET(Estructura!H67,0,($O$1-1)*12) -> 0.7 | I11: =OFFSET(Estructura!I67,0,($O$1-1)*12) -> 0.5 | J11: =OFFSET(Estructura!J67,0,($O$1-1)*12) -> 0.7 | K11: =OFFSET(Estructura!K67,0,($O$1-1)*12) -> 0.7 | L11: =OFFSET(Estructura!L67,0,($O$1-1)*12) -> 1 | M11: =OFFSET(Estructura!M67,0,($O$1-1)*12) -> 0.9 | N11: =OFFSET(Estructura!N67,0,($O$1-1)*12) -> 1.3 | O11: =OFFSET(Estructura!C148,0,($O$1-1)) -> 1.1
B12: Nuclear | C12: =OFFSET(Estructura!C68,0,($O$1-1)*12) -> 17.2 | D12: =OFFSET(Estructura!D68,0,($O$1-1)*12) -> 19.2 | E12: =OFFSET(Estructura!E68,0,($O$1-1)*12) -> 19.4 | F12: =OFFSET(Estructura!F68,0,($O$1-1)*12) -> 22.1 | G12: =OFFSET(Estructura!G68,0,($O$1-1)*12) -> 19.7 | H12: =OFFSET(Estructura!H68,0,($O$1-1)*12) -> 20.7 | I12: =OFFSET(Estructura!I68,0,($O$1-1)*12) -> 21 | J12: =OFFSET(Estructura!J68,0,($O$1-1)*12) -> 22.7 | K12: =OFFSET(Estructura!K68,0,($O$1-1)*12) -> 21.8 | L12: =OFFSET(Estructura!L68,0,($O$1-1)*12) -> 23.2 | M12: =OFFSET(Estructura!M68,0,($O$1-1)*12) -> 21.1 | N12: =OFFSET(Estructura!N68,0,($O$1-1)*12) -> 19 | O12: =OFFSET(Estructura!C149,0,($O$1-1)) -> 20.5
B13: Carbón | C13: =OFFSET(Estructura!C69,0,($O$1-1)*12) -> 7.6 | D13: =OFFSET(Estructura!D69,0,($O$1-1)*12) -> 6.7 | E13: =OFFSET(Estructura!E69,0,($O$1-1)*12) -> 4.5 | F13: =OFFSET(Estructura!F69,0,($O$1-1)*12) -> 4.1 | G13: =OFFSET(Estructura!G69,0,($O$1-1)*12) -> 4.7 | H13: =OFFSET(Estructura!H69,0,($O$1-1)*12) -> 7 | I13: =OFFSET(Estructura!I69,0,($O$1-1)*12) -> 10.6 | J13: =OFFSET(Estructura!J69,0,($O$1-1)*12) -> 13.1 | K13: =OFFSET(Estructura!K69,0,($O$1-1)*12) -> 14 | L13: =OFFSET(Estructura!L69,0,($O$1-1)*12) -> 9.4 | M13: =OFFSET(Estructura!M69,0,($O$1-1)*12) -> 7.5 | N13: =OFFSET(Estructura!N69,0,($O$1-1)*12) -> 8.9 | O13: =OFFSET(Estructura!C150,0,($O$1-1)) -> 8.2
B14: Fuel + Gas (2) | C14: =OFFSET(Estructura!C70,0,($O$1-1)*12) -> 2.9 | D14: =OFFSET(Estructura!D70,0,($O$1-1)*12) -> 2.8 | E14: =OFFSET(Estructura!E70,0,($O$1-1)*12) -> 2.5 | F14: =OFFSET(Estructura!F70,0,($O$1-1)*12) -> 2.9 | G14: =OFFSET(Estructura!G70,0,($O$1-1)*12) -> 3.3 | H14: =OFFSET(Estructura!H70,0,($O$1-1)*12) -> 3.4 | I14: =OFFSET(Estructura!I70,0,($O$1-1)*12) -> 3.1 | J14: =OFFSET(Estructura!J70,0,($O$1-1)*12) -> 3.4 | K14: =OFFSET(Estructura!K70,0,($O$1-1)*12) -> 3.3 | L14: =OFFSET(Estructura!L70,0,($O$1-1)*12) -> 3.1 | M14: =OFFSET(Estructura!M70,0,($O$1-1)*12) -> 3.1 | N14: =OFFSET(Estructura!N70,0,($O$1-1)*12) -> 3 | O14: =OFFSET(Estructura!C151,0,($O$1-1)) -> 3.1
B15: Ciclo combinado (3) | C15: =OFFSET(Estructura!C71,0,($O$1-1)*12) -> 21.5 | D15: =OFFSET(Estructura!D71,0,($O$1-1)*12) -> 20.9 | E15: =OFFSET(Estructura!E71,0,($O$1-1)*12) -> 17.4 | F15: =OFFSET(Estructura!F71,0,($O$1-1)*12) -> 20.9 | G15: =OFFSET(Estructura!G71,0,($O$1-1)*12) -> 21.5 | H15: =OFFSET(Estructura!H71,0,($O$1-1)*12) -> 25.2 | I15: =OFFSET(Estructura!I71,0,($O$1-1)*12) -> 27.8 | J15: =OFFSET(Estructura!J71,0,($O$1-1)*12) -> 25.6 | K15: =OFFSET(Estructura!K71,0,($O$1-1)*12) -> 28.2 | L15: =OFFSET(Estructura!L71,0,($O$1-1)*12) -> 24.2 | M15: =OFFSET(Estructura!M71,0,($O$1-1)*12) -> 24.4 | N15: =OFFSET(Estructura!N71,0,($O$1-1)*12) -> 20.5 | O15: =OFFSET(Estructura!C152,0,($O$1-1)) -> 23.2
B16: Hidroeólica | C16: =OFFSET(Estructura!C72,0,($O$1-1)*12) -> - | D16: =OFFSET(Estructura!D72,0,($O$1-1)*12) -> - | E16: =OFFSET(Estructura!E72,0,($O$1-1)*12) -> - | F16: =OFFSET(Estructura!F72,0,($O$1-1)*12) -> - | G16: =OFFSET(Estructura!G72,0,($O$1-1)*12) -> - | H16: =OFFSET(Estructura!H72,0,($O$1-1)*12) -> - | I16: =OFFSET(Estructura!I72,0,($O$1-1)*12) -> - | J16: =OFFSET(Estructura!J72,0,($O$1-1)*12) -> - | K16: =OFFSET(Estructura!K72,0,($O$1-1)*12) -> - | L16: =OFFSET(Estructura!L72,0,($O$1-1)*12) -> - | M16: =OFFSET(Estructura!M72,0,($O$1-1)*12) -> - | N16: =OFFSET(Estructura!N72,0,($O$1-1)*12) -> - | O16: =OFFSET(Estructura!C153,0,($O$1-1)) -> 0
B17: Eólica | C17: =OFFSET(Estructura!C73,0,($O$1-1)*12) -> 16.5 | D17: =OFFSET(Estructura!D73,0,($O$1-1)*12) -> 19.2 | E17: =OFFSET(Estructura!E73,0,($O$1-1)*12) -> 18.2 | F17: =OFFSET(Estructura!F73,0,($O$1-1)*12) -> 12.1 | G17: =OFFSET(Estructura!G73,0,($O$1-1)*12) -> 16.3 | H17: =OFFSET(Estructura!H73,0,($O$1-1)*12) -> 11.5 | I17: =OFFSET(Estructura!I73,0,($O$1-1)*12) -> 11 | J17: =OFFSET(Estructura!J73,0,($O$1-1)*12) -> 12.3 | K17: =OFFSET(Estructura!K73,0,($O$1-1)*12) -> 10.1 | L17: =OFFSET(Estructura!L73,0,($O$1-1)*12) -> 17 | M17: =OFFSET(Estructura!M73,0,($O$1-1)*12) -> 18.1 | N17: =OFFSET(Estructura!N73,0,($O$1-1)*12) -> 18.3 | O17: =OFFSET(Estructura!C154,0,($O$1-1)) -> 15.1
B18: Solar fotovoltaica | C18: =OFFSET(Estructura!C74,0,($O$1-1)*12) -> 1 | D18: =OFFSET(Estructura!D74,0,($O$1-1)*12) -> 1.3 | E18: =OFFSET(Estructura!E74,0,($O$1-1)*12) -> 1.9 | F18: =OFFSET(Estructura!F74,0,($O$1-1)*12) -> 2.7 | G18: =OFFSET(Estructura!G74,0,($O$1-1)*12) -> 3.2 | H18: =OFFSET(Estructura!H74,0,($O$1-1)*12) -> 3 | I18: =OFFSET(Estructura!I74,0,($O$1-1)*12) -> 3 | J18: =OFFSET(Estructura!J74,0,($O$1-1)*12) -> 3 | K18: =OFFSET(Estructura!K74,0,($O$1-1)*12) -> 2.7 | L18: =OFFSET(Estructura!L74,0,($O$1-1)*12) -> 2.3 | M18: =OFFSET(Estructura!M74,0,($O$1-1)*12) -> 1.6 | N18: =OFFSET(Estructura!N74,0,($O$1-1)*12) -> 1.2 | O18: =OFFSET(Estructura!C155,0,($O$1-1)) -> 2.2
B19: Solar térmica | C19: =OFFSET(Estructura!C75,0,($O$1-1)*12) -> 0.1 | D19: =OFFSET(Estructura!D75,0,($O$1-1)*12) -> 0 | E19: =OFFSET(Estructura!E75,0,($O$1-1)*12) -> 0.1 | F19: =OFFSET(Estructura!F75,0,($O$1-1)*12) -> 0.2 | G19: =OFFSET(Estructura!G75,0,($O$1-1)*12) -> 0.3 | H19: =OFFSET(Estructura!H75,0,($O$1-1)*12) -> 0.3 | I19: =OFFSET(Estructura!I75,0,($O$1-1)*12) -> 0.4 | J19: =OFFSET(Estructura!J75,0,($O$1-1)*12) -> 0.5 | K19: =OFFSET(Estructura!K75,0,($O$1-1)*12) -> 0.4 | L19: =OFFSET(Estructura!L75,0,($O$1-1)*12) -> 0.3 | M19: =OFFSET(Estructura!M75,0,($O$1-1)*12) -> 0.1 | N19: =OFFSET(Estructura!N75,0,($O$1-1)*12) -> 0.1 | O19: =OFFSET(Estructura!C156,0,($O$1-1)) -> 0.2
B20: Térmica renovable (4)/Otras renovables (5) | C20: =OFFSET(Estructura!C76,0,($O$1-1)*12) -> 1.1 | D20: =OFFSET(Estructura!D76,0,($O$1-1)*12) -> 1 | E20: =OFFSET(Estructura!E76,0,($O$1-1)*12) -> 1 | F20: =OFFSET(Estructura!F76,0,($O$1-1)*12) -> 1.3 | G20: =OFFSET(Estructura!G76,0,($O$1-1)*12) -> 1.3 | H20: =OFFSET(Estructura!H76,0,($O$1-1)*12) -> 1.3 | I20: =OFFSET(Estructura!I76,0,($O$1-1)*12) -> 1.1 | J20: =OFFSET(Estructura!J76,0,($O$1-1)*12) -> 1.2 | K20: =OFFSET(Estructura!K76,0,($O$1-1)*12) -> 1.2 | L20: =OFFSET(Estructura!L76,0,($O$1-1)*12) -> 1.2 | M20: =OFFSET(Estructura!M76,0,($O$1-1)*12) -> 1.1 | N20: =OFFSET(Estructura!N76,0,($O$1-1)*12) -> 1.2 | O20: =OFFSET(Estructura!C157,0,($O$1-1)) -> 1.2
B21: Cogeneración y resto (4)/Cogeneración | C21: =OFFSET(Estructura!C77,0,($O$1-1)*12) -> 10.3 | D21: =OFFSET(Estructura!D77,0,($O$1-1)*12) -> 10.4 | E21: =OFFSET(Estructura!E77,0,($O$1-1)*12) -> 10.4 | F21: =OFFSET(Estructura!F77,0,($O$1-1)*12) -> 11.4 | G21: =OFFSET(Estructura!G77,0,($O$1-1)*12) -> 11.6 | H21: =OFFSET(Estructura!H77,0,($O$1-1)*12) -> 11.3 | I21: =OFFSET(Estructura!I77,0,($O$1-1)*12) -> 10.3 | J21: =OFFSET(Estructura!J77,0,($O$1-1)*12) -> 9 | K21: =OFFSET(Estructura!K77,0,($O$1-1)*12) -> 11 | L21: =OFFSET(Estructura!L77,0,($O$1-1)*12) -> 11.5 | M21: =OFFSET(Estructura!M77,0,($O$1-1)*12) -> 11.3 | N21: =OFFSET(Estructura!N77,0,($O$1-1)*12) -> 10.9 | O21: =OFFSET(Estructura!C158,0,($O$1-1)) -> 10.7
B22: Residuos no renovables (6) | C22: =OFFSET(Estructura!C78,0,($O$1-1)*12) -> - | D22: =OFFSET(Estructura!D78,0,($O$1-1)*12) -> - | E22: =OFFSET(Estructura!E78,0,($O$1-1)*12) -> - | F22: =OFFSET(Estructura!F78,0,($O$1-1)*12) -> - | G22: =OFFSET(Estructura!G78,0,($O$1-1)*12) -> - | H22: =OFFSET(Estructura!H78,0,($O$1-1)*12) -> - | I22: =OFFSET(Estructura!I78,0,($O$1-1)*12) -> - | J22: =OFFSET(Estructura!J78,0,($O$1-1)*12) -> - | K22: =OFFSET(Estructura!K78,0,($O$1-1)*12) -> - | L22: =OFFSET(Estructura!L78,0,($O$1-1)*12) -> - | M22: =OFFSET(Estructura!M78,0,($O$1-1)*12) -> - | N22: =OFFSET(Estructura!N78,0,($O$1-1)*12) -> - | O22: =OFFSET(Estructura!C159,0,($O$1-1)) -> -
B23: Residuos renovables (6) | C23: =OFFSET(Estructura!C79,0,($O$1-1)*12) -> - | D23: =OFFSET(Estructura!D79,0,($O$1-1)*12) -> - | E23: =OFFSET(Estructura!E79,0,($O$1-1)*12) -> - | F23: =OFFSET(Estructura!F79,0,($O$1-1)*12) -> - | G23: =OFFSET(Estructura!G79,0,($O$1-1)*12) -> - | H23: =OFFSET(Estructura!H79,0,($O$1-1)*12) -> - | I23: =OFFSET(Estructura!I79,0,($O$1-1)*12) -> - | J23: =OFFSET(Estructura!J79,0,($O$1-1)*12) -> - | K23: =OFFSET(Estructura!K79,0,($O$1-1)*12) -> - | L23: =OFFSET(Estructura!L79,0,($O$1-1)*12) -> - | M23: =OFFSET(Estructura!M79,0,($O$1-1)*12) -> - | N23: =OFFSET(Estructura!N79,0,($O$1-1)*12) -> - | O23: =OFFSET(Estructura!C160,0,($O$1-1)) -> -
B24: Generación renovable (7) | C24: =OFFSET(Estructura!C80,0,($O$1-1)*12) -> 38.5 | D24: =OFFSET(Estructura!D80,0,($O$1-1)*12) -> 38.4 | E24: =OFFSET(Estructura!E80,0,($O$1-1)*12) -> 44.3 | F24: =OFFSET(Estructura!F80,0,($O$1-1)*12) -> 37.6 | G24: =OFFSET(Estructura!G80,0,($O$1-1)*12) -> 38.3 | H24: =OFFSET(Estructura!H80,0,($O$1-1)*12) -> 31.7 | I24: =OFFSET(Estructura!I80,0,($O$1-1)*12) -> 26.7 | J24: =OFFSET(Estructura!J80,0,($O$1-1)*12) -> 25.5 | K24: =OFFSET(Estructura!K80,0,($O$1-1)*12) -> 21 | L24: =OFFSET(Estructura!L80,0,($O$1-1)*12) -> 27.6 | M24: =OFFSET(Estructura!M80,0,($O$1-1)*12) -> 31.7 | N24: =OFFSET(Estructura!N80,0,($O$1-1)*12) -> 36.4 | O24: =OFFSET(Estructura!C161,0,($O$1-1)) -> 33.2
B25: Generación no renovable | C25: =OFFSET(Estructura!C81,0,($O$1-1)*12) -> 61.5 | D25: =OFFSET(Estructura!D81,0,($O$1-1)*12) -> 61.6 | E25: =OFFSET(Estructura!E81,0,($O$1-1)*12) -> 55.7 | F25: =OFFSET(Estructura!F81,0,($O$1-1)*12) -> 62.4 | G25: =OFFSET(Estructura!G81,0,($O$1-1)*12) -> 61.7 | H25: =OFFSET(Estructura!H81,0,($O$1-1)*12) -> 68.3 | I25: =OFFSET(Estructura!I81,0,($O$1-1)*12) -> 73.3 | J25: =OFFSET(Estructura!J81,0,($O$1-1)*12) -> 74.5 | K25: =OFFSET(Estructura!K81,0,($O$1-1)*12) -> 79 | L25: =OFFSET(Estructura!L81,0,($O$1-1)*12) -> 72.4 | M25: =OFFSET(Estructura!M81,0,($O$1-1)*12) -> 68.3 | N25: =OFFSET(Estructura!N81,0,($O$1-1)*12) -> 63.6 | O25: =OFFSET(Estructura!C162,0,($O$1-1)) -> 66.8
B26: (1) Asignación de unidades de producción según combustible principal.
B27: (2) En el sistema eléctrico de Baleares y Canarias se incluye la generación con grupos auxiliares.
B28: (3) Incluye funcionamiento en ciclo abierto. En el sistema eléctrico de Canarias utiliza gasoil como combustible principal.
B29: (4) Incluye residuos hasta el 31/12/2010.
B30: (5) Otras renovables incluyen biogás, biomasa, hidráulica marina y geotérmica.
B31: (6) Generación incluida en otras renovables y cogeneración hasta el 31/12/2014.
B32: (7) Incluye hidráulica, hidroeólica, eólica, solar fotovoltaica, solar térmica y térmica renovable/otras renovables y residuos renovables. No incluye la turbinación bombeo.

Sheet Estructura anual nacional
I1: 1
G4: Sistema eléctrico
G5: Horizonte temporal
G6: Periodo
C8: =OFFSET(Estructura!C146,0,($I$1-1)*7) -> 2007 | D8: =OFFSET(Estructura!D146,0,($I$1-1)*7) -> 2008 | E8: =OFFSET(Estructura!E146,0,($I$1-1)*7) -> 2009 | F8: =OFFSET(Estructura!F146,0,($I$1-1)*7) -> 2010 | G8: =OFFSET(Estructura!G146,0,($I$1-1)*7) -> 2011 | H8: =OFFSET(Estructura!H146,0,($I$1-1)*7) -> 2012 | I8: =OFFSET(Estructura!I146,0,($I$1-1)*7) -> 2013
B10: Hidráulica | C10: =OFFSET(Estructura!C147,0,($I$1-1)*7) -> 9.4 | D10: =OFFSET(Estructura!D147,0,($I$1-1)*7) -> 7.8 | E10: =OFFSET(Estructura!E147,0,($I$1-1)*7) -> 9.4 | F10: =OFFSET(Estructura!F147,0,($I$1-1)*7) -> 14.5 | G10: =OFFSET(Estructura!G147,0,($I$1-1)*7) -> - | H10: =OFFSET(Estructura!H147,0,($I$1-1)*7) -> - | I10: =OFFSET(Estructura!I147,0,($I$1-1)*7) -> -
B11: Turbinación bombeo | C11: =OFFSET(Estructura!C148,0,($I$1-1)*7) -> 1.1 | D11: =OFFSET(Estructura!D148,0,($I$1-1)*7) -> 0.9 | E11: =OFFSET(Estructura!E148,0,($I$1-1)*7) -> 0.9 | F11: =OFFSET(Estructura!F148,0,($I$1-1)*7) -> 1.1 | G11: =OFFSET(Estructura!G148,0,($I$1-1)*7) -> - | H11: =OFFSET(Estructura!H148,0,($I$1-1)*7) -> - | I11: =OFFSET(Estructura!I148,0,($I$1-1)*7) -> -
B12: Nuclear | C12: =OFFSET(Estructura!C149,0,($I$1-1)*7) -> 18.3 | D12: =OFFSET(Estructura!D149,0,($I$1-1)*7) -> 19.1 | E12: =OFFSET(Estructura!E149,0,($I$1-1)*7) -> 18 | F12: =OFFSET(Estructura!F149,0,($I$1-1)*7) -> 20.5 | G12: =OFFSET(Estructura!G149,0,($I$1-1)*7) -> - | H12: =OFFSET(Estructura!H149,0,($I$1-1)*7) -> - | I12: =OFFSET(Estructura!I149,0,($I$1-1)*7) -> -
B13: Carbón | C13: =OFFSET(Estructura!C150,0,($I$1-1)*7) -> 24.5 | D13: =OFFSET(Estructura!D150,0,($I$1-1)*7) -> 15.7 | E13: =OFFSET(Estructura!E150,0,($I$1-1)*7) -> 12.4 | F13: =OFFSET(Estructura!F150,0,($I$1-1)*7) -> 8.2 | G13: =OFFSET(Estructura!G150,0,($I$1-1)*7) -> - | H13: =OFFSET(Estructura!H150,0,($I$1-1)*7) -> - | I13: =OFFSET(Estructura!I150,0,($I$1-1)*7) -> -
B14: Fuel + Gas (2) | C14: =OFFSET(Estructura!C151,0,($I$1-1)*7) -> 3.5 | D14: =OFFSET(Estructura!D151,0,($I$1-1)*7) -> 3.3 | E14: =OFFSET(Estructura!E151,0,($I$1-1)*7) -> 3.3 | F14: =OFFSET(Estructura!F151,0,($I$1-1)*7) -> 3.1 | G14: =OFFSET(Estructura!G151,0,($I$1-1)*7) -> - | H14: =OFFSET(Estructura!H151,0,($I$1-1)*7) -> - | I14: =OFFSET(Estructura!I151,0,($I$1-1)*7) -> -
B15: Ciclo combinado (3) | C15: =OFFSET(Estructura!C152,0,($I$1-1)*7) -> 24.5 | D15: =OFFSET(Estructura!D152,0,($I$1-1)*7) -> 31.5 | E15: =OFFSET(Estructura!E152,0,($I$1-1)*7) -> 28.6 | F15: =OFFSET(Estructura!F152,0,($I$1-1)*7) -> 23.2 | G15: =OFFSET(Estructura!G152,0,($I$1-1)*7) -> - | H15: =OFFSET(Estructura!H152,0,($I$1-1)*7) -> - | I15: =OFFSET(Estructura!I152,0,($I$1-1)*7) -> -
B16: Hidroeólica | C16: =OFFSET(Estructura!C153,0,($I$1-1)*7) -> 0 | D16: =OFFSET(Estructura!D153,0,($I$1-1)*7) -> 0 | E16: =OFFSET(Estructura!E153,0,($I$1-1)*7) -> 0 | F16: =OFFSET(Estructura!F153,0,($I$1-1)*7) -> 0 | G16: =OFFSET(Estructura!G153,0,($I$1-1)*7) -> - | H16: =OFFSET(Estructura!H153,0,($I$1-1)*7) -> - | I16: =OFFSET(Estructura!I153,0,($I$1-1)*7) -> -
B17: Eólica | C17: =OFFSET(Estructura!C154,0,($I$1-1)*7) -> 9.6 | D17: =OFFSET(Estructura!D154,0,($I$1-1)*7) -> 10.9 | E17: =OFFSET(Estructura!E154,0,($I$1-1)*7) -> 13.7 | F17: =OFFSET(Estructura!F154,0,($I$1-1)*7) -> 15.1 | G17: =OFFSET(Estructura!G154,0,($I$1-1)*7) -> - | H17: =OFFSET(Estructura!H154,0,($I$1-1)*7) -> - | I17: =OFFSET(Estructura!I154,0,($I$1-1)*7) -> -
B18: Solar fotovoltaica | C18: =OFFSET(Estructura!C155,0,($I$1-1)*7) -> 0.2 | D18: =OFFSET(Estructura!D155,0,($I$1-1)*7) -> 0.8 | E18: =OFFSET(Estructura!E155,0,($I$1-1)*7) -> 2.2 | F18: =OFFSET(Estructura!F155,0,($I$1-1)*7) -> 2.2 | G18: =OFFSET(Estructura!G155,0,($I$1-1)*7) -> - | H18: =OFFSET(Estructura!H155,0,($I$1-1)*7) -> - | I18: =OFFSET(Estructura!I155,0,($I$1-1)*7) -> -
B19: Solar térmica | C19: =OFFSET(Estructura!C156,0,($I$1-1)*7) -> 0 | D19: =OFFSET(Estructura!D156,0,($I$1-1)*7) -> 0 | E19: =OFFSET(Estructura!E156,0,($I$1-1)*7) -> 0 | F19: =OFFSET(Estructura!F156,0,($I$1-1)*7) -> 0.2 | G19: =OFFSET(Estructura!G156,0,($I$1-1)*7) -> - | H19: =OFFSET(Estructura!H156,0,($I$1-1)*7) -> - | I19: =OFFSET(Estructura!I156,0,($I$1-1)*7) -> -
B20: Térmica renovable (4)/Otras renovables (5) | C20: =OFFSET(Estructura!C157,0,($I$1-1)*7) -> 0.9 | D20: =OFFSET(Estructura!D157,0,($I$1-1)*7) -> 1 | E20: =OFFSET(Estructura!E157,0,($I$1-1)*7) -> 1.2 | F20: =OFFSET(Estructura!F157,0,($I$1-1)*7) -> 1.2 | G20: =OFFSET(Estructura!G157,0,($I$1-1)*7) -> - | H20: =OFFSET(Estructura!H157,0,($I$1-1)*7) -> - | I20: =OFFSET(Estructura!I157,0,($I$1-1)*7) -> -
B21: Cogeneración y resto (4)/Cogeneración | C21: =OFFSET(Estructura!C158,0,($I$1-1)*7) -> 8 | D21: =OFFSET(Estructura!D158,0,($I$1-1)*7) -> 9 | E21: =OFFSET(Estructura!E158,0,($I$1-1)*7) -> 10.3 | F21: =OFFSET(Estructura!F158,0,($I$1-1)*7) -> 10.7 | G21: =OFFSET(Estructura!G158,0,($I$1-1)*7) -> - | H21: =OFFSET(Estructura!H158,0,($I$1-1)*7) -> - | I21: =OFFSET(Estructura!I158,0,($I$1-1)*7) -> -
B22: Residuos no renovables (6) | C22: =OFFSET(Estructura!C159,0,($I$1-1)*7) -> - | D22: =OFFSET(Estructura!D159,0,($I$1-1)*7) -> - | E22: =OFFSET(Estructura!E159,0,($I$1-1)*7) -> - | F22: =OFFSET(Estructura!F159,0,($I$1-1)*7) -> - | G22: =OFFSET(Estructura!G159,0,($I$1-1)*7) -> - | H22: =OFFSET(Estructura!H159,0,($I$1-1)*7) -> - | I22: =OFFSET(Estructura!I159,0,($I$1-1)*7) -> -
B23: Residuos renovables (6) | C23: =OFFSET(Estructura!C160,0,($I$1-1)*7) -> - | D23: =OFFSET(Estructura!D160,0,($I$1-1)*7) -> - | E23: =OFFSET(Estructura!E160,0,($I$1-1)*7) -> - | F23: =OFFSET(Estructura!F160,0,($I$1-1)*7) -> - | G23: =OFFSET(Estructura!G160,0,($I$1-1)*7) -> - | H23: =OFFSET(Estructura!H160,0,($I$1-1)*7) -> - | I23: =OFFSET(Estructura!I160,0,($I$1-1)*7) -> -
B24: Generación renovable (7) | C24: =OFFSET(Estructura!C161,0,($I$1-1)*7) -> 20.1 | D24: =OFFSET(Estructura!D161,0,($I$1-1)*7) -> 20.5 | E24: =OFFSET(Estructura!E161,0,($I$1-1)*7) -> 26.5 | F24: =OFFSET(Estructura!F161,0,($I$1-1)*7) -> 33.2 | G24: =OFFSET(Estructura!G161,0,($I$1-1)*7) -> - | H24: =OFFSET(Estructura!H161,0,($I$1-1)*7) -> - | I24: =OFFSET(Estructura!I161,0,($I$1-1)*7) -> -
B25: Generación no renovable | C25: =OFFSET(Estructura!C162,0,($I$1-1)*7) -> 79.9 | D25: =OFFSET(Estructura!D162,0,($I$1-1)*7) -> 79.5 | E25: =OFFSET(Estructura!E162,0,($I$1-1)*7) -> 73.5 | F25: =OFFSET(Estructura!F162,0,($I$1-1)*7) -> 66.8 | G25: =OFFSET(Estructura!G162,0,($I$1-1)*7) -> - | H25: =OFFSET(Estructura!H162,0,($I$1-1)*7) -> - | I25: =OFFSET(Estructura!I162,0,($I$1-1)*7) -> -
B26: (1) Asignación de unidades de producción según combustible principal.
B27: (2) En el sistema eléctrico de Baleares y Canarias se incluye la generación con grupos auxiliares.
B28: (3) Incluye funcionamiento en ciclo abierto. En el sistema eléctrico de Canarias utiliza gasoil como combustible principal.
B29: (4) Incluye residuos hasta el 31/12/2010.
B30: (5) Otras renovables incluyen biogás, biomasa, hidráulica marina y geotérmica.
B31: (6) Generación incluida en otras renovables y cogeneración hasta el 31/12/2014.
B32: (7) Incluye hidráulica, hidroeólica, eólica, solar fotovoltaica, solar térmica y térmica renovable/otras renovables y residuos renovables. No incluye la turbinación bombeo.
B33: =IF(I1<2,"",IF(MONTH(FACT)=1,"",CONCATENATE(" Para el año ",YEAR(FACT)," valores acumulados hasta ",TEXT(FACT-30,"mmmm")," de ",YEAR(FACT),"."))) -> 

Sheet Estructura mensual Peninsular
O1: 21
M4: Sistema eléctrico
M5: Horizonte temporal
M6: Periodo
C8: Ene. | D8: Feb. | E8: Mar. | F8: Abr. | G8: May. | H8: Jun. | I8: Jul. | J8: Ago. | K8: Sep. | L8: Oct. | M8: Nov. | N8: Dic. | O8: =OFFSET(Año!B2,($O$1-1),0) -> 2010
B10: Hidráulica | C10: =OFFSET(Estructura!C3,0,($O$1-1)*12) -> 20.9 | D10: =OFFSET(Estructura!D3,0,($O$1-1)*12) -> 17.7 | E10: =OFFSET(Estructura!E3,0,($O$1-1)*12) -> 24.3 | F10: =OFFSET(Estructura!F3,0,($O$1-1)*12) -> 22.5 | G10: =OFFSET(Estructura!G3,0,($O$1-1)*12) -> 18.2 | H10: =OFFSET(Estructura!H3,0,($O$1-1)*12) -> 16.5 | I10: =OFFSET(Estructura!I3,0,($O$1-1)*12) -> 11.9 | J10: =OFFSET(Estructura!J3,0,($O$1-1)*12) -> 9.1 | K10: =OFFSET(Estructura!K3,0,($O$1-1)*12) -> 7 | L10: =OFFSET(Estructura!L3,0,($O$1-1)*12) -> 7.2 | M10: =OFFSET(Estructura!M3,0,($O$1-1)*12) -> 11.4 | N10: =OFFSET(Estructura!N3,0,($O$1-1)*12) -> 16.4 | O10: =OFFSET(Estructura!C84,0,($O$1-1)) -> 15.3
B11: Turbinación bombeo | C11: =OFFSET(Estructura!C4,0,($O$1-1)*12) -> 2.1 | D11: =OFFSET(Estructura!D4,0,($O$1-1)*12) -> 1.7 | E11: =OFFSET(Estructura!E4,0,($O$1-1)*12) -> 1.6 | F11: =OFFSET(Estructura!F4,0,($O$1-1)*12) -> 1 | G11: =OFFSET(Estructura!G4,0,($O$1-1)*12) -> 0.9 | H11: =OFFSET(Estructura!H4,0,($O$1-1)*12) -> 0.7 | I11: =OFFSET(Estructura!I4,0,($O$1-1)*12) -> 0.6 | J11: =OFFSET(Estructura!J4,0,($O$1-1)*12) -> 0.7 | K11: =OFFSET(Estructura!K4,0,($O$1-1)*12) -> 0.7 | L11: =OFFSET(Estructura!L4,0,($O$1-1)*12) -> 1.1 | M11: =OFFSET(Estructura!M4,0,($O$1-1)*12) -> 1 | N11: =OFFSET(Estructura!N4,0,($O$1-1)*12) -> 1.3 | O11: =OFFSET(Estructura!C85,0,($O$1-1)) -> 1.1
B12: Nuclear | C12: =OFFSET(Estructura!C5,0,($O$1-1)*12) -> 18.1 | D12: =OFFSET(Estructura!D5,0,($O$1-1)*12) -> 20.2 | E12: =OFFSET(Estructura!E5,0,($O$1-1)*12) -> 20.4 | F12: =OFFSET(Estructura!F5,0,($O$1-1)*12) -> 23.3 | G12: =OFFSET(Estructura!G5,0,($O$1-1)*12) -> 20.8 | H12: =OFFSET(Estructura!H5,0,($O$1-1)*12) -> 21.8 | I12: =OFFSET(Estructura!I5,0,($O$1-1)*12) -> 22.2 | J12: =OFFSET(Estructura!J5,0,($O$1-1)*12) -> 24.2 | K12: =OFFSET(Estructura!K5,0,($O$1-1)*12) -> 23.1 | L12: =OFFSET(Estructura!L5,0,($O$1-1)*12) -> 24.5 | M12: =OFFSET(Estructura!M5,0,($O$1-1)*12) -> 22.2 | N12: =OFFSET(Estructura!N5,0,($O$1-1)*12) -> 20 | O12: =OFFSET(Estructura!C86,0,($O$1-1)) -> 21.7
B13: Carbón | C13: =OFFSET(Estructura!C6,0,($O$1-1)*12) -> 6.8 | D13: =OFFSET(Estructura!D6,0,($O$1-1)*12) -> 6 | E13: =OFFSET(Estructura!E6,0,($O$1-1)*12) -> 3.5 | F13: =OFFSET(Estructura!F6,0,($O$1-1)*12) -> 3 | G13: =OFFSET(Estructura!G6,0,($O$1-1)*12) -> 3.9 | H13: =OFFSET(Estructura!H6,0,($O$1-1)*12) -> 6.2 | I13: =OFFSET(Estructura!I6,0,($O$1-1)*12) -> 10.1 | J13: =OFFSET(Estructura!J6,0,($O$1-1)*12) -> 12.6 | K13: =OFFSET(Estructura!K6,0,($O$1-1)*12) -> 13.6 | L13: =OFFSET(Estructura!L6,0,($O$1-1)*12) -> 9 | M13: =OFFSET(Estructura!M6,0,($O$1-1)*12) -> 7.1 | N13: =OFFSET(Estructura!N6,0,($O$1-1)*12) -> 8.4 | O13: =OFFSET(Estructura!C87,0,($O$1-1)) -> 7.5
B14: Fuel + Gas | C14: =OFFSET(Estructura!C7,0,($O$1-1)*12) -> 0.6 | D14: =OFFSET(Estructura!D7,0,($O$1-1)*12) -> 0.6 | E14: =OFFSET(Estructura!E7,0,($O$1-1)*12) -> 0.1 | F14: =OFFSET(Estructura!F7,0,($O$1-1)*12) -> 0.5 | G14: =OFFSET(Estructura!G7,0,($O$1-1)*12) -> 0.8 | H14: =OFFSET(Estructura!H7,0,($O$1-1)*12) -> 0.8 | I14: =OFFSET(Estructura!I7,0,($O$1-1)*12) -> 0.6 | J14: =OFFSET(Estructura!J7,0,($O$1-1)*12) -> 0.5 | K14: =OFFSET(Estructura!K7,0,($O$1-1)*12) -> 0.6 | L14: =OFFSET(Estructura!L7,0,($O$1-1)*12) -> 0.6 | M14: =OFFSET(Estructura!M7,0,($O$1-1)*12) -> 0.7 | N14: =OFFSET(Estructura!N7,0,($O$1-1)*12) -> 0.6 | O14: =OFFSET(Estructura!C88,0,($O$1-1)) -> 0.6
B15: Ciclo combinado (2) | C15: =OFFSET(Estructura!C8,0,($O$1-1)*12) -> 21.4 | D15: =OFFSET(Estructura!D8,0,($O$1-1)*12) -> 20.7 | E15: =OFFSET(Estructura!E8,0,($O$1-1)*12) -> 17.1 | F15: =OFFSET(Estructura!F8,0,($O$1-1)*12) -> 20.8 | G15: =OFFSET(Estructura!G8,0,($O$1-1)*12) -> 21.4 | H15: =OFFSET(Estructura!H8,0,($O$1-1)*12) -> 25.5 | I15: =OFFSET(Estructura!I8,0,($O$1-1)*12) -> 27.9 | J15: =OFFSET(Estructura!J8,0,($O$1-1)*12) -> 25.6 | K15: =OFFSET(Estructura!K8,0,($O$1-1)*12) -> 28.5 | L15: =OFFSET(Estructura!L8,0,($O$1-1)*12) -> 23.8 | M15: =OFFSET(Estructura!M8,0,($O$1-1)*12) -> 24.1 | N15: =OFFSET(Estructura!N8,0,($O$1-1)*12) -> 20.1 | O15: =OFFSET(Estructura!C89,0,($O$1-1)) -> 23
B16: Eólica | C16: =OFFSET(Estructura!C9,0,($O$1-1)*12) -> 17.3 | D16: =OFFSET(Estructura!D9,0,($O$1-1)*12) -> 20.1 | E16: =OFFSET(Estructura!E9,0,($O$1-1)*12) -> 19 | F16: =OFFSET(Estructura!F9,0,($O$1-1)*12) -> 12.6 | G16: =OFFSET(Estructura!G9,0,($O$1-1)*12) -> 17 | H16: =OFFSET(Estructura!H9,0,($O$1-1)*12) -> 12 | I16: =OFFSET(Estructura!I9,0,($O$1-1)*12) -> 11.5 | J16: =OFFSET(Estructura!J9,0,($O$1-1)*12) -> 12.9 | K16: =OFFSET(Estructura!K9,0,($O$1-1)*12) -> 10.5 | L16: =OFFSET(Estructura!L9,0,($O$1-1)*12) -> 17.9 | M16: =OFFSET(Estructura!M9,0,($O$1-1)*12) -> 19 | N16: =OFFSET(Estructura!N9,0,($O$1-1)*12) -> 19.1 | O16: =OFFSET(Estructura!C90,0,($O$1-1)) -> 15.8
B17: Solar fotovoltaica | C17: =OFFSET(Estructura!C10,0,($O$1-1)*12) -> 1 | D17: =OFFSET(Estructura!D10,0,($O$1-1)*12) -> 1.3 | E17: =OFFSET(Estructura!E10,0,($O$1-1)*12) -> 1.9 | F17: =OFFSET(Estructura!F10,0,($O$1-1)*12) -> 2.7 | G17: =OFFSET(Estructura!G10,0,($O$1-1)*12) -> 3.2 | H17: =OFFSET(Estructura!H10,0,($O$1-1)*12) -> 3.1 | I17: =OFFSET(Estructura!I10,0,($O$1-1)*12) -> 3.1 | J17: =OFFSET(Estructura!J10,0,($O$1-1)*12) -> 3.1 | K17: =OFFSET(Estructura!K10,0,($O$1-1)*12) -> 2.8 | L17: =OFFSET(Estructura!L10,0,($O$1-1)*12) -> 2.4 | M17: =OFFSET(Estructura!M10,0,($O$1-1)*12) -> 1.6 | N17: =OFFSET(Estructura!N10,0,($O$1-1)*12) -> 1.2 | O17: =OFFSET(Estructura!C91,0,($O$1-1)) -> 2.2
B18: Solar térmica | C18: =OFFSET(Estructura!C11,0,($O$1-1)*12) -> 0.1 | D18: =OFFSET(Estructura!D11,0,($O$1-1)*12) -> 0.1 | E18: =OFFSET(Estructura!E11,0,($O$1-1)*12) -> 0.1 | F18: =OFFSET(Estructura!F11,0,($O$1-1)*12) -> 0.2 | G18: =OFFSET(Estructura!G11,0,($O$1-1)*12) -> 0.3 | H18: =OFFSET(Estructura!H11,0,($O$1-1)*12) -> 0.3 | I18: =OFFSET(Estructura!I11,0,($O$1-1)*12) -> 0.4 | J18: =OFFSET(Estructura!J11,0,($O$1-1)*12) -> 0.5 | K18: =OFFSET(Estructura!K11,0,($O$1-1)*12) -> 0.5 | L18: =OFFSET(Estructura!L11,0,($O$1-1)*12) -> 0.3 | M18: =OFFSET(Estructura!M11,0,($O$1-1)*12) -> 0.1 | N18: =OFFSET(Estructura!N11,0,($O$1-1)*12) -> 0.1 | O18: =OFFSET(Estructura!C92,0,($O$1-1)) -> 0.3
B19: Térmica renovable (3)/Otras renovables (4) | C19: =OFFSET(Estructura!C12,0,($O$1-1)*12) -> 1 | D19: =OFFSET(Estructura!D12,0,($O$1-1)*12) -> 1 | E19: =OFFSET(Estructura!E12,0,($O$1-1)*12) -> 1 | F19: =OFFSET(Estructura!F12,0,($O$1-1)*12) -> 1.2 | G19: =OFFSET(Estructura!G12,0,($O$1-1)*12) -> 1.3 | H19: =OFFSET(Estructura!H12,0,($O$1-1)*12) -> 1.3 | I19: =OFFSET(Estructura!I12,0,($O$1-1)*12) -> 1.1 | J19: =OFFSET(Estructura!J12,0,($O$1-1)*12) -> 1.2 | K19: =OFFSET(Estructura!K12,0,($O$1-1)*12) -> 1.2 | L19: =OFFSET(Estructura!L12,0,($O$1-1)*12) -> 1.3 | M19: =OFFSET(Estructura!M12,0,($O$1-1)*12) -> 1.2 | N19: =OFFSET(Estructura!N12,0,($O$1-1)*12) -> 1.2 | O19: =OFFSET(Estructura!C93,0,($O$1-1)) -> 1.2
B20: Cogeneración y resto (3)/Cogeneración | C20: =OFFSET(Estructura!C13,0,($O$1-1)*12) -> 10.7 | D20: =OFFSET(Estructura!D13,0,($O$1-1)*12) -> 10.6 | E20: =OFFSET(Estructura!E13,0,($O$1-1)*12) -> 11 | F20: =OFFSET(Estructura!F13,0,($O$1-1)*12) -> 12.2 | G20: =OFFSET(Estructura!G13,0,($O$1-1)*12) -> 12.2 | H20: =OFFSET(Estructura!H13,0,($O$1-1)*12) -> 11.8 | I20: =OFFSET(Estructura!I13,0,($O$1-1)*12) -> 10.6 | J20: =OFFSET(Estructura!J13,0,($O$1-1)*12) -> 9.6 | K20: =OFFSET(Estructura!K13,0,($O$1-1)*12) -> 11.5 | L20: =OFFSET(Estructura!L13,0,($O$1-1)*12) -> 11.9 | M20: =OFFSET(Estructura!M13,0,($O$1-1)*12) -> 11.6 | N20: =OFFSET(Estructura!N13,0,($O$1-1)*12) -> 11.6 | O20: =OFFSET(Estructura!C94,0,($O$1-1)) -> 11.3
B21: Residuos no renovables (5) | C21: =OFFSET(Estructura!C14,0,($O$1-1)*12) -> - | D21: =OFFSET(Estructura!D14,0,($O$1-1)*12) -> - | E21: =OFFSET(Estructura!E14,0,($O$1-1)*12) -> - | F21: =OFFSET(Estructura!F14,0,($O$1-1)*12) -> - | G21: =OFFSET(Estructura!G14,0,($O$1-1)*12) -> - | H21: =OFFSET(Estructura!H14,0,($O$1-1)*12) -> - | I21: =OFFSET(Estructura!I14,0,($O$1-1)*12) -> - | J21: =OFFSET(Estructura!J14,0,($O$1-1)*12) -> - | K21: =OFFSET(Estructura!K14,0,($O$1-1)*12) -> - | L21: =OFFSET(Estructura!L14,0,($O$1-1)*12) -> - | M21: =OFFSET(Estructura!M14,0,($O$1-1)*12) -> - | N21: =OFFSET(Estructura!N14,0,($O$1-1)*12) -> - | O21: =OFFSET(Estructura!C95,0,($O$1-1)) -> -
B22: Residuos renovables (5) | C22: =OFFSET(Estructura!C15,0,($O$1-1)*12) -> - | D22: =OFFSET(Estructura!D15,0,($O$1-1)*12) -> - | E22: =OFFSET(Estructura!E15,0,($O$1-1)*12) -> - | F22: =OFFSET(Estructura!F15,0,($O$1-1)*12) -> - | G22: =OFFSET(Estructura!G15,0,($O$1-1)*12) -> - | H22: =OFFSET(Estructura!H15,0,($O$1-1)*12) -> - | I22: =OFFSET(Estructura!I15,0,($O$1-1)*12) -> - | J22: =OFFSET(Estructura!J15,0,($O$1-1)*12) -> - | K22: =OFFSET(Estructura!K15,0,($O$1-1)*12) -> - | L22: =OFFSET(Estructura!L15,0,($O$1-1)*12) -> - | M22: =OFFSET(Estructura!M15,0,($O$1-1)*12) -> - | N22: =OFFSET(Estructura!N15,0,($O$1-1)*12) -> - | O22: =OFFSET(Estructura!C96,0,($O$1-1)) -> -
B23: Generación renovable (6) | C23: =OFFSET(Estructura!C16,0,($O$1-1)*12) -> 40.3 | D23: =OFFSET(Estructura!D16,0,($O$1-1)*12) -> 40.2 | E23: =OFFSET(Estructura!E16,0,($O$1-1)*12) -> 46.3 | F23: =OFFSET(Estructura!F16,0,($O$1-1)*12) -> 39.2 | G23: =OFFSET(Estructura!G16,0,($O$1-1)*12) -> 40 | H23: =OFFSET(Estructura!H16,0,($O$1-1)*12) -> 33.2 | I23: =OFFSET(Estructura!I16,0,($O$1-1)*12) -> 28 | J23: =OFFSET(Estructura!J16,0,($O$1-1)*12) -> 26.8 | K23: =OFFSET(Estructura!K16,0,($O$1-1)*12) -> 22 | L23: =OFFSET(Estructura!L16,0,($O$1-1)*12) -> 29.1 | M23: =OFFSET(Estructura!M16,0,($O$1-1)*12) -> 33.3 | N23: =OFFSET(Estructura!N16,0,($O$1-1)*12) -> 38 | O23: =OFFSET(Estructura!C97,0,($O$1-1)) -> 34.8
B24: Generación no renovable | C24: =OFFSET(Estructura!C17,0,($O$1-1)*12) -> 59.7 | D24: =OFFSET(Estructura!D17,0,($O$1-1)*12) -> 59.8 | E24: =OFFSET(Estructura!E17,0,($O$1-1)*12) -> 53.7 | F24: =OFFSET(Estructura!F17,0,($O$1-1)*12) -> 60.8 | G24: =OFFSET(Estructura!G17,0,($O$1-1)*12) -> 60 | H24: =OFFSET(Estructura!H17,0,($O$1-1)*12) -> 66.8 | I24: =OFFSET(Estructura!I17,0,($O$1-1)*12) -> 72 | J24: =OFFSET(Estructura!J17,0,($O$1-1)*12) -> 73.2 | K24: =OFFSET(Estructura!K17,0,($O$1-1)*12) -> 78 | L24: =OFFSET(Estructura!L17,0,($O$1-1)*12) -> 70.9 | M24: =OFFSET(Estructura!M17,0,($O$1-1)*12) -> 66.7 | N24: =OFFSET(Estructura!N17,0,($O$1-1)*12) -> 62 | O24: =OFFSET(Estructura!C98,0,($O$1-1)) -> 65.2
B25: (1) Asignación de unidades de producción según combustible principal.
B26: (2) Incluye funcionamiento en ciclo abierto.
B27: (3) Incluye residuos hasta el 31/12/2010.
B28: (4) Otras renovables incluyen biogás, biomasa, hidráulica marina y geotérmica.
B29: (5) Generación incluida en otras renovables y cogeneración hasta el 31/12/2014.
B30: (6) Incluye hidráulica, eólica, solar fotovoltaica, solar térmica y térmica renovable/otras renovables y residuos renovables. No incluye la turbinación bombeo.

Sheet Estructura anual Peninsular
J1: 3
H4: Sistema eléctrico
H5: Horizonte temporal
H6: Periodo
C8: =OFFSET(Estructura!C83,0,($J$1-1)*8) -> 2006 | D8: =OFFSET(Estructura!D83,0,($J$1-1)*8) -> 2007 | E8: =OFFSET(Estructura!E83,0,($J$1-1)*8) -> 2008 | F8: =OFFSET(Estructura!F83,0,($J$1-1)*8) -> 2009 | G8: =OFFSET(Estructura!G83,0,($J$1-1)*8) -> 2010 | H8: =OFFSET(Estructura!H83,0,($J$1-1)*8) -> 2011 | I8: =OFFSET(Estructura!I83,0,($J$1-1)*8) -> 2012 | J8: =OFFSET(Estructura!J83,0,($J$1-1)*8) -> 2013
B10: Hidráulica | C10: =OFFSET(Estructura!C84,0,($J$1-1)*8) -> 9.6 | D10: =OFFSET(Estructura!D84,0,($J$1-1)*8) -> 9.9 | E10: =OFFSET(Estructura!E84,0,($J$1-1)*8) -> 8.2 | F10: =OFFSET(Estructura!F84,0,($J$1-1)*8) -> 9.9 | G10: =OFFSET(Estructura!G84,0,($J$1-1)*8) -> 15.3 | H10: =OFFSET(Estructura!H84,0,($J$1-1)*8) -> - | I10: =OFFSET(Estructura!I84,0,($J$1-1)*8) -> - | J10: =OFFSET(Estructura!J84,0,($J$1-1)*8) -> -
B11: Turbinación bombeo | C11: =OFFSET(Estructura!C85,0,($J$1-1)*8) -> 1.4 | D11: =OFFSET(Estructura!D85,0,($J$1-1)*8) -> 1.1 | E11: =OFFSET(Estructura!E85,0,($J$1-1)*8) -> 1 | F11: =OFFSET(Estructura!F85,0,($J$1-1)*8) -> 1 | G11: =OFFSET(Estructura!G85,0,($J$1-1)*8) -> 1.1 | H11: =OFFSET(Estructura!H85,0,($J$1-1)*8) -> - | I11: =OFFSET(Estructura!I85,0,($J$1-1)*8) -> - | J11: =OFFSET(Estructura!J85,0,($J$1-1)*8) -> -
B12: Nuclear | C12: =OFFSET(Estructura!C86,0,($J$1-1)*8) -> 21.8 | D12: =OFFSET(Estructura!D86,0,($J$1-1)*8) -> 19.3 | E12: =OFFSET(Estructura!E86,0,($J$1-1)*8) -> 20.2 | F12: =OFFSET(Estructura!F86,0,($J$1-1)*8) -> 19.1 | G12: =OFFSET(Estructura!G86,0,($J$1-1)*8) -> 21.7 | H12: =OFFSET(Estructura!H86,0,($J$1-1)*8) -> - | I12: =OFFSET(Estructura!I86,0,($J$1-1)*8) -> - | J12: =OFFSET(Estructura!J86,0,($J$1-1)*8) -> -
B13: Carbón | C13: =OFFSET(Estructura!C87,0,($J$1-1)*8) -> 23.6 | D13: =OFFSET(Estructura!D87,0,($J$1-1)*8) -> 24.8 | E13: =OFFSET(Estructura!E87,0,($J$1-1)*8) -> 15.5 | F13: =OFFSET(Estructura!F87,0,($J$1-1)*8) -> 12 | G13: =OFFSET(Estructura!G87,0,($J$1-1)*8) -> 7.5 | H13: =OFFSET(Estructura!H87,0,($J$1-1)*8) -> - | I13: =OFFSET(Estructura!I87,0,($J$1-1)*8) -> - | J13: =OFFSET(Estructura!J87,0,($J$1-1)*8) -> -
B14: Fuel + Gas | C14: =OFFSET(Estructura!C88,0,($J$1-1)*8) -> 2 | D14: =OFFSET(Estructura!D88,0,($J$1-1)*8) -> 0.8 | E14: =OFFSET(Estructura!E88,0,($J$1-1)*8) -> 0.7 | F14: =OFFSET(Estructura!F88,0,($J$1-1)*8) -> 0.7 | G14: =OFFSET(Estructura!G88,0,($J$1-1)*8) -> 0.6 | H14: =OFFSET(Estructura!H88,0,($J$1-1)*8) -> - | I14: =OFFSET(Estructura!I88,0,($J$1-1)*8) -> - | J14: =OFFSET(Estructura!J88,0,($J$1-1)*8) -> -
B15: Ciclo combinado (2) | C15: =OFFSET(Estructura!C89,0,($J$1-1)*8) -> 23.6 | D15: =OFFSET(Estructura!D89,0,($J$1-1)*8) -> 24.4 | E15: =OFFSET(Estructura!E89,0,($J$1-1)*8) -> 31.8 | F15: =OFFSET(Estructura!F89,0,($J$1-1)*8) -> 28.9 | G15: =OFFSET(Estructura!G89,0,($J$1-1)*8) -> 23 | H15: =OFFSET(Estructura!H89,0,($J$1-1)*8) -> - | I15: =OFFSET(Estructura!I89,0,($J$1-1)*8) -> - | J15: =OFFSET(Estructura!J89,0,($J$1-1)*8) -> -
B16: Eólica | C16: =OFFSET(Estructura!C90,0,($J$1-1)*8) -> 8.7 | D16: =OFFSET(Estructura!D90,0,($J$1-1)*8) -> 10 | E16: =OFFSET(Estructura!E90,0,($J$1-1)*8) -> 11.3 | F16: =OFFSET(Estructura!F90,0,($J$1-1)*8) -> 14.3 | G16: =OFFSET(Estructura!G90,0,($J$1-1)*8) -> 15.8 | H16: =OFFSET(Estructura!H90,0,($J$1-1)*8) -> - | I16: =OFFSET(Estructura!I90,0,($J$1-1)*8) -> - | J16: =OFFSET(Estructura!J90,0,($J$1-1)*8) -> -
B17: Solar fotovoltaica | C17: =OFFSET(Estructura!C91,0,($J$1-1)*8) -> 0 | D17: =OFFSET(Estructura!D91,0,($J$1-1)*8) -> 0.2 | E17: =OFFSET(Estructura!E91,0,($J$1-1)*8) -> 0.9 | F17: =OFFSET(Estructura!F91,0,($J$1-1)*8) -> 2.2 | G17: =OFFSET(Estructura!G91,0,($J$1-1)*8) -> 2.2 | H17: =OFFSET(Estructura!H91,0,($J$1-1)*8) -> - | I17: =OFFSET(Estructura!I91,0,($J$1-1)*8) -> - | J17: =OFFSET(Estructura!J91,0,($J$1-1)*8) -> -
B18: Solar térmica | C18: =OFFSET(Estructura!C92,0,($J$1-1)*8) -> - | D18: =OFFSET(Estructura!D92,0,($J$1-1)*8) -> 0 | E18: =OFFSET(Estructura!E92,0,($J$1-1)*8) -> 0 | F18: =OFFSET(Estructura!F92,0,($J$1-1)*8) -> 0 | G18: =OFFSET(Estructura!G92,0,($J$1-1)*8) -> 0.3 | H18: =OFFSET(Estructura!H92,0,($J$1-1)*8) -> - | I18: =OFFSET(Estructura!I92,0,($J$1-1)*8) -> - | J18: =OFFSET(Estructura!J92,0,($J$1-1)*8) -> -
B19: Térmica renovable (3)/Otras renovables (4) | C19: =OFFSET(Estructura!C93,0,($J$1-1)*8) -> 0.8 | D19: =OFFSET(Estructura!D93,0,($J$1-1)*8) -> 0.9 | E19: =OFFSET(Estructura!E93,0,($J$1-1)*8) -> 0.9 | F19: =OFFSET(Estructura!F93,0,($J$1-1)*8) -> 1.2 | G19: =OFFSET(Estructura!G93,0,($J$1-1)*8) -> 1.2 | H19: =OFFSET(Estructura!H93,0,($J$1-1)*8) -> - | I19: =OFFSET(Estructura!I93,0,($J$1-1)*8) -> - | J19: =OFFSET(Estructura!J93,0,($J$1-1)*8) -> -
B20: Cogeneración y resto (3)/Cogeneración | C20: =OFFSET(Estructura!C94,0,($J$1-1)*8) -> 8.5 | D20: =OFFSET(Estructura!D94,0,($J$1-1)*8) -> 8.6 | E20: =OFFSET(Estructura!E94,0,($J$1-1)*8) -> 9.5 | F20: =OFFSET(Estructura!F94,0,($J$1-1)*8) -> 10.7 | G20: =OFFSET(Estructura!G94,0,($J$1-1)*8) -> 11.3 | H20: =OFFSET(Estructura!H94,0,($J$1-1)*8) -> - | I20: =OFFSET(Estructura!I94,0,($J$1-1)*8) -> - | J20: =OFFSET(Estructura!J94,0,($J$1-1)*8) -> -
B21: Residuos no renovables (5) | C21: =OFFSET(Estructura!C95,0,($J$1-1)*8) -> - | D21: =OFFSET(Estructura!D95,0,($J$1-1)*8) -> - | E21: =OFFSET(Estructura!E95,0,($J$1-1)*8) -> - | F21: =OFFSET(Estructura!F95,0,($J$1-1)*8) -> - | G21: =OFFSET(Estructura!G95,0,($J$1-1)*8) -> - | H21: =OFFSET(Estructura!H95,0,($J$1-1)*8) -> - | I21: =OFFSET(Estructura!I95,0,($J$1-1)*8) -> - | J21: =OFFSET(Estructura!J95,0,($J$1-1)*8) -> -
B22: Residuos renovables (5) | C22: =OFFSET(Estructura!C96,0,($J$1-1)*8) -> - | D22: =OFFSET(Estructura!D96,0,($J$1-1)*8) -> - | E22: =OFFSET(Estructura!E96,0,($J$1-1)*8) -> - | F22: =OFFSET(Estructura!F96,0,($J$1-1)*8) -> - | G22: =OFFSET(Estructura!G96,0,($J$1-1)*8) -> - | H22: =OFFSET(Estructura!H96,0,($J$1-1)*8) -> - | I22: =OFFSET(Estructura!I96,0,($J$1-1)*8) -> - | J22: =OFFSET(Estructura!J96,0,($J$1-1)*8) -> -
B23: Generación renovable (6) | C23: =OFFSET(Estructura!C97,0,($J$1-1)*8) -> 19.1 | D23: =OFFSET(Estructura!D97,0,($J$1-1)*8) -> 21 | E23: =OFFSET(Estructura!E97,0,($J$1-1)*8) -> 21.3 | F23: =OFFSET(Estructura!F97,0,($J$1-1)*8) -> 27.6 | G23: =OFFSET(Estructura!G97,0,($J$1-1)*8) -> 34.8 | H23: =OFFSET(Estructura!H97,0,($J$1-1)*8) -> - | I23: =OFFSET(Estructura!I97,0,($J$1-1)*8) -> - | J23: =OFFSET(Estructura!J97,0,($J$1-1)*8) -> -
B24: Generación no renovable | C24: =OFFSET(Estructura!C98,0,($J$1-1)*8) -> 80.9 | D24: =OFFSET(Estructura!D98,0,($J$1-1)*8) -> 79 | E24: =OFFSET(Estructura!E98,0,($J$1-1)*8) -> 78.7 | F24: =OFFSET(Estructura!F98,0,($J$1-1)*8) -> 72.4 | G24: =OFFSET(Estructura!G98,0,($J$1-1)*8) -> 65.2 | H24: =OFFSET(Estructura!H98,0,($J$1-1)*8) -> - | I24: =OFFSET(Estructura!I98,0,($J$1-1)*8) -> - | J24: =OFFSET(Estructura!J98,0,($J$1-1)*8) -> -
B25: (1) Asignación de unidades de producción según combustible principal.
B26: (2) Incluye funcionamiento en ciclo abierto.
B27: (3) Incluye residuos hasta el 31/12/2010.
B28: (4) Otras renovables incluyen biogás, biomasa, hidráulica marina y geotérmica.
B29: (5) Generación incluida en otras renovables y cogeneración hasta el 31/12/2014.
B30: (6) Incluye hidráulica, eólica, solar fotovoltaica, solar térmica y térmica renovable/otras renovables y residuos renovables. No incluye la turbinación bombeo.
B31: =IF(J1<4,"",IF(MONTH(FACT)=1,"",CONCATENATE(" Para el año ",YEAR(FACT)," valores acumulados hasta ",TEXT(FACT-30,"mmmm")," de ",YEAR(FACT),"."))) -> 

Sheet Estructura mensual Baleares
O1: 5
M4: Sistema eléctrico
M5: Horizonte temporal
M6: Periodo
C8: Ene. | D8: Feb. | E8: Mar. | F8: Abr. | G8: May. | H8: Jun. | I8: Jul. | J8: Ago. | K8: Sep. | L8: Oct. | M8: Nov. | N8: Dic. | O8: =OFFSET(Año!B18,($O$1-1),0) -> 2010
B10: Carbón | C10: =OFFSET(Estructura!C20,0,($O$1-1)*12) -> 58.7 | D10: =OFFSET(Estructura!D20,0,($O$1-1)*12) -> 55.6 | E10: =OFFSET(Estructura!E20,0,($O$1-1)*12) -> 60 | F10: =OFFSET(Estructura!F20,0,($O$1-1)*12) -> 65.5 | G10: =OFFSET(Estructura!G20,0,($O$1-1)*12) -> 52.5 | H10: =OFFSET(Estructura!H20,0,($O$1-1)*12) -> 58.6 | I10: =OFFSET(Estructura!I20,0,($O$1-1)*12) -> 46.3 | J10: =OFFSET(Estructura!J20,0,($O$1-1)*12) -> 45.8 | K10: =OFFSET(Estructura!K20,0,($O$1-1)*12) -> 54.8 | L10: =OFFSET(Estructura!L20,0,($O$1-1)*12) -> 48.8 | M10: =OFFSET(Estructura!M20,0,($O$1-1)*12) -> 47.7 | N10: =OFFSET(Estructura!N20,0,($O$1-1)*12) -> 47.1 | O10: =OFFSET(Estructura!C101,0,($O$1-1)) -> 53.2
B11: Motores diesel | C11: =OFFSET(Estructura!C21,0,($O$1-1)*12) -> 16.4 | D11: =OFFSET(Estructura!D21,0,($O$1-1)*12) -> 15.6 | E11: =OFFSET(Estructura!E21,0,($O$1-1)*12) -> 16.5 | F11: =OFFSET(Estructura!F21,0,($O$1-1)*12) -> 17 | G11: =OFFSET(Estructura!G21,0,($O$1-1)*12) -> 19.1 | H11: =OFFSET(Estructura!H21,0,($O$1-1)*12) -> 19.9 | I11: =OFFSET(Estructura!I21,0,($O$1-1)*12) -> 17.9 | J11: =OFFSET(Estructura!J21,0,($O$1-1)*12) -> 18.2 | K11: =OFFSET(Estructura!K21,0,($O$1-1)*12) -> 18.8 | L11: =OFFSET(Estructura!L21,0,($O$1-1)*12) -> 17.3 | M11: =OFFSET(Estructura!M21,0,($O$1-1)*12) -> 16.6 | N11: =OFFSET(Estructura!N21,0,($O$1-1)*12) -> 17.3 | O11: =OFFSET(Estructura!C102,0,($O$1-1)) -> 17.6
B12: Turbina de gas | C12: =OFFSET(Estructura!C22,0,($O$1-1)*12) -> 4.7 | D12: =OFFSET(Estructura!D22,0,($O$1-1)*12) -> 5.6 | E12: =OFFSET(Estructura!E22,0,($O$1-1)*12) -> 4.7 | F12: =OFFSET(Estructura!F22,0,($O$1-1)*12) -> 4.1 | G12: =OFFSET(Estructura!G22,0,($O$1-1)*12) -> 3.6 | H12: =OFFSET(Estructura!H22,0,($O$1-1)*12) -> 4.3 | I12: =OFFSET(Estructura!I22,0,($O$1-1)*12) -> 6.6 | J12: =OFFSET(Estructura!J22,0,($O$1-1)*12) -> 6.7 | K12: =OFFSET(Estructura!K22,0,($O$1-1)*12) -> 5.2 | L12: =OFFSET(Estructura!L22,0,($O$1-1)*12) -> 5.1 | M12: =OFFSET(Estructura!M22,0,($O$1-1)*12) -> 5.3 | N12: =OFFSET(Estructura!N22,0,($O$1-1)*12) -> 4.6 | O12: =OFFSET(Estructura!C103,0,($O$1-1)) -> 5.1
B13: Ciclo combinado (2) | C13: =OFFSET(Estructura!C23,0,($O$1-1)*12) -> 17.1 | D13: =OFFSET(Estructura!D23,0,($O$1-1)*12) -> 19.9 | E13: =OFFSET(Estructura!E23,0,($O$1-1)*12) -> 14.8 | F13: =OFFSET(Estructura!F23,0,($O$1-1)*12) -> 8.6 | G13: =OFFSET(Estructura!G23,0,($O$1-1)*12) -> 20.1 | H13: =OFFSET(Estructura!H23,0,($O$1-1)*12) -> 13 | I13: =OFFSET(Estructura!I23,0,($O$1-1)*12) -> 25.2 | J13: =OFFSET(Estructura!J23,0,($O$1-1)*12) -> 23.4 | K13: =OFFSET(Estructura!K23,0,($O$1-1)*12) -> 14.3 | L13: =OFFSET(Estructura!L23,0,($O$1-1)*12) -> 24.1 | M13: =OFFSET(Estructura!M23,0,($O$1-1)*12) -> 24.5 | N13: =OFFSET(Estructura!N23,0,($O$1-1)*12) -> 25.5 | O13: =OFFSET(Estructura!C104,0,($O$1-1)) -> 19.4
B14: Generación auxiliar (3) | C14: =OFFSET(Estructura!C24,0,($O$1-1)*12) -> - | D14: =OFFSET(Estructura!D24,0,($O$1-1)*12) -> - | E14: =OFFSET(Estructura!E24,0,($O$1-1)*12) -> - | F14: =OFFSET(Estructura!F24,0,($O$1-1)*12) -> - | G14: =OFFSET(Estructura!G24,0,($O$1-1)*12) -> - | H14: =OFFSET(Estructura!H24,0,($O$1-1)*12) -> 0 | I14: =OFFSET(Estructura!I24,0,($O$1-1)*12) -> 0.4 | J14: =OFFSET(Estructura!J24,0,($O$1-1)*12) -> 0.5 | K14: =OFFSET(Estructura!K24,0,($O$1-1)*12) -> 0.2 | L14: =OFFSET(Estructura!L24,0,($O$1-1)*12) -> 0 | M14: =OFFSET(Estructura!M24,0,($O$1-1)*12) -> - | N14: =OFFSET(Estructura!N24,0,($O$1-1)*12) -> - | O14: =OFFSET(Estructura!C105,0,($O$1-1)) -> 0.1
B15: Eólica | C15: =OFFSET(Estructura!C25,0,($O$1-1)*12) -> 0.1 | D15: =OFFSET(Estructura!D25,0,($O$1-1)*12) -> 0.2 | E15: =OFFSET(Estructura!E25,0,($O$1-1)*12) -> 0.1 | F15: =OFFSET(Estructura!F25,0,($O$1-1)*12) -> 0.1 | G15: =OFFSET(Estructura!G25,0,($O$1-1)*12) -> 0.1 | H15: =OFFSET(Estructura!H25,0,($O$1-1)*12) -> 0.1 | I15: =OFFSET(Estructura!I25,0,($O$1-1)*12) -> 0.1 | J15: =OFFSET(Estructura!J25,0,($O$1-1)*12) -> 0.1 | K15: =OFFSET(Estructura!K25,0,($O$1-1)*12) -> 0.1 | L15: =OFFSET(Estructura!L25,0,($O$1-1)*12) -> 0.1 | M15: =OFFSET(Estructura!M25,0,($O$1-1)*12) -> 0.1 | N15: =OFFSET(Estructura!N25,0,($O$1-1)*12) -> 0.1 | O15: =OFFSET(Estructura!C106,0,($O$1-1)) -> 0.1
B16: Solar fotovoltaica | C16: =OFFSET(Estructura!C26,0,($O$1-1)*12) -> 0.8 | D16: =OFFSET(Estructura!D26,0,($O$1-1)*12) -> 1.1 | E16: =OFFSET(Estructura!E26,0,($O$1-1)*12) -> 1.5 | F16: =OFFSET(Estructura!F26,0,($O$1-1)*12) -> 2 | G16: =OFFSET(Estructura!G26,0,($O$1-1)*12) -> 2.1 | H16: =OFFSET(Estructura!H26,0,($O$1-1)*12) -> 1.9 | I16: =OFFSET(Estructura!I26,0,($O$1-1)*12) -> 1.7 | J16: =OFFSET(Estructura!J26,0,($O$1-1)*12) -> 1.6 | K16: =OFFSET(Estructura!K26,0,($O$1-1)*12) -> 1.6 | L16: =OFFSET(Estructura!L26,0,($O$1-1)*12) -> 1.5 | M16: =OFFSET(Estructura!M26,0,($O$1-1)*12) -> 1.4 | N16: =OFFSET(Estructura!N26,0,($O$1-1)*12) -> 1 | O16: =OFFSET(Estructura!C107,0,($O$1-1)) -> 1.5
B17: Térmica renovable (4)/Otras renovables (5) | C17: =OFFSET(Estructura!C27,0,($O$1-1)*12) -> - | D17: =OFFSET(Estructura!D27,0,($O$1-1)*12) -> - | E17: =OFFSET(Estructura!E27,0,($O$1-1)*12) -> - | F17: =OFFSET(Estructura!F27,0,($O$1-1)*12) -> - | G17: =OFFSET(Estructura!G27,0,($O$1-1)*12) -> - | H17: =OFFSET(Estructura!H27,0,($O$1-1)*12) -> - | I17: =OFFSET(Estructura!I27,0,($O$1-1)*12) -> - | J17: =OFFSET(Estructura!J27,0,($O$1-1)*12) -> - | K17: =OFFSET(Estructura!K27,0,($O$1-1)*12) -> - | L17: =OFFSET(Estructura!L27,0,($O$1-1)*12) -> - | M17: =OFFSET(Estructura!M27,0,($O$1-1)*12) -> - | N17: =OFFSET(Estructura!N27,0,($O$1-1)*12) -> - | O17: =OFFSET(Estructura!C108,0,($O$1-1)) -> -
B18: Cogeneración y resto (4)/Cogeneración | C18: =OFFSET(Estructura!C28,0,($O$1-1)*12) -> 2.2 | D18: =OFFSET(Estructura!D28,0,($O$1-1)*12) -> 2 | E18: =OFFSET(Estructura!E28,0,($O$1-1)*12) -> 2.4 | F18: =OFFSET(Estructura!F28,0,($O$1-1)*12) -> 2.7 | G18: =OFFSET(Estructura!G28,0,($O$1-1)*12) -> 2.5 | H18: =OFFSET(Estructura!H28,0,($O$1-1)*12) -> 2.2 | I18: =OFFSET(Estructura!I28,0,($O$1-1)*12) -> 1.8 | J18: =OFFSET(Estructura!J28,0,($O$1-1)*12) -> 3.7 | K18: =OFFSET(Estructura!K28,0,($O$1-1)*12) -> 5 | L18: =OFFSET(Estructura!L28,0,($O$1-1)*12) -> 3.1 | M18: =OFFSET(Estructura!M28,0,($O$1-1)*12) -> 4.4 | N18: =OFFSET(Estructura!N28,0,($O$1-1)*12) -> 4.4 | O18: =OFFSET(Estructura!C109,0,($O$1-1)) -> 3
B19: Residuos no renovables (6) | C19: =OFFSET(Estructura!C29,0,($O$1-1)*12) -> - | D19: =OFFSET(Estructura!D29,0,($O$1-1)*12) -> - | E19: =OFFSET(Estructura!E29,0,($O$1-1)*12) -> - | F19: =OFFSET(Estructura!F29,0,($O$1-1)*12) -> - | G19: =OFFSET(Estructura!G29,0,($O$1-1)*12) -> - | H19: =OFFSET(Estructura!H29,0,($O$1-1)*12) -> - | I19: =OFFSET(Estructura!I29,0,($O$1-1)*12) -> - | J19: =OFFSET(Estructura!J29,0,($O$1-1)*12) -> - | K19: =OFFSET(Estructura!K29,0,($O$1-1)*12) -> - | L19: =OFFSET(Estructura!L29,0,($O$1-1)*12) -> - | M19: =OFFSET(Estructura!M29,0,($O$1-1)*12) -> - | N19: =OFFSET(Estructura!N29,0,($O$1-1)*12) -> - | O19: =OFFSET(Estructura!C110,0,($O$1-1)) -> -
B20: Residuos renovables (6) | C20: =OFFSET(Estructura!C30,0,($O$1-1)*12) -> - | D20: =OFFSET(Estructura!D30,0,($O$1-1)*12) -> - | E20: =OFFSET(Estructura!E30,0,($O$1-1)*12) -> - | F20: =OFFSET(Estructura!F30,0,($O$1-1)*12) -> - | G20: =OFFSET(Estructura!G30,0,($O$1-1)*12) -> - | H20: =OFFSET(Estructura!H30,0,($O$1-1)*12) -> - | I20: =OFFSET(Estructura!I30,0,($O$1-1)*12) -> - | J20: =OFFSET(Estructura!J30,0,($O$1-1)*12) -> - | K20: =OFFSET(Estructura!K30,0,($O$1-1)*12) -> - | L20: =OFFSET(Estructura!L30,0,($O$1-1)*12) -> - | M20: =OFFSET(Estructura!M30,0,($O$1-1)*12) -> - | N20: =OFFSET(Estructura!N30,0,($O$1-1)*12) -> - | O20: =OFFSET(Estructura!C111,0,($O$1-1)) -> -
B21: Generación renovable (7) | C21: =OFFSET(Estructura!C31,0,($O$1-1)*12) -> 0.9 | D21: =OFFSET(Estructura!D31,0,($O$1-1)*12) -> 1.3 | E21: =OFFSET(Estructura!E31,0,($O$1-1)*12) -> 1.6 | F21: =OFFSET(Estructura!F31,0,($O$1-1)*12) -> 2.1 | G21: =OFFSET(Estructura!G31,0,($O$1-1)*12) -> 2.2 | H21: =OFFSET(Estructura!H31,0,($O$1-1)*12) -> 2 | I21: =OFFSET(Estructura!I31,0,($O$1-1)*12) -> 1.8 | J21: =OFFSET(Estructura!J31,0,($O$1-1)*12) -> 1.7 | K21: =OFFSET(Estructura!K31,0,($O$1-1)*12) -> 1.7 | L21: =OFFSET(Estructura!L31,0,($O$1-1)*12) -> 1.6 | M21: =OFFSET(Estructura!M31,0,($O$1-1)*12) -> 1.5 | N21: =OFFSET(Estructura!N31,0,($O$1-1)*12) -> 1.1 | O21: =OFFSET(Estructura!C112,0,($O$1-1)) -> 1.6
B22: Generación no renovable | C22: =OFFSET(Estructura!C32,0,($O$1-1)*12) -> 99.1 | D22: =OFFSET(Estructura!D32,0,($O$1-1)*12) -> 98.7 | E22: =OFFSET(Estructura!E32,0,($O$1-1)*12) -> 98.4 | F22: =OFFSET(Estructura!F32,0,($O$1-1)*12) -> 97.9 | G22: =OFFSET(Estructura!G32,0,($O$1-1)*12) -> 97.8 | H22: =OFFSET(Estructura!H32,0,($O$1-1)*12) -> 98 | I22: =OFFSET(Estructura!I32,0,($O$1-1)*12) -> 98.2 | J22: =OFFSET(Estructura!J32,0,($O$1-1)*12) -> 98.3 | K22: =OFFSET(Estructura!K32,0,($O$1-1)*12) -> 98.3 | L22: =OFFSET(Estructura!L32,0,($O$1-1)*12) -> 98.4 | M22: =OFFSET(Estructura!M32,0,($O$1-1)*12) -> 98.5 | N22: =OFFSET(Estructura!N32,0,($O$1-1)*12) -> 98.9 | O22: =OFFSET(Estructura!C113,0,($O$1-1)) -> 98.4
B23: (1) Asignación de unidades de producción según combustible principal.
B24: (2) Incluye funcionamiento en ciclo abierto.
B25: (3) Grupos de emergencia que se instalan de forma transitoria en determinadas zonas para cubrir un déficit de generación.
B26: (4) Incluye residuos hasta el 31/12/2010.
B27: (5) Otras renovables incluyen biogás y biomasa.
B28: (6) Generación incluida en otras renovables y cogeneración hasta el 31/12/2014.
B29: (7) Incluye eólica, solar fotovoltaica y térmica renovable/otras renovables y residuos renovables.

Sheet Estructura anual Baleares
J1: 1
H4: Sistema eléctrico
H5: Horizonte temporal
H6: Periodo
C8: =OFFSET(Estructura!C100,0,($J$1-1)*8) -> 2006 | D8: =OFFSET(Estructura!D100,0,($J$1-1)*8) -> 2007 | E8: =OFFSET(Estructura!E100,0,($J$1-1)*8) -> 2008 | F8: =OFFSET(Estructura!F100,0,($J$1-1)*8) -> 2009 | G8: =OFFSET(Estructura!G100,0,($J$1-1)*8) -> 2010 | H8: =OFFSET(Estructura!H100,0,($J$1-1)*8) -> 2011 | I8: =OFFSET(Estructura!I100,0,($J$1-1)*8) -> 2012 | J8: =OFFSET(Estructura!J100,0,($J$1-1)*8) -> 2013
B10: Carbón | C10: =OFFSET(Estructura!C101,0,($J$1-1)*8) -> 52.8 | D10: =OFFSET(Estructura!D101,0,($J$1-1)*8) -> 49.3 | E10: =OFFSET(Estructura!E101,0,($J$1-1)*8) -> 50.5 | F10: =OFFSET(Estructura!F101,0,($J$1-1)*8) -> 52.8 | G10: =OFFSET(Estructura!G101,0,($J$1-1)*8) -> 53.2 | H10: =OFFSET(Estructura!H101,0,($J$1-1)*8) -> - | I10: =OFFSET(Estructura!I101,0,($J$1-1)*8) -> - | J10: =OFFSET(Estructura!J101,0,($J$1-1)*8) -> -
B11: Motores diesel | C11: =OFFSET(Estructura!C102,0,($J$1-1)*8) -> 16.6 | D11: =OFFSET(Estructura!D102,0,($J$1-1)*8) -> 16.8 | E11: =OFFSET(Estructura!E102,0,($J$1-1)*8) -> 17.1 | F11: =OFFSET(Estructura!F102,0,($J$1-1)*8) -> 16.2 | G11: =OFFSET(Estructura!G102,0,($J$1-1)*8) -> 17.6 | H11: =OFFSET(Estructura!H102,0,($J$1-1)*8) -> - | I11: =OFFSET(Estructura!I102,0,($J$1-1)*8) -> - | J11: =OFFSET(Estructura!J102,0,($J$1-1)*8) -> -
B12: Turbina de gas | C12: =OFFSET(Estructura!C103,0,($J$1-1)*8) -> 5 | D12: =OFFSET(Estructura!D103,0,($J$1-1)*8) -> 5.2 | E12: =OFFSET(Estructura!E103,0,($J$1-1)*8) -> 4.5 | F12: =OFFSET(Estructura!F103,0,($J$1-1)*8) -> 5.7 | G12: =OFFSET(Estructura!G103,0,($J$1-1)*8) -> 5.1 | H12: =OFFSET(Estructura!H103,0,($J$1-1)*8) -> - | I12: =OFFSET(Estructura!I103,0,($J$1-1)*8) -> - | J12: =OFFSET(Estructura!J103,0,($J$1-1)*8) -> -
B13: Ciclo combinado (2) | C13: =OFFSET(Estructura!C104,0,($J$1-1)*8) -> 23 | D13: =OFFSET(Estructura!D104,0,($J$1-1)*8) -> 26.5 | E13: =OFFSET(Estructura!E104,0,($J$1-1)*8) -> 24.9 | F13: =OFFSET(Estructura!F104,0,($J$1-1)*8) -> 21.6 | G13: =OFFSET(Estructura!G104,0,($J$1-1)*8) -> 19.4 | H13: =OFFSET(Estructura!H104,0,($J$1-1)*8) -> - | I13: =OFFSET(Estructura!I104,0,($J$1-1)*8) -> - | J13: =OFFSET(Estructura!J104,0,($J$1-1)*8) -> -
B14: Generación auxiliar (3) | C14: =OFFSET(Estructura!C105,0,($J$1-1)*8) -> 0.1 | D14: =OFFSET(Estructura!D105,0,($J$1-1)*8) -> 0.2 | E14: =OFFSET(Estructura!E105,0,($J$1-1)*8) -> 0.1 | F14: =OFFSET(Estructura!F105,0,($J$1-1)*8) -> 0.1 | G14: =OFFSET(Estructura!G105,0,($J$1-1)*8) -> 0.1 | H14: =OFFSET(Estructura!H105,0,($J$1-1)*8) -> - | I14: =OFFSET(Estructura!I105,0,($J$1-1)*8) -> - | J14: =OFFSET(Estructura!J105,0,($J$1-1)*8) -> -
B15: Eólica | C15: =OFFSET(Estructura!C106,0,($J$1-1)*8) -> 0.1 | D15: =OFFSET(Estructura!D106,0,($J$1-1)*8) -> 0.1 | E15: =OFFSET(Estructura!E106,0,($J$1-1)*8) -> 0.1 | F15: =OFFSET(Estructura!F106,0,($J$1-1)*8) -> 0.1 | G15: =OFFSET(Estructura!G106,0,($J$1-1)*8) -> 0.1 | H15: =OFFSET(Estructura!H106,0,($J$1-1)*8) -> - | I15: =OFFSET(Estructura!I106,0,($J$1-1)*8) -> - | J15: =OFFSET(Estructura!J106,0,($J$1-1)*8) -> -
B16: Solar fotovoltaica | C16: =OFFSET(Estructura!C107,0,($J$1-1)*8) -> 0 | D16: =OFFSET(Estructura!D107,0,($J$1-1)*8) -> 0 | E16: =OFFSET(Estructura!E107,0,($J$1-1)*8) -> 0.5 | F16: =OFFSET(Estructura!F107,0,($J$1-1)*8) -> 1.4 | G16: =OFFSET(Estructura!G107,0,($J$1-1)*8) -> 1.5 | H16: =OFFSET(Estructura!H107,0,($J$1-1)*8) -> - | I16: =OFFSET(Estructura!I107,0,($J$1-1)*8) -> - | J16: =OFFSET(Estructura!J107,0,($J$1-1)*8) -> -
B17: Térmica renovable (4)/Otras renovables (5) | C17: =OFFSET(Estructura!C108,0,($J$1-1)*8) -> - | D17: =OFFSET(Estructura!D108,0,($J$1-1)*8) -> - | E17: =OFFSET(Estructura!E108,0,($J$1-1)*8) -> - | F17: =OFFSET(Estructura!F108,0,($J$1-1)*8) -> - | G17: =OFFSET(Estructura!G108,0,($J$1-1)*8) -> - | H17: =OFFSET(Estructura!H108,0,($J$1-1)*8) -> - | I17: =OFFSET(Estructura!I108,0,($J$1-1)*8) -> - | J17: =OFFSET(Estructura!J108,0,($J$1-1)*8) -> -
B18: Cogeneración y resto (4)/Cogeneración | C18: =OFFSET(Estructura!C109,0,($J$1-1)*8) -> 2.4 | D18: =OFFSET(Estructura!D109,0,($J$1-1)*8) -> 1.9 | E18: =OFFSET(Estructura!E109,0,($J$1-1)*8) -> 2.3 | F18: =OFFSET(Estructura!F109,0,($J$1-1)*8) -> 2.1 | G18: =OFFSET(Estructura!G109,0,($J$1-1)*8) -> 3 | H18: =OFFSET(Estructura!H109,0,($J$1-1)*8) -> - | I18: =OFFSET(Estructura!I109,0,($J$1-1)*8) -> - | J18: =OFFSET(Estructura!J109,0,($J$1-1)*8) -> -
B19: Residuos no renovables (6) | C19: =OFFSET(Estructura!C110,0,($J$1-1)*8) -> - | D19: =OFFSET(Estructura!D110,0,($J$1-1)*8) -> - | E19: =OFFSET(Estructura!E110,0,($J$1-1)*8) -> - | F19: =OFFSET(Estructura!F110,0,($J$1-1)*8) -> - | G19: =OFFSET(Estructura!G110,0,($J$1-1)*8) -> - | H19: =OFFSET(Estructura!H110,0,($J$1-1)*8) -> - | I19: =OFFSET(Estructura!I110,0,($J$1-1)*8) -> - | J19: =OFFSET(Estructura!J110,0,($J$1-1)*8) -> -
B20: Residuos renovables (6) | C20: =OFFSET(Estructura!C111,0,($J$1-1)*8) -> - | D20: =OFFSET(Estructura!D111,0,($J$1-1)*8) -> - | E20: =OFFSET(Estructura!E111,0,($J$1-1)*8) -> - | F20: =OFFSET(Estructura!F111,0,($J$1-1)*8) -> - | G20: =OFFSET(Estructura!G111,0,($J$1-1)*8) -> - | H20: =OFFSET(Estructura!H111,0,($J$1-1)*8) -> - | I20: =OFFSET(Estructura!I111,0,($J$1-1)*8) -> - | J20: =OFFSET(Estructura!J111,0,($J$1-1)*8) -> -
B21: Generación renovable (7) | C21: =OFFSET(Estructura!C112,0,($J$1-1)*8) -> 0.1 | D21: =OFFSET(Estructura!D112,0,($J$1-1)*8) -> 0.1 | E21: =OFFSET(Estructura!E112,0,($J$1-1)*8) -> 0.6 | F21: =OFFSET(Estructura!F112,0,($J$1-1)*8) -> 1.5 | G21: =OFFSET(Estructura!G112,0,($J$1-1)*8) -> 1.6 | H21: =OFFSET(Estructura!H112,0,($J$1-1)*8) -> - | I21: =OFFSET(Estructura!I112,0,($J$1-1)*8) -> - | J21: =OFFSET(Estructura!J112,0,($J$1-1)*8) -> -
B22: Generación no renovable | C22: =OFFSET(Estructura!C113,0,($J$1-1)*8) -> 99.9 | D22: =OFFSET(Estructura!D113,0,($J$1-1)*8) -> 99.9 | E22: =OFFSET(Estructura!E113,0,($J$1-1)*8) -> 99.4 | F22: =OFFSET(Estructura!F113,0,($J$1-1)*8) -> 98.5 | G22: =OFFSET(Estructura!G113,0,($J$1-1)*8) -> 98.4 | H22: =OFFSET(Estructura!H113,0,($J$1-1)*8) -> - | I22: =OFFSET(Estructura!I113,0,($J$1-1)*8) -> - | J22: =OFFSET(Estructura!J113,0,($J$1-1)*8) -> -
B23: (1) Asignación de unidades de producción según combustible principal.
B24: (2) Incluye funcionamiento en ciclo abierto.
B25: (3) Grupos de emergencia que se instalan de forma transitoria en determinadas zonas para cubrir un déficit de generación.
B26: (4) Incluye residuos hasta el 31/12/2010.
B27: (5) Otras renovables incluyen biogás y biomasa.
B28: (6) Generación incluida en otras renovables y cogeneración hasta el 31/12/2014.
B29: (7) Incluye eólica, solar fotovoltaica y térmica renovable/otras renovables y residuos renovables.
B30: =IF(J1<2,"",IF(MONTH(FACT)=1,"",CONCATENATE(" Para el año ",YEAR(FACT)," valores acumulados hasta ",TEXT(FACT-30,"mmmm")," de ",YEAR(FACT),"."))) -> 

Sheet Estructura mensual Canarias
O1: 5
M4: Sistema eléctrico
M5: Horizonte temporal
M6: Periodo
C8: Ene. | D8: Feb. | E8: Mar. | F8: Abr. | G8: May. | H8: Jun. | I8: Jul. | J8: Ago. | K8: Sep. | L8: Oct. | M8: Nov. | N8: Dic. | O8: =OFFSET(Año!B18,($O$1-1),0) -> 2010
B10: Hidráulica | C10: =OFFSET(Estructura!C35,0,($O$1-1)*12) -> - | D10: =OFFSET(Estructura!D35,0,($O$1-1)*12) -> - | E10: =OFFSET(Estructura!E35,0,($O$1-1)*12) -> - | F10: =OFFSET(Estructura!F35,0,($O$1-1)*12) -> - | G10: =OFFSET(Estructura!G35,0,($O$1-1)*12) -> - | H10: =OFFSET(Estructura!H35,0,($O$1-1)*12) -> - | I10: =OFFSET(Estructura!I35,0,($O$1-1)*12) -> - | J10: =OFFSET(Estructura!J35,0,($O$1-1)*12) -> - | K10: =OFFSET(Estructura!K35,0,($O$1-1)*12) -> - | L10: =OFFSET(Estructura!L35,0,($O$1-1)*12) -> - | M10: =OFFSET(Estructura!M35,0,($O$1-1)*12) -> - | N10: =OFFSET(Estructura!N35,0,($O$1-1)*12) -> - | O10: =OFFSET(Estructura!C116,0,($O$1-1)) -> -
B11: Motores diesel | C11: =OFFSET(Estructura!C36,0,($O$1-1)*12) -> 24.9 | D11: =OFFSET(Estructura!D36,0,($O$1-1)*12) -> 24.9 | E11: =OFFSET(Estructura!E36,0,($O$1-1)*12) -> 25.1 | F11: =OFFSET(Estructura!F36,0,($O$1-1)*12) -> 24.4 | G11: =OFFSET(Estructura!G36,0,($O$1-1)*12) -> 22.5 | H11: =OFFSET(Estructura!H36,0,($O$1-1)*12) -> 22.9 | I11: =OFFSET(Estructura!I36,0,($O$1-1)*12) -> 24 | J11: =OFFSET(Estructura!J36,0,($O$1-1)*12) -> 25.3 | K11: =OFFSET(Estructura!K36,0,($O$1-1)*12) -> 24.7 | L11: =OFFSET(Estructura!L36,0,($O$1-1)*12) -> 26.1 | M11: =OFFSET(Estructura!M36,0,($O$1-1)*12) -> 25 | N11: =OFFSET(Estructura!N36,0,($O$1-1)*12) -> 24.6 | O11: =OFFSET(Estructura!C117,0,($O$1-1)) -> 24.5
B12: Turbina de gas | C12: =OFFSET(Estructura!C37,0,($O$1-1)*12) -> 1.8 | D12: =OFFSET(Estructura!D37,0,($O$1-1)*12) -> 2.8 | E12: =OFFSET(Estructura!E37,0,($O$1-1)*12) -> 2.7 | F12: =OFFSET(Estructura!F37,0,($O$1-1)*12) -> 2 | G12: =OFFSET(Estructura!G37,0,($O$1-1)*12) -> 4.3 | H12: =OFFSET(Estructura!H37,0,($O$1-1)*12) -> 4.4 | I12: =OFFSET(Estructura!I37,0,($O$1-1)*12) -> 3.9 | J12: =OFFSET(Estructura!J37,0,($O$1-1)*12) -> 3.2 | K12: =OFFSET(Estructura!K37,0,($O$1-1)*12) -> 3.7 | L12: =OFFSET(Estructura!L37,0,($O$1-1)*12) -> 6.1 | M12: =OFFSET(Estructura!M37,0,($O$1-1)*12) -> 6.1 | N12: =OFFSET(Estructura!N37,0,($O$1-1)*12) -> 5.3 | O12: =OFFSET(Estructura!C118,0,($O$1-1)) -> 3.9
B13: Turbina de vapor | C13: =OFFSET(Estructura!C38,0,($O$1-1)*12) -> 36.6 | D13: =OFFSET(Estructura!D38,0,($O$1-1)*12) -> 35.6 | E13: =OFFSET(Estructura!E38,0,($O$1-1)*12) -> 34.4 | F13: =OFFSET(Estructura!F38,0,($O$1-1)*12) -> 32.9 | G13: =OFFSET(Estructura!G38,0,($O$1-1)*12) -> 35.3 | H13: =OFFSET(Estructura!H38,0,($O$1-1)*12) -> 35.5 | I13: =OFFSET(Estructura!I38,0,($O$1-1)*12) -> 32.6 | J13: =OFFSET(Estructura!J38,0,($O$1-1)*12) -> 33.8 | K13: =OFFSET(Estructura!K38,0,($O$1-1)*12) -> 33.3 | L13: =OFFSET(Estructura!L38,0,($O$1-1)*12) -> 28.5 | M13: =OFFSET(Estructura!M38,0,($O$1-1)*12) -> 30 | N13: =OFFSET(Estructura!N38,0,($O$1-1)*12) -> 33 | O13: =OFFSET(Estructura!C119,0,($O$1-1)) -> 33.4
B14: Ciclo combinado (2) | C14: =OFFSET(Estructura!C39,0,($O$1-1)*12) -> 30.5 | D14: =OFFSET(Estructura!D39,0,($O$1-1)*12) -> 30.2 | E14: =OFFSET(Estructura!E39,0,($O$1-1)*12) -> 30.3 | F14: =OFFSET(Estructura!F39,0,($O$1-1)*12) -> 30.5 | G14: =OFFSET(Estructura!G39,0,($O$1-1)*12) -> 26.7 | H14: =OFFSET(Estructura!H39,0,($O$1-1)*12) -> 26.4 | I14: =OFFSET(Estructura!I39,0,($O$1-1)*12) -> 28.9 | J14: =OFFSET(Estructura!J39,0,($O$1-1)*12) -> 28.7 | K14: =OFFSET(Estructura!K39,0,($O$1-1)*12) -> 30.6 | L14: =OFFSET(Estructura!L39,0,($O$1-1)*12) -> 34.7 | M14: =OFFSET(Estructura!M39,0,($O$1-1)*12) -> 34.3 | N14: =OFFSET(Estructura!N39,0,($O$1-1)*12) -> 32.9 | O14: =OFFSET(Estructura!C120,0,($O$1-1)) -> 30.5
B15: Generación auxiliar (3) | C15: =OFFSET(Estructura!C40,0,($O$1-1)*12) -> - | D15: =OFFSET(Estructura!D40,0,($O$1-1)*12) -> - | E15: =OFFSET(Estructura!E40,0,($O$1-1)*12) -> - | F15: =OFFSET(Estructura!F40,0,($O$1-1)*12) -> - | G15: =OFFSET(Estructura!G40,0,($O$1-1)*12) -> - | H15: =OFFSET(Estructura!H40,0,($O$1-1)*12) -> - | I15: =OFFSET(Estructura!I40,0,($O$1-1)*12) -> - | J15: =OFFSET(Estructura!J40,0,($O$1-1)*12) -> - | K15: =OFFSET(Estructura!K40,0,($O$1-1)*12) -> - | L15: =OFFSET(Estructura!L40,0,($O$1-1)*12) -> - | M15: =OFFSET(Estructura!M40,0,($O$1-1)*12) -> - | N15: =OFFSET(Estructura!N40,0,($O$1-1)*12) -> - | O15: =OFFSET(Estructura!C121,0,($O$1-1)) -> -
B16: Hidroeólica | C16: =OFFSET(Estructura!C41,0,($O$1-1)*12) -> - | D16: =OFFSET(Estructura!D41,0,($O$1-1)*12) -> - | E16: =OFFSET(Estructura!E41,0,($O$1-1)*12) -> - | F16: =OFFSET(Estructura!F41,0,($O$1-1)*12) -> - | G16: =OFFSET(Estructura!G41,0,($O$1-1)*12) -> - | H16: =OFFSET(Estructura!H41,0,($O$1-1)*12) -> - | I16: =OFFSET(Estructura!I41,0,($O$1-1)*12) -> - | J16: =OFFSET(Estructura!J41,0,($O$1-1)*12) -> - | K16: =OFFSET(Estructura!K41,0,($O$1-1)*12) -> - | L16: =OFFSET(Estructura!L41,0,($O$1-1)*12) -> - | M16: =OFFSET(Estructura!M41,0,($O$1-1)*12) -> - | N16: =OFFSET(Estructura!N41,0,($O$1-1)*12) -> - | O16: =OFFSET(Estructura!C122,0,($O$1-1)) -> -
B17: Eólica | C17: =OFFSET(Estructura!C42,0,($O$1-1)*12) -> 1.6 | D17: =OFFSET(Estructura!D42,0,($O$1-1)*12) -> 2.2 | E17: =OFFSET(Estructura!E42,0,($O$1-1)*12) -> 3.1 | F17: =OFFSET(Estructura!F42,0,($O$1-1)*12) -> 4.5 | G17: =OFFSET(Estructura!G42,0,($O$1-1)*12) -> 5 | H17: =OFFSET(Estructura!H42,0,($O$1-1)*12) -> 5.4 | I17: =OFFSET(Estructura!I42,0,($O$1-1)*12) -> 6.3 | J17: =OFFSET(Estructura!J42,0,($O$1-1)*12) -> 5.4 | K17: =OFFSET(Estructura!K42,0,($O$1-1)*12) -> 4.7 | L17: =OFFSET(Estructura!L42,0,($O$1-1)*12) -> 1.8 | M17: =OFFSET(Estructura!M42,0,($O$1-1)*12) -> 2.4 | N17: =OFFSET(Estructura!N42,0,($O$1-1)*12) -> 2.2 | O17: =OFFSET(Estructura!C123,0,($O$1-1)) -> 3.7
B18: Solar fotovoltaica | C18: =OFFSET(Estructura!C43,0,($O$1-1)*12) -> 1.4 | D18: =OFFSET(Estructura!D43,0,($O$1-1)*12) -> 1.5 | E18: =OFFSET(Estructura!E43,0,($O$1-1)*12) -> 2.2 | F18: =OFFSET(Estructura!F43,0,($O$1-1)*12) -> 2.3 | G18: =OFFSET(Estructura!G43,0,($O$1-1)*12) -> 2.7 | H18: =OFFSET(Estructura!H43,0,($O$1-1)*12) -> 2.7 | I18: =OFFSET(Estructura!I43,0,($O$1-1)*12) -> 3 | J18: =OFFSET(Estructura!J43,0,($O$1-1)*12) -> 2.8 | K18: =OFFSET(Estructura!K43,0,($O$1-1)*12) -> 2.3 | L18: =OFFSET(Estructura!L43,0,($O$1-1)*12) -> 2.1 | M18: =OFFSET(Estructura!M43,0,($O$1-1)*12) -> 1.7 | N18: =OFFSET(Estructura!N43,0,($O$1-1)*12) -> 1.7 | O18: =OFFSET(Estructura!C124,0,($O$1-1)) -> 2.2
B19: Térmica renovable/Otras renovables (4) | C19: =OFFSET(Estructura!C44,0,($O$1-1)*12) -> 3.2 | D19: =OFFSET(Estructura!D44,0,($O$1-1)*12) -> 2.8 | E19: =OFFSET(Estructura!E44,0,($O$1-1)*12) -> 2.2 | F19: =OFFSET(Estructura!F44,0,($O$1-1)*12) -> 3.4 | G19: =OFFSET(Estructura!G44,0,($O$1-1)*12) -> 3.5 | H19: =OFFSET(Estructura!H44,0,($O$1-1)*12) -> 2.7 | I19: =OFFSET(Estructura!I44,0,($O$1-1)*12) -> 1.3 | J19: =OFFSET(Estructura!J44,0,($O$1-1)*12) -> 0.8 | K19: =OFFSET(Estructura!K44,0,($O$1-1)*12) -> 0.7 | L19: =OFFSET(Estructura!L44,0,($O$1-1)*12) -> 0.7 | M19: =OFFSET(Estructura!M44,0,($O$1-1)*12) -> 0.5 | N19: =OFFSET(Estructura!N44,0,($O$1-1)*12) -> 0.3 | O19: =OFFSET(Estructura!C125,0,($O$1-1)) -> 1.8
B20: Cogeneración y resto/Cogeneración | C20: =OFFSET(Estructura!C45,0,($O$1-1)*12) -> - | D20: =OFFSET(Estructura!D45,0,($O$1-1)*12) -> - | E20: =OFFSET(Estructura!E45,0,($O$1-1)*12) -> - | F20: =OFFSET(Estructura!F45,0,($O$1-1)*12) -> - | G20: =OFFSET(Estructura!G45,0,($O$1-1)*12) -> - | H20: =OFFSET(Estructura!H45,0,($O$1-1)*12) -> - | I20: =OFFSET(Estructura!I45,0,($O$1-1)*12) -> - | J20: =OFFSET(Estructura!J45,0,($O$1-1)*12) -> - | K20: =OFFSET(Estructura!K45,0,($O$1-1)*12) -> - | L20: =OFFSET(Estructura!L45,0,($O$1-1)*12) -> - | M20: =OFFSET(Estructura!M45,0,($O$1-1)*12) -> - | N20: =OFFSET(Estructura!N45,0,($O$1-1)*12) -> - | O20: =OFFSET(Estructura!C126,0,($O$1-1)) -> -
B21: Generación renovable (5) | C21: =OFFSET(Estructura!C46,0,($O$1-1)*12) -> 6.2 | D21: =OFFSET(Estructura!D46,0,($O$1-1)*12) -> 6.5 | E21: =OFFSET(Estructura!E46,0,($O$1-1)*12) -> 7.5 | F21: =OFFSET(Estructura!F46,0,($O$1-1)*12) -> 10.2 | G21: =OFFSET(Estructura!G46,0,($O$1-1)*12) -> 11.2 | H21: =OFFSET(Estructura!H46,0,($O$1-1)*12) -> 10.8 | I21: =OFFSET(Estructura!I46,0,($O$1-1)*12) -> 10.6 | J21: =OFFSET(Estructura!J46,0,($O$1-1)*12) -> 9 | K21: =OFFSET(Estructura!K46,0,($O$1-1)*12) -> 7.7 | L21: =OFFSET(Estructura!L46,0,($O$1-1)*12) -> 4.6 | M21: =OFFSET(Estructura!M46,0,($O$1-1)*12) -> 4.6 | N21: =OFFSET(Estructura!N46,0,($O$1-1)*12) -> 4.2 | O21: =OFFSET(Estructura!C127,0,($O$1-1)) -> 7.7
B22: Generación no renovable | C22: =OFFSET(Estructura!C47,0,($O$1-1)*12) -> 93.8 | D22: =OFFSET(Estructura!D47,0,($O$1-1)*12) -> 93.5 | E22: =OFFSET(Estructura!E47,0,($O$1-1)*12) -> 92.5 | F22: =OFFSET(Estructura!F47,0,($O$1-1)*12) -> 89.8 | G22: =OFFSET(Estructura!G47,0,($O$1-1)*12) -> 88.8 | H22: =OFFSET(Estructura!H47,0,($O$1-1)*12) -> 89.2 | I22: =OFFSET(Estructura!I47,0,($O$1-1)*12) -> 89.4 | J22: =OFFSET(Estructura!J47,0,($O$1-1)*12) -> 91 | K22: =OFFSET(Estructura!K47,0,($O$1-1)*12) -> 92.3 | L22: =OFFSET(Estructura!L47,0,($O$1-1)*12) -> 95.4 | M22: =OFFSET(Estructura!M47,0,($O$1-1)*12) -> 95.4 | N22: =OFFSET(Estructura!N47,0,($O$1-1)*12) -> 95.8 | O22: =OFFSET(Estructura!C128,0,($O$1-1)) -> 92.3
B23: (1) Asignación de unidades de producción según combustible principal.
B24: (2) Utiliza gasoil como combustible principal. Incluye funcionamiento en ciclo abierto.
B25: (3) Grupos de emergencia que se instalan de forma transitoria en determinadas zonas para cubrir un déficit de generación.
B26: (4) Otras renovables incluyen biogás y biomasa.
B27: (5) Incluye hidráulica, hidroeólica, eólica, solar fotovoltaica y térmica renovable/otras renovables.

Sheet Estructura anual Canarias
J1: 1
H4: Sistema eléctrico
H5: Horizonte temporal
H6: Periodo
C8: =OFFSET(Estructura!C115,0,($J$1-1)*8) -> 2006 | D8: =OFFSET(Estructura!D115,0,($J$1-1)*8) -> 2007 | E8: =OFFSET(Estructura!E115,0,($J$1-1)*8) -> 2008 | F8: =OFFSET(Estructura!F115,0,($J$1-1)*8) -> 2009 | G8: =OFFSET(Estructura!G115,0,($J$1-1)*8) -> 2010 | H8: =OFFSET(Estructura!H115,0,($J$1-1)*8) -> 2011 | I8: =OFFSET(Estructura!I115,0,($J$1-1)*8) -> 2012 | J8: =OFFSET(Estructura!J115,0,($J$1-1)*8) -> 2013
B10: Hidráulica | C10: =OFFSET(Estructura!C116,0,($J$1-1)*8) -> - | D10: =OFFSET(Estructura!D116,0,($J$1-1)*8) -> 0 | E10: =OFFSET(Estructura!E116,0,($J$1-1)*8) -> 0 | F10: =OFFSET(Estructura!F116,0,($J$1-1)*8) -> 0 | G10: =OFFSET(Estructura!G116,0,($J$1-1)*8) -> - | H10: =OFFSET(Estructura!H116,0,($J$1-1)*8) -> - | I10: =OFFSET(Estructura!I116,0,($J$1-1)*8) -> - | J10: =OFFSET(Estructura!J116,0,($J$1-1)*8) -> -
B11: Motores diesel | C11: =OFFSET(Estructura!C117,0,($J$1-1)*8) -> 22.8 | D11: =OFFSET(Estructura!D117,0,($J$1-1)*8) -> 22.2 | E11: =OFFSET(Estructura!E117,0,($J$1-1)*8) -> 22.5 | F11: =OFFSET(Estructura!F117,0,($J$1-1)*8) -> 23.5 | G11: =OFFSET(Estructura!G117,0,($J$1-1)*8) -> 24.5 | H11: =OFFSET(Estructura!H117,0,($J$1-1)*8) -> - | I11: =OFFSET(Estructura!I117,0,($J$1-1)*8) -> - | J11: =OFFSET(Estructura!J117,0,($J$1-1)*8) -> -
B12: Turbina de gas | C12: =OFFSET(Estructura!C118,0,($J$1-1)*8) -> 9.3 | D12: =OFFSET(Estructura!D118,0,($J$1-1)*8) -> 7.6 | E12: =OFFSET(Estructura!E118,0,($J$1-1)*8) -> 5.1 | F12: =OFFSET(Estructura!F118,0,($J$1-1)*8) -> 3.8 | G12: =OFFSET(Estructura!G118,0,($J$1-1)*8) -> 3.9 | H12: =OFFSET(Estructura!H118,0,($J$1-1)*8) -> - | I12: =OFFSET(Estructura!I118,0,($J$1-1)*8) -> - | J12: =OFFSET(Estructura!J118,0,($J$1-1)*8) -> -
B13: Turbina de vapor | C13: =OFFSET(Estructura!C119,0,($J$1-1)*8) -> 38.9 | D13: =OFFSET(Estructura!D119,0,($J$1-1)*8) -> 35.9 | E13: =OFFSET(Estructura!E119,0,($J$1-1)*8) -> 36.6 | F13: =OFFSET(Estructura!F119,0,($J$1-1)*8) -> 35.6 | G13: =OFFSET(Estructura!G119,0,($J$1-1)*8) -> 33.4 | H13: =OFFSET(Estructura!H119,0,($J$1-1)*8) -> - | I13: =OFFSET(Estructura!I119,0,($J$1-1)*8) -> - | J13: =OFFSET(Estructura!J119,0,($J$1-1)*8) -> -
B14: Ciclo combinado (2) | C14: =OFFSET(Estructura!C120,0,($J$1-1)*8) -> 22.8 | D14: =OFFSET(Estructura!D120,0,($J$1-1)*8) -> 26.5 | E14: =OFFSET(Estructura!E120,0,($J$1-1)*8) -> 27.6 | F14: =OFFSET(Estructura!F120,0,($J$1-1)*8) -> 28 | G14: =OFFSET(Estructura!G120,0,($J$1-1)*8) -> 30.5 | H14: =OFFSET(Estructura!H120,0,($J$1-1)*8) -> - | I14: =OFFSET(Estructura!I120,0,($J$1-1)*8) -> - | J14: =OFFSET(Estructura!J120,0,($J$1-1)*8) -> -
B15: Generación auxiliar (3) | C15: =OFFSET(Estructura!C121,0,($J$1-1)*8) -> - | D15: =OFFSET(Estructura!D121,0,($J$1-1)*8) -> 1.4 | E15: =OFFSET(Estructura!E121,0,($J$1-1)*8) -> 1 | F15: =OFFSET(Estructura!F121,0,($J$1-1)*8) -> 0.4 | G15: =OFFSET(Estructura!G121,0,($J$1-1)*8) -> - | H15: =OFFSET(Estructura!H121,0,($J$1-1)*8) -> - | I15: =OFFSET(Estructura!I121,0,($J$1-1)*8) -> - | J15: =OFFSET(Estructura!J121,0,($J$1-1)*8) -> -
B16: Hidroeólica | C16: =OFFSET(Estructura!C122,0,($J$1-1)*8) -> - | D16: =OFFSET(Estructura!D122,0,($J$1-1)*8) -> - | E16: =OFFSET(Estructura!E122,0,($J$1-1)*8) -> - | F16: =OFFSET(Estructura!F122,0,($J$1-1)*8) -> - | G16: =OFFSET(Estructura!G122,0,($J$1-1)*8) -> - | H16: =OFFSET(Estructura!H122,0,($J$1-1)*8) -> - | I16: =OFFSET(Estructura!I122,0,($J$1-1)*8) -> - | J16: =OFFSET(Estructura!J122,0,($J$1-1)*8) -> -
B17: Eólica | C17: =OFFSET(Estructura!C123,0,($J$1-1)*8) -> 3.7 | D17: =OFFSET(Estructura!D123,0,($J$1-1)*8) -> 3.9 | E17: =OFFSET(Estructura!E123,0,($J$1-1)*8) -> 4.2 | F17: =OFFSET(Estructura!F123,0,($J$1-1)*8) -> 3.9 | G17: =OFFSET(Estructura!G123,0,($J$1-1)*8) -> 3.7 | H17: =OFFSET(Estructura!H123,0,($J$1-1)*8) -> - | I17: =OFFSET(Estructura!I123,0,($J$1-1)*8) -> - | J17: =OFFSET(Estructura!J123,0,($J$1-1)*8) -> -
B18: Solar fotovoltaica | C18: =OFFSET(Estructura!C124,0,($J$1-1)*8) -> 0 | D18: =OFFSET(Estructura!D124,0,($J$1-1)*8) -> 0.2 | E18: =OFFSET(Estructura!E124,0,($J$1-1)*8) -> 0.7 | F18: =OFFSET(Estructura!F124,0,($J$1-1)*8) -> 1.8 | G18: =OFFSET(Estructura!G124,0,($J$1-1)*8) -> 2.2 | H18: =OFFSET(Estructura!H124,0,($J$1-1)*8) -> - | I18: =OFFSET(Estructura!I124,0,($J$1-1)*8) -> - | J18: =OFFSET(Estructura!J124,0,($J$1-1)*8) -> -
B19: Térmica renovable/Otras renovables (4) | C19: =OFFSET(Estructura!C125,0,($J$1-1)*8) -> 2.5 | D19: =OFFSET(Estructura!D125,0,($J$1-1)*8) -> 2.3 | E19: =OFFSET(Estructura!E125,0,($J$1-1)*8) -> 2.3 | F19: =OFFSET(Estructura!F125,0,($J$1-1)*8) -> 3 | G19: =OFFSET(Estructura!G125,0,($J$1-1)*8) -> 1.8 | H19: =OFFSET(Estructura!H125,0,($J$1-1)*8) -> - | I19: =OFFSET(Estructura!I125,0,($J$1-1)*8) -> - | J19: =OFFSET(Estructura!J125,0,($J$1-1)*8) -> -
B20: Cogeneración y resto/Cogeneración | C20: =OFFSET(Estructura!C126,0,($J$1-1)*8) -> 0 | D20: =OFFSET(Estructura!D126,0,($J$1-1)*8) -> - | E20: =OFFSET(Estructura!E126,0,($J$1-1)*8) -> - | F20: =OFFSET(Estructura!F126,0,($J$1-1)*8) -> 0 | G20: =OFFSET(Estructura!G126,0,($J$1-1)*8) -> - | H20: =OFFSET(Estructura!H126,0,($J$1-1)*8) -> - | I20: =OFFSET(Estructura!I126,0,($J$1-1)*8) -> - | J20: =OFFSET(Estructura!J126,0,($J$1-1)*8) -> -
B21: Generación renovable (5) | C21: =OFFSET(Estructura!C127,0,($J$1-1)*8) -> 6.2 | D21: =OFFSET(Estructura!D127,0,($J$1-1)*8) -> 6.4 | E21: =OFFSET(Estructura!E127,0,($J$1-1)*8) -> 7.2 | F21: =OFFSET(Estructura!F127,0,($J$1-1)*8) -> 8.7 | G21: =OFFSET(Estructura!G127,0,($J$1-1)*8) -> 7.7 | H21: =OFFSET(Estructura!H127,0,($J$1-1)*8) -> - | I21: =OFFSET(Estructura!I127,0,($J$1-1)*8) -> - | J21: =OFFSET(Estructura!J127,0,($J$1-1)*8) -> -
B22: Generación no renovable | C22: =OFFSET(Estructura!C128,0,($J$1-1)*8) -> 93.8 | D22: =OFFSET(Estructura!D128,0,($J$1-1)*8) -> 93.6 | E22: =OFFSET(Estructura!E128,0,($J$1-1)*8) -> 92.8 | F22: =OFFSET(Estructura!F128,0,($J$1-1)*8) -> 91.3 | G22: =OFFSET(Estructura!G128,0,($J$1-1)*8) -> 92.3 | H22: =OFFSET(Estructura!H128,0,($J$1-1)*8) -> - | I22: =OFFSET(Estructura!I128,0,($J$1-1)*8) -> - | J22: =OFFSET(Estructura!J128,0,($J$1-1)*8) -> -
B23: (1) Asignación de unidades de producción según combustible principal.
B24: (2) Utiliza gasoil como combustible principal. Incluye funcionamiento en ciclo abierto.
B25: (3) Grupos de emergencia que se instalan de forma transitoria en determinadas zonas para cubrir un déficit de generación.
B26: (4) Otras renovables incluyen biogás y biomasa.
B27: (5) Incluye hidráulica, hidroeólica, eólica, solar fotovoltaica y térmica renovable/otras renovables.
B28: =IF(J1<2,"",IF(MONTH(FACT)=1,"",CONCATENATE(" Para el año ",YEAR(FACT)," valores acumulados hasta ",TEXT(FACT-30,"mmmm")," de ",YEAR(FACT),"."))) -> 

Sheet Estructura mensual Ceuta
O1: 4
M4: Sistema eléctrico
M5: Horizonte temporal
M6: Periodo
C8: Ene. | D8: Feb. | E8: Mar. | F8: Abr. | G8: May. | H8: Jun. | I8: Jul. | J8: Ago. | K8: Sep. | L8: Oct. | M8: Nov. | N8: Dic. | O8: =OFFSET(Año!B19,($O$1-1),0) -> 2010
B10: Motores diesel | C10: =OFFSET(Estructura!C50,0,($O$1-1)*12) -> 89.2 | D10: =OFFSET(Estructura!D50,0,($O$1-1)*12) -> 96.8 | E10: =OFFSET(Estructura!E50,0,($O$1-1)*12) -> 100 | F10: =OFFSET(Estructura!F50,0,($O$1-1)*12) -> 99.1 | G10: =OFFSET(Estructura!G50,0,($O$1-1)*12) -> 99.3 | H10: =OFFSET(Estructura!H50,0,($O$1-1)*12) -> 100 | I10: =OFFSET(Estructura!I50,0,($O$1-1)*12) -> 100 | J10: =OFFSET(Estructura!J50,0,($O$1-1)*12) -> 100 | K10: =OFFSET(Estructura!K50,0,($O$1-1)*12) -> 100 | L10: =OFFSET(Estructura!L50,0,($O$1-1)*12) -> 100 | M10: =OFFSET(Estructura!M50,0,($O$1-1)*12) -> 100 | N10: =OFFSET(Estructura!N50,0,($O$1-1)*12) -> 100 | O10: =OFFSET(Estructura!C131,0,($O$1-1)) -> 98.7
B11: Turbina de gas | C11: =OFFSET(Estructura!C51,0,($O$1-1)*12) -> 10.8 | D11: =OFFSET(Estructura!D51,0,($O$1-1)*12) -> 3.2 | E11: =OFFSET(Estructura!E51,0,($O$1-1)*12) -> - | F11: =OFFSET(Estructura!F51,0,($O$1-1)*12) -> 0.9 | G11: =OFFSET(Estructura!G51,0,($O$1-1)*12) -> 0.7 | H11: =OFFSET(Estructura!H51,0,($O$1-1)*12) -> - | I11: =OFFSET(Estructura!I51,0,($O$1-1)*12) -> - | J11: =OFFSET(Estructura!J51,0,($O$1-1)*12) -> - | K11: =OFFSET(Estructura!K51,0,($O$1-1)*12) -> - | L11: =OFFSET(Estructura!L51,0,($O$1-1)*12) -> - | M11: =OFFSET(Estructura!M51,0,($O$1-1)*12) -> - | N11: =OFFSET(Estructura!N51,0,($O$1-1)*12) -> 0 | O11: =OFFSET(Estructura!C132,0,($O$1-1)) -> 1.3
B12: Generación renovable | C12: =OFFSET(Estructura!C52,0,($O$1-1)*12) -> - | D12: =OFFSET(Estructura!D52,0,($O$1-1)*12) -> - | E12: =OFFSET(Estructura!E52,0,($O$1-1)*12) -> - | F12: =OFFSET(Estructura!F52,0,($O$1-1)*12) -> - | G12: =OFFSET(Estructura!G52,0,($O$1-1)*12) -> - | H12: =OFFSET(Estructura!H52,0,($O$1-1)*12) -> - | I12: =OFFSET(Estructura!I52,0,($O$1-1)*12) -> - | J12: =OFFSET(Estructura!J52,0,($O$1-1)*12) -> - | K12: =OFFSET(Estructura!K52,0,($O$1-1)*12) -> - | L12: =OFFSET(Estructura!L52,0,($O$1-1)*12) -> - | M12: =OFFSET(Estructura!M52,0,($O$1-1)*12) -> - | N12: =OFFSET(Estructura!N52,0,($O$1-1)*12) -> - | O12: =OFFSET(Estructura!C133,0,($O$1-1)) -> -
B13: Generación no renovable | C13: =OFFSET(Estructura!C53,0,($O$1-1)*12) -> 100 | D13: =OFFSET(Estructura!D53,0,($O$1-1)*12) -> 100 | E13: =OFFSET(Estructura!E53,0,($O$1-1)*12) -> 100 | F13: =OFFSET(Estructura!F53,0,($O$1-1)*12) -> 100 | G13: =OFFSET(Estructura!G53,0,($O$1-1)*12) -> 100 | H13: =OFFSET(Estructura!H53,0,($O$1-1)*12) -> 100 | I13: =OFFSET(Estructura!I53,0,($O$1-1)*12) -> 100 | J13: =OFFSET(Estructura!J53,0,($O$1-1)*12) -> 100 | K13: =OFFSET(Estructura!K53,0,($O$1-1)*12) -> 100 | L13: =OFFSET(Estructura!L53,0,($O$1-1)*12) -> 100 | M13: =OFFSET(Estructura!M53,0,($O$1-1)*12) -> 100 | N13: =OFFSET(Estructura!N53,0,($O$1-1)*12) -> 100 | O13: =OFFSET(Estructura!C134,0,($O$1-1)) -> 100
B14: (1) Asignación de unidades de producción según combustible principal.

Sheet Estructura anual Ceuta
I1: 1
G4: Sistema eléctrico
G5: Horizonte temporal
G6: Periodo
C8: =OFFSET(Estructura!C136,0,($I$1-1)*7) -> 2007 | D8: =OFFSET(Estructura!D136,0,($I$1-1)*7) -> 2008 | E8: =OFFSET(Estructura!E136,0,($I$1-1)*7) -> 2009 | F8: =OFFSET(Estructura!F136,0,($I$1-1)*7) -> 2010 | G8: =OFFSET(Estructura!G136,0,($I$1-1)*7) -> 2011 | H8: =OFFSET(Estructura!H136,0,($I$1-1)*7) -> 2012 | I8: =OFFSET(Estructura!I136,0,($I$1-1)*7) -> 2013
B10: Motores diesel | C10: =OFFSET(Estructura!C131,0,($I$1-1)*7) -> 100 | D10: =OFFSET(Estructura!D131,0,($I$1-1)*7) -> 100 | E10: =OFFSET(Estructura!E131,0,($I$1-1)*7) -> 98.5 | F10: =OFFSET(Estructura!F131,0,($I$1-1)*7) -> 98.7 | G10: =OFFSET(Estructura!G131,0,($I$1-1)*7) -> - | H10: =OFFSET(Estructura!H131,0,($I$1-1)*7) -> - | I10: =OFFSET(Estructura!I131,0,($I$1-1)*7) -> -
B11: Turbina de gas | C11: =OFFSET(Estructura!C132,0,($I$1-1)*7) -> - | D11: =OFFSET(Estructura!D132,0,($I$1-1)*7) -> - | E11: =OFFSET(Estructura!E132,0,($I$1-1)*7) -> 1.5 | F11: =OFFSET(Estructura!F132,0,($I$1-1)*7) -> 1.3 | G11: =OFFSET(Estructura!G132,0,($I$1-1)*7) -> - | H11: =OFFSET(Estructura!H132,0,($I$1-1)*7) -> - | I11: =OFFSET(Estructura!I132,0,($I$1-1)*7) -> -
B12: Generación renovable | C12: =OFFSET(Estructura!C133,0,($I$1-1)*7) -> - | D12: =OFFSET(Estructura!D133,0,($I$1-1)*7) -> - | E12: =OFFSET(Estructura!E133,0,($I$1-1)*7) -> - | F12: =OFFSET(Estructura!F133,0,($I$1-1)*7) -> - | G12: =OFFSET(Estructura!G133,0,($I$1-1)*7) -> - | H12: =OFFSET(Estructura!H133,0,($I$1-1)*7) -> - | I12: =OFFSET(Estructura!I133,0,($I$1-1)*7) -> -
B13: Generación no renovable | C13: =OFFSET(Estructura!C134,0,($I$1-1)*7) -> 100 | D13: =OFFSET(Estructura!D134,0,($I$1-1)*7) -> 100 | E13: =OFFSET(Estructura!E134,0,($I$1-1)*7) -> 100 | F13: =OFFSET(Estructura!F134,0,($I$1-1)*7) -> 100 | G13: =OFFSET(Estructura!G134,0,($I$1-1)*7) -> - | H13: =OFFSET(Estructura!H134,0,($I$1-1)*7) -> - | I13: =OFFSET(Estructura!I134,0,($I$1-1)*7) -> -
B14: (1) Asignación de unidades de producción según combustible principal.
B15: =IF(I1<21,"",IF(MONTH(FACT)=1,"",CONCATENATE(" Para el año ",YEAR(FACT)," valores acumulados hasta ",TEXT(FACT-30,"mmmm")," de ",YEAR(FACT),"."))) -> 

Sheet Estructura mensual Melilla
O1: 4
M4: Sistema eléctrico
M5: Horizonte temporal
M6: Periodo
C8: Ene. | D8: Feb. | E8: Mar. | F8: Abr. | G8: May. | H8: Jun. | I8: Jul. | J8: Ago. | K8: Sep. | L8: Oct. | M8: Nov. | N8: Dic. | O8: =OFFSET(Año!B19,($O$1-1),0) -> 2010
B10: Motores diesel | C10: =OFFSET(Estructura!C56,0,($O$1-1)*12) -> 95.9 | D10: =OFFSET(Estructura!D56,0,($O$1-1)*12) -> 96.1 | E10: =OFFSET(Estructura!E56,0,($O$1-1)*12) -> 95.5 | F10: =OFFSET(Estructura!F56,0,($O$1-1)*12) -> 94.7 | G10: =OFFSET(Estructura!G56,0,($O$1-1)*12) -> 94.2 | H10: =OFFSET(Estructura!H56,0,($O$1-1)*12) -> 95.5 | I10: =OFFSET(Estructura!I56,0,($O$1-1)*12) -> 95.6 | J10: =OFFSET(Estructura!J56,0,($O$1-1)*12) -> 96.1 | K10: =OFFSET(Estructura!K56,0,($O$1-1)*12) -> 95 | L10: =OFFSET(Estructura!L56,0,($O$1-1)*12) -> 97 | M10: =OFFSET(Estructura!M56,0,($O$1-1)*12) -> 99.7 | N10: =OFFSET(Estructura!N56,0,($O$1-1)*12) -> 96.8 | O10: =OFFSET(Estructura!C137,0,($O$1-1)) -> 96
B11: Turbina de gas | C11: =OFFSET(Estructura!C57,0,($O$1-1)*12) -> 0.1 | D11: =OFFSET(Estructura!D57,0,($O$1-1)*12) -> 0.1 | E11: =OFFSET(Estructura!E57,0,($O$1-1)*12) -> 0 | F11: =OFFSET(Estructura!F57,0,($O$1-1)*12) -> 0.2 | G11: =OFFSET(Estructura!G57,0,($O$1-1)*12) -> 0.2 | H11: =OFFSET(Estructura!H57,0,($O$1-1)*12) -> 0.5 | I11: =OFFSET(Estructura!I57,0,($O$1-1)*12) -> 0.5 | J11: =OFFSET(Estructura!J57,0,($O$1-1)*12) -> 0.2 | K11: =OFFSET(Estructura!K57,0,($O$1-1)*12) -> 0.2 | L11: =OFFSET(Estructura!L57,0,($O$1-1)*12) -> 0.2 | M11: =OFFSET(Estructura!M57,0,($O$1-1)*12) -> 0.3 | N11: =OFFSET(Estructura!N57,0,($O$1-1)*12) -> 0.2 | O11: =OFFSET(Estructura!C138,0,($O$1-1)) -> 0.2
B12: Solar fotovoltaica | C12: =OFFSET(Estructura!C58,0,($O$1-1)*12) -> 0 | D12: =OFFSET(Estructura!D58,0,($O$1-1)*12) -> 0 | E12: =OFFSET(Estructura!E58,0,($O$1-1)*12) -> 0 | F12: =OFFSET(Estructura!F58,0,($O$1-1)*12) -> 0 | G12: =OFFSET(Estructura!G58,0,($O$1-1)*12) -> 0.1 | H12: =OFFSET(Estructura!H58,0,($O$1-1)*12) -> 0 | I12: =OFFSET(Estructura!I58,0,($O$1-1)*12) -> 0 | J12: =OFFSET(Estructura!J58,0,($O$1-1)*12) -> 0 | K12: =OFFSET(Estructura!K58,0,($O$1-1)*12) -> 0 | L12: =OFFSET(Estructura!L58,0,($O$1-1)*12) -> 0 | M12: =OFFSET(Estructura!M58,0,($O$1-1)*12) -> 0 | N12: =OFFSET(Estructura!N58,0,($O$1-1)*12) -> 0 | O12: =OFFSET(Estructura!C139,0,($O$1-1)) -> 0
B13: Cogeneración y resto/Cogeneración | C13: =OFFSET(Estructura!C59,0,($O$1-1)*12) -> 4 | D13: =OFFSET(Estructura!D59,0,($O$1-1)*12) -> 3.8 | E13: =OFFSET(Estructura!E59,0,($O$1-1)*12) -> 4.5 | F13: =OFFSET(Estructura!F59,0,($O$1-1)*12) -> 5.1 | G13: =OFFSET(Estructura!G59,0,($O$1-1)*12) -> 5.5 | H13: =OFFSET(Estructura!H59,0,($O$1-1)*12) -> 4 | I13: =OFFSET(Estructura!I59,0,($O$1-1)*12) -> 3.9 | J13: =OFFSET(Estructura!J59,0,($O$1-1)*12) -> 3.7 | K13: =OFFSET(Estructura!K59,0,($O$1-1)*12) -> 4.8 | L13: =OFFSET(Estructura!L59,0,($O$1-1)*12) -> 2.8 | M13: =OFFSET(Estructura!M59,0,($O$1-1)*12) -> - | N13: =OFFSET(Estructura!N59,0,($O$1-1)*12) -> 3 | O13: =OFFSET(Estructura!C140,0,($O$1-1)) -> 3.8
B14: Residuos no renovables | C14: =OFFSET(Estructura!C60,0,($O$1-1)*12) -> - | D14: =OFFSET(Estructura!D60,0,($O$1-1)*12) -> - | E14: =OFFSET(Estructura!E60,0,($O$1-1)*12) -> - | F14: =OFFSET(Estructura!F60,0,($O$1-1)*12) -> - | G14: =OFFSET(Estructura!G60,0,($O$1-1)*12) -> - | H14: =OFFSET(Estructura!H60,0,($O$1-1)*12) -> - | I14: =OFFSET(Estructura!I60,0,($O$1-1)*12) -> - | J14: =OFFSET(Estructura!J60,0,($O$1-1)*12) -> - | K14: =OFFSET(Estructura!K60,0,($O$1-1)*12) -> - | L14: =OFFSET(Estructura!L60,0,($O$1-1)*12) -> - | M14: =OFFSET(Estructura!M60,0,($O$1-1)*12) -> - | N14: =OFFSET(Estructura!N60,0,($O$1-1)*12) -> - | O14: =OFFSET(Estructura!C141,0,($O$1-1)) -> -
B15: Residuos renovables | C15: =OFFSET(Estructura!C61,0,($O$1-1)*12) -> - | D15: =OFFSET(Estructura!D61,0,($O$1-1)*12) -> - | E15: =OFFSET(Estructura!E61,0,($O$1-1)*12) -> - | F15: =OFFSET(Estructura!F61,0,($O$1-1)*12) -> - | G15: =OFFSET(Estructura!G61,0,($O$1-1)*12) -> - | H15: =OFFSET(Estructura!H61,0,($O$1-1)*12) -> - | I15: =OFFSET(Estructura!I61,0,($O$1-1)*12) -> - | J15: =OFFSET(Estructura!J61,0,($O$1-1)*12) -> - | K15: =OFFSET(Estructura!K61,0,($O$1-1)*12) -> - | L15: =OFFSET(Estructura!L61,0,($O$1-1)*12) -> - | M15: =OFFSET(Estructura!M61,0,($O$1-1)*12) -> - | N15: =OFFSET(Estructura!N61,0,($O$1-1)*12) -> - | O15: =OFFSET(Estructura!C142,0,($O$1-1)) -> -
B16: Generación renovable (2) | C16: =OFFSET(Estructura!C62,0,($O$1-1)*12) -> 0 | D16: =OFFSET(Estructura!D62,0,($O$1-1)*12) -> 0 | E16: =OFFSET(Estructura!E62,0,($O$1-1)*12) -> 0 | F16: =OFFSET(Estructura!F62,0,($O$1-1)*12) -> 0 | G16: =OFFSET(Estructura!G62,0,($O$1-1)*12) -> 0.1 | H16: =OFFSET(Estructura!H62,0,($O$1-1)*12) -> 0 | I16: =OFFSET(Estructura!I62,0,($O$1-1)*12) -> 0 | J16: =OFFSET(Estructura!J62,0,($O$1-1)*12) -> 0 | K16: =OFFSET(Estructura!K62,0,($O$1-1)*12) -> 0 | L16: =OFFSET(Estructura!L62,0,($O$1-1)*12) -> 0 | M16: =OFFSET(Estructura!M62,0,($O$1-1)*12) -> 0 | N16: =OFFSET(Estructura!N62,0,($O$1-1)*12) -> 0 | O16: =OFFSET(Estructura!C143,0,($O$1-1)) -> 0
B17: Generación no renovable | C17: =OFFSET(Estructura!C63,0,($O$1-1)*12) -> 100 | D17: =OFFSET(Estructura!D63,0,($O$1-1)*12) -> 100 | E17: =OFFSET(Estructura!E63,0,($O$1-1)*12) -> 100 | F17: =OFFSET(Estructura!F63,0,($O$1-1)*12) -> 100 | G17: =OFFSET(Estructura!G63,0,($O$1-1)*12) -> 99.9 | H17: =OFFSET(Estructura!H63,0,($O$1-1)*12) -> 100 | I17: =OFFSET(Estructura!I63,0,($O$1-1)*12) -> 100 | J17: =OFFSET(Estructura!J63,0,($O$1-1)*12) -> 100 | K17: =OFFSET(Estructura!K63,0,($O$1-1)*12) -> 100 | L17: =OFFSET(Estructura!L63,0,($O$1-1)*12) -> 100 | M17: =OFFSET(Estructura!M63,0,($O$1-1)*12) -> 100 | N17: =OFFSET(Estructura!N63,0,($O$1-1)*12) -> 100 | O17: =OFFSET(Estructura!C144,0,($O$1-1)) -> 100
B18: (1) Asignación de unidades de producción según combustible principal.
B19: (2) Incluye solar fotovoltaica y residuos renovables.

Sheet Estructura anual Melilla
I1: 1
G4: Sistema eléctrico
G5: Horizonte temporal
G6: Periodo
C8: =OFFSET(Estructura!C136,0,($I$1-1)*7) -> 2007 | D8: =OFFSET(Estructura!D136,0,($I$1-1)*7) -> 2008 | E8: =OFFSET(Estructura!E136,0,($I$1-1)*7) -> 2009 | F8: =OFFSET(Estructura!F136,0,($I$1-1)*7) -> 2010 | G8: =OFFSET(Estructura!G136,0,($I$1-1)*7) -> 2011 | H8: =OFFSET(Estructura!H136,0,($I$1-1)*7) -> 2012 | I8: =OFFSET(Estructura!I136,0,($I$1-1)*7) -> 2013
B10: Motores diesel | C10: =OFFSET(Estructura!C137,0,($I$1-1)*7) -> 94.3 | D10: =OFFSET(Estructura!D137,0,($I$1-1)*7) -> 96.1 | E10: =OFFSET(Estructura!E137,0,($I$1-1)*7) -> 95.8 | F10: =OFFSET(Estructura!F137,0,($I$1-1)*7) -> 96 | G10: =OFFSET(Estructura!G137,0,($I$1-1)*7) -> - | H10: =OFFSET(Estructura!H137,0,($I$1-1)*7) -> - | I10: =OFFSET(Estructura!I137,0,($I$1-1)*7) -> -
B11: Turbina de gas | C11: =OFFSET(Estructura!C138,0,($I$1-1)*7) -> 1.2 | D11: =OFFSET(Estructura!D138,0,($I$1-1)*7) -> 1.5 | E11: =OFFSET(Estructura!E138,0,($I$1-1)*7) -> 0.3 | F11: =OFFSET(Estructura!F138,0,($I$1-1)*7) -> 0.2 | G11: =OFFSET(Estructura!G138,0,($I$1-1)*7) -> - | H11: =OFFSET(Estructura!H138,0,($I$1-1)*7) -> - | I11: =OFFSET(Estructura!I138,0,($I$1-1)*7) -> -
B12: Solar fotovoltaica | C12: =OFFSET(Estructura!C139,0,($I$1-1)*7) -> - | D12: =OFFSET(Estructura!D139,0,($I$1-1)*7) -> 0 | E12: =OFFSET(Estructura!E139,0,($I$1-1)*7) -> 0.1 | F12: =OFFSET(Estructura!F139,0,($I$1-1)*7) -> 0 | G12: =OFFSET(Estructura!G139,0,($I$1-1)*7) -> - | H12: =OFFSET(Estructura!H139,0,($I$1-1)*7) -> - | I12: =OFFSET(Estructura!I139,0,($I$1-1)*7) -> -
B13: Cogeneración y resto/Cogeneración | C13: =OFFSET(Estructura!C140,0,($I$1-1)*7) -> 4.5 | D13: =OFFSET(Estructura!D140,0,($I$1-1)*7) -> 2.4 | E13: =OFFSET(Estructura!E140,0,($I$1-1)*7) -> 3.8 | F13: =OFFSET(Estructura!F140,0,($I$1-1)*7) -> 3.8 | G13: =OFFSET(Estructura!G140,0,($I$1-1)*7) -> - | H13: =OFFSET(Estructura!H140,0,($I$1-1)*7) -> - | I13: =OFFSET(Estructura!I140,0,($I$1-1)*7) -> -
B14: Residuos no renovables | C14: =OFFSET(Estructura!C141,0,($I$1-1)*7) -> - | D14: =OFFSET(Estructura!D141,0,($I$1-1)*7) -> - | E14: =OFFSET(Estructura!E141,0,($I$1-1)*7) -> - | F14: =OFFSET(Estructura!F141,0,($I$1-1)*7) -> - | G14: =OFFSET(Estructura!G141,0,($I$1-1)*7) -> - | H14: =OFFSET(Estructura!H141,0,($I$1-1)*7) -> - | I14: =OFFSET(Estructura!I141,0,($I$1-1)*7) -> -
B15: Residuos renovables | C15: =OFFSET(Estructura!C142,0,($I$1-1)*7) -> - | D15: =OFFSET(Estructura!D142,0,($I$1-1)*7) -> - | E15: =OFFSET(Estructura!E142,0,($I$1-1)*7) -> - | F15: =OFFSET(Estructura!F142,0,($I$1-1)*7) -> - | G15: =OFFSET(Estructura!G142,0,($I$1-1)*7) -> - | H15: =OFFSET(Estructura!H142,0,($I$1-1)*7) -> - | I15: =OFFSET(Estructura!I142,0,($I$1-1)*7) -> -
B16: Generación renovable (2) | C16: =OFFSET(Estructura!C143,0,($I$1-1)*7) -> 0 | D16: =OFFSET(Estructura!D143,0,($I$1-1)*7) -> 0 | E16: =OFFSET(Estructura!E143,0,($I$1-1)*7) -> 0.1 | F16: =OFFSET(Estructura!F143,0,($I$1-1)*7) -> 0 | G16: =OFFSET(Estructura!G143,0,($I$1-1)*7) -> - | H16: =OFFSET(Estructura!H143,0,($I$1-1)*7) -> - | I16: =OFFSET(Estructura!I143,0,($I$1-1)*7) -> -
B17: Generación no renovable | C17: =OFFSET(Estructura!C144,0,($I$1-1)*7) -> 100 | D17: =OFFSET(Estructura!D144,0,($I$1-1)*7) -> 100 | E17: =OFFSET(Estructura!E144,0,($I$1-1)*7) -> 99.9 | F17: =OFFSET(Estructura!F144,0,($I$1-1)*7) -> 100 | G17: =IF(SUM(G10:G11,G13:G14)=0,"-",SUM(G10:G11,G13:G14)) -> - | H17: - | I17: -
B18: (1) Asignación de unidades de producción según combustible principal.
B19: (2) Incluye solar fotovoltaica y residuos renovables.
B20: =IF(I1<2,"",IF(MONTH(FACT)=1,"",CONCATENATE(" Para el año ",YEAR(FACT)," valores acumulados hasta ",TEXT(FACT-30,"mmmm")," de ",YEAR(FACT),"."))) -> 

Sheet Estructura (hidden)
B2: Estructura de generación mensual peninsular (%) | C2: 1990-01-01 | D2: 1990-02-01 | E2: 1990-03-01 | F2: 1990-04-01 | G2: 1990-05-01 | H2: 1990-06-01 | I2: 1990-07-01 | J2: 1990-08-01 | K2: 1990-09-01 | L2: 1990-10-01 | M2: 1990-11-01 | N2: 1990-12-01 | O2: 1991-01-01 | P2: 1991-02-01 | Q2: 1991-03-01 | R2: 1991-04-01 | S2: 1991-05-01 | T2: 1991-06-01 | U2: 1991-07-01 | V2: 1991-08-01 | W2: 1991-09-01 | X2: 1991-10-01 | Y2: 1991-11-01 | Z2: 1991-12-01 | AA2: 1992-01-01 | AB2: 1992-02-01 | AC2: 1992-03-01 | AD2: 1992-04-01 | AE2: 1992-05-01 | AF2: 1992-06-01 | AG2: 1992-07-01 | AH2: 1992-08-01 | AI2: 1992-09-01 | AJ2: 1992-10-01 | AK2: 1992-11-01 | AL2: 1992-12-01 | AM2: 1993-01-01 | AN2: 1993-02-01 | AO2: 1993-03-01 | AP2: 1993-04-01 | AQ2: 1993-05-01 | AR2: 1993-06-01 | AS2: 1993-07-01 | AT2: 1993-08-01 | AU2: 1993-09-01 | AV2: 1993-10-01 | AW2: 1993-11-01 | AX2: 1993-12-01 | AY2: 1994-01-01 | AZ2: 1994-02-01 | BA2: 1994-03-01 | BB2: 1994-04-01 | BC2: 1994-05-01 | BD2: 1994-06-01 | BE2: 1994-07-01 | BF2: 1994-08-01 | BG2: 1994-09-01 | BH2: 1994-10-01 | BI2: 1994-11-01 | BJ2: 1994-12-01 | BK2: 1995-01-01 | BL2: 1995-02-01 | BM2: 1995-03-01 | BN2: 1995-04-01 | BO2: 1995-05-01 | BP2: 1995-06-01 | BQ2: 1995-07-01 | BR2: 1995-08-01 | BS2: 1995-09-01 | BT2: 1995-10-01 | BU2: 1995-11-01 | BV2: 1995-12-01 | BW2: 1996-01-01 | BX2: 1996-02-01 | BY2: 1996-03-01 | BZ2: 1996-04-01 | CA2: 1996-05-01 | CB2: 1996-06-01 | CC2: 1996-07-01 | CD2: 1996-08-01 | CE2: 1996-09-01 | CF2: 1996-10-01 | CG2: 1996-11-01 | CH2: 1996-12-01 | CI2: 1997-01-01 | CJ2: 1997-02-01 | CK2: 1997-03-01 | CL2: 1997-04-01 | CM2: 1997-05-01 | CN2: 1997-06-01 | CO2: 1997-07-01 | CP2: 1997-08-01 | CQ2: 1997-09-01 | CR2: 1997-10-01 | CS2: 1997-11-01 | CT2: 1997-12-01 | CU2: 1998-01-01 | CV2: 1998-02-01 | CW2: 1998-03-01 | CX2: 1998-04-01 | CY2: 1998-05-01 | CZ2: 1998-06-01 | DA2: 1998-07-01 | DB2: 1998-08-01 | DC2: 1998-09-01 | DD2: 1998-10-01 | DE2: 1998-11-01 | DF2: 1998-12-01 | DG2: 1999-01-01 | DH2: 1999-02-01 | DI2: 1999-03-01 | DJ2: 1999-04-01 | DK2: 1999-05-01 | DL2: 1999-06-01 | DM2: 1999-07-01 | DN2: 1999-08-01 | DO2: 1999-09-01 | DP2: 1999-10-01 | DQ2: 1999-11-01 | DR2: 1999-12-01 | DS2: 2000-01-01 | DT2: 2000-02-01 | DU2: 2000-03-01 | DV2: 2000-04-01 | DW2: 2000-05-01 | DX2: 2000-06-01 | DY2: 2000-07-01 | DZ2: 2000-08-01 | EA2: 2000-09-01 | EB2: 2000-10-01 | EC2: 2000-11-01 | ED2: 2000-12-01 | EE2: 2001-01-01 | EF2: 2001-02-01 | EG2: 2001-03-01 | EH2: 2001-04-01 | EI2: 2001-05-01 | EJ2: 2001-06-01 | EK2: 2001-07-01 | EL2: 2001-08-01 | EM2: 2001-09-01 | EN2: 2001-10-01 | EO2: 2001-11-01 | EP2: 2001-12-01 | EQ2: 2002-01-01 | ER2: 2002-02-01 | ES2: 2002-03-01 | ET2: 2002-04-01 | EU2: 2002-05-01 | EV2: 2002-06-01 | EW2: 2002-07-01 | EX2: 2002-08-01 | EY2: 2002-09-01 | EZ2: 2002-10-01 | FA2: 2002-11-01 | FB2: 2002-12-01 | FC2: 2003-01-01 | FD2: 2003-02-01 | FE2: 2003-03-01 | FF2: 2003-04-01 | FG2: 2003-05-01 | FH2: 2003-06-01 | FI2: 2003-07-01 | FJ2: 2003-08-01 | FK2: 2003-09-01 | FL2: 2003-10-01 | FM2: 2003-11-01 | FN2: 2003-12-01 | FO2: 2004-01-01 | FP2: 2004-02-01 | FQ2: 2004-03-01 | FR2: 2004-04-01 | FS2: 2004-05-01 | FT2: 2004-06-01 | FU2: 2004-07-01 | FV2: 2004-08-01 | FW2: 2004-09-01 | FX2: 2004-10-01 | FY2: 2004-11-01 | FZ2: 2004-12-01 | GA2: 2005-01-01 | GB2: 2005-02-01 | GC2: 2005-03-01 | GD2: 2005-04-01 | GE2: 2005-05-01 | GF2: 2005-06-01 | GG2: 2005-07-01 | GH2: 2005-08-01 | GI2: 2005-09-01 | GJ2: 2005-10-01 | GK2: 2005-11-01 | GL2: 2005-12-01 | GM2: 2006-01-01 | GN2: 2006-02-01 | GO2: 2006-03-01 | GP2: 2006-04-01 | GQ2: 2006-05-01 | GR2: 2006-06-01 | GS2: 2006-07-01 | GT2: 2006-08-01 | GU2: 2006-09-01 | GV2: 2006-10-01 | GW2: 2006-11-01 | GX2: 2006-12-01 | GY2: 2007-01-01 | GZ2: 2007-02-01 | HA2: 2007-03-01 | HB2: 2007-04-01 | HC2: 2007-05-01 | HD2: 2007-06-01 | HE2: 2007-07-01 | HF2: 2007-08-01 | HG2: 2007-09-01 | HH2: 2007-10-01 | HI2: 2007-11-01 | HJ2: 2007-12-01 | HK2: 2008-01-01 | HL2: 2008-02-01 | HM2: 2008-03-01 | HN2: 2008-04-01 | HO2: 2008-05-01 | HP2: 2008-06-01 | HQ2: 2008-07-01 | HR2: 2008-08-01 | HS2: 2008-09-01 | HT2: 2008-10-01 | HU2: 2008-11-01 | HV2: 2008-12-01 | HW2: 2009-01-01 | HX2: 2009-02-01 | HY2: 2009-03-01 | HZ2: 2009-04-01 | IA2: 2009-05-01 | IB2: 2009-06-01 | IC2: 2009-07-01 | ID2: 2009-08-01 | IE2: 2009-09-01 | IF2: 2009-10-01 | IG2: 2009-11-01 | IH2: 2009-12-01 | II2: 2010-01-01 | IJ2: 2010-02-01 | IK2: 2010-03-01 | IL2: 2010-04-01 | IM2: 2010-05-01 | IN2: 2010-06-01 | IO2: 2010-07-01 | IP2: 2010-08-01 | IQ2: 2010-09-01 | IR2: 2010-10-01 | IS2: 2010-11-01 | IT2: 2010-12-01
B3: Hidráulica | C3: 30 | D3: 31.1 | E3: 21.3 | F3: 16.6 | G3: 17.4 | H3: 16.8 | I3: 13.8 | J3: 12 | K3: 11.1 | L3: 12.7 | M3: 16.8 | N3: 15.2 | O3: 19.6 | P3: 16.6 | Q3: 32.6 | R3: 31.1 | S3: 25.3 | T3: 19.2 | U3: 14.4 | V3: 10.8 | W3: 9.8 | X3: 13.1 | Y3: 16.3 | Z3: 14.9 | AA3: 9.7 | AB3: 6.3 | AC3: 6.4 | AD3: 14 | AE3: 13.3 | AF3: 14.9 | AG3: 13.7 | AH3: 10.6 | AI3: 10.7 | AJ3: 15.7 | AK3: 18.8 | AL3: 23.3 | AM3: 16.5 | AN3: 12.7 | AO3: 11.7 | AP3: 10.5 | AQ3: 17 | AR3: 19.9 | AS3: 16 | AT3: 11.4 | AU3: 10.6 | AV3: 23.9 | AW3: 27.9 | AX3: 21.3 | AY3: 28.6 | AZ3: 25.7 | BA3: 23.4 | BB3: 20.7 | BC3: 22.7 | BD3: 20.4 | BE3: 14.4 | BF3: 11.6 | BG3: 10.7 | BH3: 13.3 | BI3: 19.4 | BJ3: 14.5 | BK3: 20.7 | BL3: 22.9 | BM3: 24.7 | BN3: 16.4 | BO3: 14.4 | BP3: 14.4 | BQ3: 12.6 | BR3: 9.1 | BS3: 7.7 | BT3: 8 | BU3: 10 | BV3: 18.3 | BW3: 39.6 | BX3: 40.2 | BY3: 27.2 | BZ3: 32.2 | CA3: 31.7 | CB3: 23.6 | CC3: 17.6 | CD3: 13.4 | CE3: 14.8 | CF3: 14 | CG3: 17 | CH3: 30.6 | CI3: 36.6 | CJ3: 28.1 | CK3: 20.7 | CL3: 17.7 | CM3: 17 | CN3: 18.2 | CO3: 14.7 | CP3: 13.1 | CQ3: 11.9 | CR3: 10.9 | CS3: 24.8 | CT3: 35.2 | CU3: 39.5 | CV3: 30.2 | CW3: 19.6 | CX3: 26.2 | CY3: 30.4 | CZ3: 25 | DA3: 17.1 | DB3: 15.1 | DC3: 13 | DD3: 14.3 | DE3: 10.6 | DF3: 8.3 | DG3: 8.8 | DH3: 9.2 | DI3: 13.5 | DJ3: 16.3 | DK3: 20.7 | DL3: 17.3 | DM3: 12.5 | DN3: 10.2 | DO3: 10.3 | DP3: 11.7 | DQ3: 17.9 | DR3: 17.1 | DS3: 14.4 | DT3: 10.5 | DU3: 9.5 | DV3: 14.7 | DW3: 21.7 | DX3: 14.6 | DY3: 10.5 | DZ3: 11.2 | EA3: 11.6 | EB3: 11 | EC3: 14.9 | ED3: 25.8 | EE3: 33.9 | EF3: 34.9 | EG3: 37.8 | EH3: 29.1 | EI3: 21.1 | EJ3: 15.3 | EK3: 11.9 | EL3: 11.6 | EM3: 9.1 | EN3: 10.5 | EO3: 11.5 | EP3: 8.5 | EQ3: 6.9 | ER3: 7.1 | ES3: 11 | ET3: 11.3 | EU3: 11.4 | EV3: 11 | EW3: 7.4 | EX3: 6.2 | EY3: 6.1 | EZ3: 6.8 | FA3: 11.1 | FB3: 22.5 | FC3: 27.3 | FD3: 23.1 | FE3: 24.7 | FF3: 22.7 | FG3: 20.8 | FH3: 12.5 | FI3: 9.8 | FJ3: 7.7 | FK3: 9 | FL3: 10.6 | FM3: 17.1 | FN3: 24.2 | FO3: 18 | FP3: 16.9 | FQ3: 15 | FR3: 15.8 | FS3: 17.5 | FT3: 13.7 | FU3: 9.9 | FV3: 8.9 | FW3: 7.8 | FX3: 8.8 | FY3: 11.5 | FZ3: 8.5 | GA3: 6.9 | GB3: 7.3 | GC3: 8.4 | GD3: 10.8 | GE3: 11.1 | GF3: 8.7 | GG3: 5.9 | GH3: 5.6 | GI3: 4 | GJ3: 4.2 | GK3: 6.4 | GL3: 7.3 | GM3: 6.7 | GN3: 5.3 | GO3: 13 | GP3: 14.4 | GQ3: 10.3 | GR3: 7 | GS3: 6.3 | GT3: 4.9 | GU3: 5.2 | GV3: 7.7 | GW3: 13.9 | GX3: 20.9 | GY3: 9.3 | GZ3: 13.8 | HA3: 16.9 | HB3: 13.8 | HC3: 13 | HD3: 10.7 | HE3: 10.5 | HF3: 8.1 | HG3: 6.2 | HH3: 7.5 | HI3: 5.6 | HJ3: 4.9 | HK3: 5.5 | HL3: 4.1 | HM3: 4.5 | HN3: 11.9 | HO3: 15.4 | HP3: 14.2 | HQ3: 8.9 | HR3: 6.8 | HS3: 5.9 | HT3: 4.9 | HU3: 6.8 | HV3: 10.2 | HW3: 9 | HX3: 16 | HY3: 13.1 | HZ3: 11 | IA3: 12.7 | IB3: 9.9 | IC3: 7.4 | ID3: 6.5 | IE3: 4.6 | IF3: 5.8 | IG3: 9.2 | IH3: 13.6 | II3: 20.9 | IJ3: 17.7 | IK3: 24.3 | IL3: 22.5 | IM3: 18.2 | IN3: 16.5 | IO3: 11.9 | IP3: 9.1 | IQ3: 7 | IR3: 7.2 | IS3: 11.4 | IT3: 16.4
B4: Turbinación bombeo | C4: 1.2 | D4: 0.8 | E4: 0.1 | F4: 0.2 | G4: 0.3 | H4: 0.1 | I4: 0.1 | J4: 0.3 | K4: 1 | L4: 1 | M4: 0.3 | N4: 0.8 | O4: 1.4 | P4: 1.2 | Q4: 1 | R4: 0.1 | S4: 0.1 | T4: 0.3 | U4: 0.3 | V4: 0.5 | W4: 0.7 | X4: 0.5 | Y4: 1.1 | Z4: 1.1 | AA4: 1.3 | AB4: 0.8 | AC4: 0.9 | AD4: 1.8 | AE4: 1.2 | AF4: 1.6 | AG4: 1.6 | AH4: 1.8 | AI4: 1.7 | AJ4: 1.7 | AK4: 1.1 | AL4: 1 | AM4: 0.7 | AN4: 0.7 | AO4: 1.1 | AP4: 1.3 | AQ4: 1.4 | AR4: 0.8 | AS4: 0.8 | AT4: 1.2 | AU4: 1.2 | AV4: 1.1 | AW4: 0.5 | AX4: 0.4 | AY4: 1.6 | AZ4: 0.7 | BA4: 0.1 | BB4: 0.2 | BC4: 0.3 | BD4: 0.2 | BE4: 0.6 | BF4: 0.2 | BG4: 1 | BH4: 1.1 | BI4: 0.7 | BJ4: 0.9 | BK4: 1.2 | BL4: 0.9 | BM4: 0.8 | BN4: 0.8 | BO4: 0.7 | BP4: 0.7 | BQ4: 0.9 | BR4: 0.9 | BS4: 1 | BT4: 1 | BU4: 0.9 | BV4: 1.7 | BW4: 3.6 | BX4: 1 | BY4: 0.2 | BZ4: 0.2 | CA4: 0.2 | CB4: 0.4 | CC4: 0.4 | CD4: 0.1 | CE4: 0.1 | CF4: 0.2 | CG4: 0.4 | CH4: 0.9 | CI4: 1.1 | CJ4: 0.2 | CK4: 0.1 | CL4: 0.1 | CM4: 0.4 | CN4: 0.4 | CO4: 0.6 | CP4: 0.9 | CQ4: 1 | CR4: 0.7 | CS4: 1.3 | CT4: 1.7 | CU4: 1.3 | CV4: 0.7 | CW4: 0.6 | CX4: 1.1 | CY4: 0.9 | CZ4: 0.6 | DA4: 0.9 | DB4: 1.6 | DC4: 0.9 | DD4: 0.8 | DE4: 1 | DF4: 1.9 | DG4: 2 | DH4: 1.6 | DI4: 1.1 | DJ4: 1.1 | DK4: 1.1 | DL4: 0.8 | DM4: 0.9 | DN4: 1.3 | DO4: 1.6 | DP4: 2.3 | DQ4: 1.4 | DR4: 1.6 | DS4: 1.4 | DT4: 1.4 | DU4: 1.5 | DV4: 2.4 | DW4: 2.8 | DX4: 1.4 | DY4: 1.4 | DZ4: 1.1 | EA4: 1.1 | EB4: 1.6 | EC4: 1.9 | ED4: 3.1 | EE4: 2 | EF4: 1.3 | EG4: 1.5 | EH4: 0.9 | EI4: 0.9 | EJ4: 1.1 | EK4: 1.2 | EL4: 1.2 | EM4: 1.6 | EN4: 1.5 | EO4: 1.3 | EP4: 2.1 | EQ4: 2.3 | ER4: 2.1 | ES4: 1.9 | ET4: 1.9 | EU4: 2.2 | EV4: 2.5 | EW4: 2.6 | EX4: 2.4 | EY4: 2.4 | EZ4: 2.2 | FA4: 2.2 | FB4: 2.5 | FC4: 2 | FD4: 1.4 | FE4: 1.4 | FF4: 0.9 | FG4: 1 | FH4: 1.5 | FI4: 1.5 | FJ4: 1.7 | FK4: 1.7 | FL4: 1.4 | FM4: 1.2 | FN4: 1.4 | FO4: 1.3 | FP4: 1 | FQ4: 1.1 | FR4: 1.2 | FS4: 1.4 | FT4: 1.5 | FU4: 1.3 | FV4: 1.4 | FW4: 1.4 | FX4: 1.4 | FY4: 1.2 | FZ4: 1.6 | GA4: 1.7 | GB4: 1.4 | GC4: 1.6 | GD4: 1.6 | GE4: 2.3 | GF4: 2.1 | GG4: 2.2 | GH4: 1.5 | GI4: 1.8 | GJ4: 1.7 | GK4: 1.5 | GL4: 1.7 | GM4: 1.7 | GN4: 1.7 | GO4: 1.1 | GP4: 1.1 | GQ4: 1.1 | GR4: 1.2 | GS4: 1.5 | GT4: 1.3 | GU4: 1.6 | GV4: 1.8 | GW4: 1.8 | GX4: 1.1 | GY4: 1.1 | GZ4: 1.3 | HA4: 1.2 | HB4: 1 | HC4: 1.3 | HD4: 1.2 | HE4: 1 | HF4: 1.2 | HG4: 1.1 | HH4: 1 | HI4: 1.1 | HJ4: 1.4 | HK4: 1.2 | HL4: 1.2 | HM4: 1.2 | HN4: 0.7 | HO4: 0.7 | HP4: 0.9 | HQ4: 0.7 | HR4: 0.6 | HS4: 0.7 | HT4: 0.9 | HU4: 1.2 | HV4: 1.3 | HW4: 1.4 | HX4: 1.3 | HY4: 0.9 | HZ4: 0.9 | IA4: 0.9 | IB4: 0.7 | IC4: 0.7 | ID4: 0.8 | IE4: 0.8 | IF4: 0.9 | IG4: 1.3 | IH4: 1.4 | II4: 2.1 | IJ4: 1.7 | IK4: 1.6 | IL4: 1 | IM4: 0.9 | IN4: 0.7 | IO4: 0.6 | IP4: 0.7 | IQ4: 0.7 | IR4: 1.1 | IS4: 1 | IT4: 1.3
B5: Nuclear | C5: 39.7 | D5: 40.5 | E5: 36.9 | F5: 43.1 | G5: 36.7 | H5: 30.6 | I5: 36.6 | J5: 46.9 | K5: 35.8 | L5: 33.5 | M5: 38.2 | N5: 39.6 | O5: 37.8 | P5: 35.6 | Q5: 34.6 | R5: 35.4 | S5: 39.8 | T5: 38.4 | U5: 37 | V5: 47.1 | W5: 37.3 | X5: 37.9 | Y5: 34.6 | Z5: 35.6 | AA5: 36.7 | AB5: 33.8 | AC5: 31.8 | AD5: 30.7 | AE5: 36.5 | AF5: 40.4 | AG5: 38.9 | AH5: 46.1 | AI5: 35.2 | AJ5: 40.5 | AK5: 35.8 | AL5: 42.1 | AM5: 39.6 | AN5: 35.2 | AO5: 37.5 | AP5: 36.8 | AQ5: 35.2 | AR5: 37.8 | AS5: 40.3 | AT5: 44.2 | AU5: 38.5 | AV5: 37.7 | AW5: 32.7 | AX5: 38.9 | AY5: 36.3 | AZ5: 32.3 | BA5: 32.3 | BB5: 36.1 | BC5: 38.9 | BD5: 33.1 | BE5: 35.8 | BF5: 43.4 | BG5: 41.2 | BH5: 34.8 | BI5: 33.2 | BJ5: 39.2 | BK5: 37.2 | BL5: 37 | BM5: 34 | BN5: 35.6 | BO5: 39.1 | BP5: 37 | BQ5: 32 | BR5: 34.9 | BS5: 31.7 | BT5: 34.8 | BU5: 34.7 | BV5: 38.7 | BW5: 35.5 | BX5: 34 | BY5: 35.9 | BZ5: 37.7 | CA5: 41.4 | CB5: 30 | CC5: 27.7 | CD5: 30.7 | CE5: 31.7 | CF5: 37.3 | CG5: 34.4 | CH5: 37.9 | CI5: 32.4 | CJ5: 34.6 | CK5: 28 | CL5: 30.4 | CM5: 36.8 | CN5: 34.2 | CO5: 33 | CP5: 34.2 | CQ5: 30 | CR5: 29.4 | CS5: 29.9 | CT5: 28.4 | CU5: 32.1 | CV5: 36.1 | CW5: 31.7 | CX5: 31.3 | CY5: 34.4 | CZ5: 35.3 | DA5: 34.8 | DB5: 38.3 | DC5: 31.5 | DD5: 29.6 | DE5: 30.3 | DF5: 29.7 | DG5: 31.6 | DH5: 26.3 | DI5: 26.4 | DJ5: 26 | DK5: 34.3 | DL5: 30.8 | DM5: 29.3 | DN5: 36.2 | DO5: 31.2 | DP5: 33.8 | DQ5: 33.1 | DR5: 31.9 | DS5: 30.3 | DT5: 32.9 | DU5: 30.4 | DV5: 29.4 | DW5: 31.5 | DX5: 32.2 | DY5: 32.2 | DZ5: 31.9 | EA5: 25.3 | EB5: 27.8 | EC5: 30 | ED5: 31.5 | EE5: 29.2 | EF5: 28.5 | EG5: 26.4 | EH5: 30 | EI5: 33.8 | EJ5: 30.3 | EK5: 31 | EL5: 31.7 | EM5: 28.4 | EN5: 27.9 | EO5: 29.2 | EP5: 28.9 | EQ5: 28.4 | ER5: 28.3 | ES5: 24.2 | ET5: 25.1 | EU5: 27.3 | EV5: 28.4 | EW5: 29.4 | EX5: 31.6 | EY5: 26.8 | EZ5: 30.1 | FA5: 30 | FB5: 29.4 | FC5: 26.5 | FD5: 25.8 | FE5: 25.1 | FF5: 27 | FG5: 26.8 | FH5: 23.6 | FI5: 26.7 | FJ5: 27.9 | FK5: 22.3 | FL5: 23.8 | FM5: 27.6 | FN5: 26.7 | FO5: 25.9 | FP5: 25.6 | FQ5: 23.4 | FR5: 26.7 | FS5: 25.1 | FT5: 25.4 | FU5: 25.9 | FV5: 27.2 | FW5: 23.8 | FX5: 22.4 | FY5: 24.6 | FZ5: 24 | GA5: 24.5 | GB5: 23.1 | GC5: 20.5 | GD5: 19.4 | GE5: 18.4 | GF5: 18 | GG5: 17.5 | GH5: 22.5 | GI5: 24.9 | GJ5: 23.1 | GK5: 23.7 | GL5: 23.3 | GM5: 22.2 | GN5: 21.8 | GO5: 21.9 | GP5: 18.6 | GQ5: 20.8 | GR5: 22.5 | GS5: 20 | GT5: 24.7 | GU5: 19.9 | GV5: 21.8 | GW5: 23.7 | GX5: 22.9 | GY5: 21.8 | GZ5: 21.9 | HA5: 21.3 | HB5: 20.9 | HC5: 16 | HD5: 14.6 | HE5: 16.4 | HF5: 18.2 | HG5: 22.1 | HH5: 21.6 | HI5: 16.4 | HJ5: 20.3 | HK5: 21 | HL5: 21.7 | HM5: 22.4 | HN5: 17.6 | HO5: 21.4 | HP5: 20.4 | HQ5: 18.6 | HR5: 22.1 | HS5: 20.2 | HT5: 19.2 | HU5: 17.3 | HV5: 20.2 | HW5: 21.6 | HX5: 19.9 | HY5: 18.5 | HZ5: 20.3 | IA5: 18.1 | IB5: 16.4 | IC5: 16.9 | ID5: 23.8 | IE5: 20.5 | IF5: 18.4 | IG5: 18.1 | IH5: 16.7 | II5: 18.1 | IJ5: 20.2 | IK5: 20.4 | IL5: 23.3 | IM5: 20.8 | IN5: 21.8 | IO5: 22.2 | IP5: 24.2 | IQ5: 23.1 | IR5: 24.5 | IS5: 22.2 | IT5: 20
B6: Carbón | C6: 27.2 | D6: 26.2 | E6: 40.4 | F6: 39.1 | G6: 43.3 | H6: 48.7 | I6: 45.4 | J6: 38.7 | K6: 49.2 | L6: 49.6 | M6: 41.7 | N6: 40.5 | O6: 38.7 | P6: 43.1 | Q6: 29.7 | R6: 30.8 | S6: 32.1 | T6: 38.7 | U6: 41.6 | V6: 38.9 | W6: 45.4 | X6: 44.6 | Y6: 43.8 | Z6: 43.6 | AA6: 42 | AB6: 44.2 | AC6: 48.2 | AD6: 46.1 | AE6: 42.1 | AF6: 40.3 | AG6: 41.1 | AH6: 38 | AI6: 46.4 | AJ6: 39 | AK6: 41.9 | AL6: 31.7 | AM6: 40.7 | AN6: 46.7 | AO6: 45 | AP6: 46.8 | AQ6: 43.2 | AR6: 38 | AS6: 40.1 | AT6: 40.3 | AU6: 45.4 | AV6: 33.8 | AW6: 35 | AX6: 35.6 | AY6: 29.5 | AZ6: 37.3 | BA6: 39.5 | BB6: 38.1 | BC6: 33.8 | BD6: 41.6 | BE6: 42.7 | BF6: 40.3 | BG6: 42.2 | BH6: 45.4 | BI6: 41.7 | BJ6: 39.7 | BK6: 35.9 | BL6: 34.4 | BM6: 34.8 | BN6: 41.1 | BO6: 39.9 | BP6: 40.9 | BQ6: 45.2 | BR6: 48.2 | BS6: 49.5 | BT6: 45 | BU6: 45.4 | BV6: 33.5 | BW6: 16.1 | BX6: 18.1 | BY6: 29 | BZ6: 21.8 | CA6: 20 | CB6: 38.2 | CC6: 45.9 | CD6: 47.8 | CE6: 44.7 | CF6: 40.6 | CG6: 39.2 | CH6: 21.5 | CI6: 21.7 | CJ6: 27 | CK6: 39.9 | CL6: 40.4 | CM6: 35 | CN6: 36.2 | CO6: 38.4 | CP6: 40.1 | CQ6: 44.4 | CR6: 44.4 | CS6: 31.8 | CT6: 23.5 | CU6: 18.4 | CV6: 23.5 | CW6: 37.6 | CX6: 31.4 | CY6: 24.4 | CZ6: 29 | DA6: 35.2 | DB6: 32 | DC6: 40.3 | DD6: 42.1 | DE6: 41 | DF6: 40 | DG6: 38.7 | DH6: 39.7 | DI6: 40.5 | DJ6: 40.5 | DK6: 31 | DL6: 36.1 | DM6: 39.6 | DN6: 36.6 | DO6: 42.1 | DP6: 39 | DQ6: 33.1 | DR6: 33.8 | DS6: 36.9 | DT6: 40.5 | DU6: 39.5 | DV6: 35.8 | DW6: 31.7 | DX6: 36.2 | DY6: 39.3 | DZ6: 40 | EA6: 41.9 | EB6: 41.5 | EC6: 36.9 | ED6: 24.4 | EE6: 20.5 | EF6: 20.4 | EG6: 19.2 | EH6: 24.9 | EI6: 29.8 | EJ6: 34.7 | EK6: 36.5 | EL6: 37.4 | EM6: 39.8 | EN6: 38.8 | EO6: 36.3 | EP6: 36.9 | EQ6: 35.8 | ER6: 38 | ES6: 39.5 | ET6: 38.6 | EU6: 36.8 | EV6: 34 | EW6: 33.9 | EX6: 36.3 | EY6: 37.4 | EZ6: 33.3 | FA6: 33.7 | FB6: 23.9 | FC6: 22.6 | FD6: 27.3 | FE6: 28.1 | FF6: 28.5 | FG6: 29.1 | FH6: 32.5 | FI6: 32.9 | FJ6: 34.9 | FK6: 35.5 | FL6: 33.9 | FM6: 29 | FN6: 24.1 | FO6: 26.9 | FP6: 29.3 | FQ6: 30 | FR6: 26.9 | FS6: 27.7 | FT6: 29.2 | FU6: 30.7 | FV6: 31.9 | FW6: 31.6 | FX6: 31.1 | FY6: 28.9 | FZ6: 30.8 | GA6: 30 | GB6: 28.8 | GC6: 28.7 | GD6: 28.3 | GE6: 28.9 | GF6: 27.5 | GG6: 28.2 | GH6: 28.5 | GI6: 28.8 | GJ6: 30.1 | GK6: 29 | GL6: 28 | GM6: 28.2 | GN6: 25.8 | GO6: 20.6 | GP6: 18.5 | GQ6: 24.6 | GR6: 25.9 | GS6: 27.2 | GT6: 25.2 | GU6: 25 | GV6: 22.6 | GW6: 19.9 | GX6: 18.3 | GY6: 25 | GZ6: 22.4 | HA6: 21 | HB6: 28 | HC6: 27.5 | HD6: 26.7 | HE6: 25.3 | HF6: 27 | HG6: 24.9 | HH6: 23.6 | HI6: 22.9 | HJ6: 24.3 | HK6: 19.7 | HL6: 19.5 | HM6: 15.3 | HN6: 13.5 | HO6: 9.9 | HP6: 9.1 | HQ6: 15.1 | HR6: 13.5 | HS6: 15.5 | HT6: 18.2 | HU6: 17.5 | HV6: 18.1 | HW6: 18.2 | HX6: 13.9 | HY6: 13.9 | HZ6: 8.9 | IA6: 11 | IB6: 11.4 | IC6: 13.6 | ID6: 8.1 | IE6: 12.6 | IF6: 14.2 | IG6: 9.1 | IH6: 7.8 | II6: 6.8 | IJ6: 6 | IK6: 3.5 | IL6: 3 | IM6: 3.9 | IN6: 6.2 | IO6: 10.1 | IP6: 12.6 | IQ6: 13.6 | IR6: 9 | IS6: 7.1 | IT6: 8.4
B7: Fuel + Gas | C7: 1.6 | D7: 1 | E7: 0.9 | F7: 0.8 | G7: 1.9 | H7: 3.5 | I7: 3.6 | J7: 1.5 | K7: 2.2 | L7: 2.6 | M7: 2.3 | N7: 3.2 | O7: 1.9 | P7: 2.7 | Q7: 1.1 | R7: 1.6 | S7: 1.8 | T7: 2.5 | U7: 5.7 | V7: 1.7 | W7: 5.7 | X7: 2.6 | Y7: 3 | Z7: 3.7 | AA7: 9.2 | AB7: 13.8 | AC7: 11.3 | AD7: 6.2 | AE7: 5.5 | AF7: 1.4 | AG7: 3.4 | AH7: 2.1 | AI7: 4.6 | AJ7: 1.6 | AK7: 0.7 | AL7: 0.3 | AM7: 0.7 | AN7: 2.9 | AO7: 2.8 | AP7: 2.4 | AQ7: 0.9 | AR7: 1.1 | AS7: 0.3 | AT7: 0.8 | AU7: 1.6 | AV7: 0.4 | AW7: 0.6 | AX7: 0.6 | AY7: 0.7 | AZ7: 0.7 | BA7: 1 | BB7: 1.1 | BC7: 0.2 | BD7: 0.8 | BE7: 3 | BF7: 0.5 | BG7: 0.7 | BH7: 1 | BI7: 0.5 | BJ7: 1.3 | BK7: 1.1 | BL7: 0.3 | BM7: 1.1 | BN7: 1 | BO7: 0.9 | BP7: 2.4 | BQ7: 4.6 | BR7: 2 | BS7: 4.8 | BT7: 5.4 | BU7: 3.5 | BV7: 2.4 | BW7: 0.1 | BX7: 1.3 | BY7: 1.9 | BZ7: 1.2 | CA7: 0.2 | CB7: 1.3 | CC7: 2 | CD7: 1.2 | CE7: 1.9 | CF7: 0.7 | CG7: 1.8 | CH7: 2 | CI7: 1.7 | CJ7: 3 | CK7: 3.4 | CL7: 3.7 | CM7: 3.2 | CN7: 3.7 | CO7: 5.7 | CP7: 4.3 | CQ7: 5.3 | CR7: 5.9 | CS7: 3.8 | CT7: 3.4 | CU7: 0.5 | CV7: 0.7 | CW7: 1.1 | CX7: 0.4 | CY7: 0.3 | CZ7: 1.4 | DA7: 3.1 | DB7: 3.7 | DC7: 5 | DD7: 2.7 | DE7: 6.8 | DF7: 10.2 | DG7: 9.2 | DH7: 12.5 | DI7: 7.2 | DJ7: 3.9 | DK7: 1.2 | DL7: 3.6 | DM7: 7.1 | DN7: 4.8 | DO7: 3.9 | DP7: 1 | DQ7: 2.6 | DR7: 4.1 | DS7: 6.2 | DT7: 3.2 | DU7: 6.9 | DV7: 4.8 | DW7: 1.1 | DX7: 4.1 | DY7: 5.4 | DZ7: 4.7 | EA7: 9.1 | EB7: 5.9 | EC7: 4.5 | ED7: 2.8 | EE7: 2.7 | EF7: 2.4 | EG7: 2.3 | EH7: 1.1 | EI7: 2 | EJ7: 6.8 | EK7: 7.7 | EL7: 7.2 | EM7: 7.8 | EN7: 7.6 | EO7: 7.4 | EP7: 11.4 | EQ7: 13.7 | ER7: 9.6 | ES7: 8.2 | ET7: 8.3 | EU7: 6.2 | EV7: 9.2 | EW7: 10.2 | EX7: 5.3 | EY7: 7 | EZ7: 4.9 | FA7: 2.7 | FB7: 2 | FC7: 2.8 | FD7: 2.6 | FE7: 1.1 | FF7: 0.5 | FG7: 1.3 | FH7: 6.5 | FI7: 5.9 | FJ7: 5.6 | FK7: 5.1 | FL7: 3.4 | FM7: 1.8 | FN7: 2 | FO7: 2 | FP7: 1.7 | FQ7: 2.9 | FR7: 0.9 | FS7: 1.6 | FT7: 3.7 | FU7: 5.1 | FV7: 3.6 | FW7: 4.8 | FX7: 2.9 | FY7: 2.3 | FZ7: 3.2 | GA7: 4 | GB7: 5.2 | GC7: 6.4 | GD7: 1.9 | GE7: 2.7 | GF7: 5.5 | GG7: 6.1 | GH7: 2 | GI7: 2.5 | GJ7: 1.8 | GK7: 1.9 | GL7: 3.4 | GM7: 3.1 | GN7: 2.8 | GO7: 1.3 | GP7: 1.5 | GQ7: 1.1 | GR7: 2.4 | GS7: 4.2 | GT7: 1.6 | GU7: 3.5 | GV7: 1.6 | GW7: 0.6 | GX7: 0.5 | GY7: 0.4 | GZ7: 1 | HA7: 0.8 | HB7: 0.5 | HC7: 0.8 | HD7: 0.4 | HE7: 1.2 | HF7: 1 | HG7: 1.1 | HH7: 0.6 | HI7: 0.8 | HJ7: 0.7 | HK7: 0.6 | HL7: 0.5 | HM7: 0.3 | HN7: 0.6 | HO7: 0.7 | HP7: 1.1 | HQ7: 0.6 | HR7: 1.1 | HS7: 0.8 | HT7: 0.9 | HU7: 1 | HV7: 0.8 | HW7: 0.5 | HX7: 0.5 | HY7: 0.9 | HZ7: 0.7 | IA7: 0.5 | IB7: 0.7 | IC7: 0.9 | ID7: 0.8 | IE7: 0.7 | IF7: 0.5 | IG7: 0.8 | IH7: 0.7 | II7: 0.6 | IJ7: 0.6 | IK7: 0.1 | IL7: 0.5 | IM7: 0.8 | IN7: 0.8 | IO7: 0.6 | IP7: 0.5 | IQ7: 0.6 | IR7: 0.6 | IS7: 0.7 | IT7: 0.6
B8: Ciclo combinado | C8: - | D8: - | E8: - | F8: - | G8: - | H8: - | I8: - | J8: - | K8: - | L8: - | M8: - | N8: - | O8: - | P8: - | Q8: - | R8: - | S8: - | T8: - | U8: - | V8: - | W8: - | X8: - | Y8: - | Z8: - | AA8: - | AB8: - | AC8: - | AD8: - | AE8: - | AF8: - | AG8: - | AH8: - | AI8: - | AJ8: - | AK8: - | AL8: - | AM8: 0 | AN8: - | AO8: - | AP8: - | AQ8: - | AR8: - | AS8: - | AT8: - | AU8: - | AV8: - | AW8: - | AX8: - | AY8: - | AZ8: - | BA8: - | BB8: - | BC8: - | BD8: - | BE8: - | BF8: - | BG8: - | BH8: - | BI8: - | BJ8: - | BK8: - | BL8: - | BM8: - | BN8: - | BO8: - | BP8: - | BQ8: - | BR8: - | BS8: - | BT8: - | BU8: - | BV8: - | BW8: - | BX8: - | BY8: - | BZ8: - | CA8: - | CB8: - | CC8: - | CD8: - | CE8: - | CF8: - | CG8: - | CH8: - | CI8: - | CJ8: - | CK8: - | CL8: - | CM8: - | CN8: - | CO8: - | CP8: - | CQ8: - | CR8: - | CS8: - | CT8: - | CU8: - | CV8: - | CW8: - | CX8: - | CY8: - | CZ8: - | DA8: - | DB8: - | DC8: - | DD8: - | DE8: - | DF8: - | DG8: - | DH8: - | DI8: - | DJ8: - | DK8: - | DL8: - | DM8: - | DN8: - | DO8: - | DP8: - | DQ8: - | DR8: - | DS8: - | DT8: - | DU8: - | DV8: - | DW8: - | DX8: - | DY8: - | DZ8: - | EA8: - | EB8: - | EC8: - | ED8: - | EE8: - | EF8: - | EG8: - | EH8: - | EI8: - | EJ8: - | EK8: - | EL8: - | EM8: - | EN8: - | EO8: - | EP8: - | EQ8: - | ER8: - | ES8: - | ET8: - | EU8: 0.7 | EV8: 1.7 | EW8: 2.8 | EX8: 4.5 | EY8: 6.8 | EZ8: 6.4 | FA8: 3.4 | FB8: 2.7 | FC8: 2.1 | FD8: 4.4 | FE8: 4.1 | FF8: 2.2 | FG8: 4.5 | FH8: 9.4 | FI8: 9.5 | FJ8: 9.4 | FK8: 11 | FL8: 9.4 | FM8: 6.3 | FN8: 4.2 | FO8: 7.3 | FP8: 9.7 | FQ8: 10.7 | FR8: 9.5 | FS8: 10.5 | FT8: 11.5 | FU8: 12.8 | FV8: 11.8 | FW8: 14.8 | FX8: 14.3 | FY8: 13.4 | FZ8: 13.2 | GA8: 14.8 | GB8: 15.9 | GC8: 15.6 | GD8: 16.7 | GE8: 17.8 | GF8: 22.2 | GG8: 23.4 | GH8: 21.9 | GI8: 21.6 | GJ8: 20 | GK8: 19.1 | GL8: 17.5 | GM8: 22.7 | GN8: 24.5 | GO8: 20.3 | GP8: 24.5 | GQ8: 23.9 | GR8: 25.5 | GS8: 27.9 | GT8: 23.1 | GU8: 29.2 | GV8: 23.8 | GW8: 19.9 | GX8: 18 | GY8: 24.7 | GZ8: 17.5 | HA8: 16.5 | HB8: 19.5 | HC8: 19.9 | HD8: 28.5 | HE8: 28 | HF8: 23.6 | HG8: 25.5 | HH8: 26.9 | HI8: 31.8 | HJ8: 29.1 | HK8: 31.6 | HL8: 33.8 | HM8: 28.3 | HN8: 30 | HO8: 32.8 | HP8: 33.9 | HQ8: 36.3 | HR8: 36.2 | HS8: 35.1 | HT8: 32 | HU8: 29.2 | HV8: 23.2 | HW8: 23.7 | HX8: 20.4 | HY8: 23.5 | HZ8: 27.1 | IA8: 27.6 | IB8: 35.4 | IC8: 36 | ID8: 36.8 | IE8: 34.6 | IF8: 30.4 | IG8: 25.2 | IH8: 25.9 | II8: 21.4 | IJ8: 20.7 | IK8: 17.1 | IL8: 20.8 | IM8: 21.4 | IN8: 25.5 | IO8: 27.9 | IP8: 25.6 | IQ8: 28.5 | IR8: 23.8 | IS8: 24.1 | IT8: 20.1
B9: Eólica | C9: 0 | D9: 0 | E9: 0 | F9: 0 | G9: 0 | H9: 0 | I9: 0 | J9: 0 | K9: 0 | L9: 0 | M9: 0 | N9: 0 | O9: 0 | P9: 0 | Q9: 0 | R9: 0 | S9: 0 | T9: 0 | U9: 0 | V9: 0 | W9: 0 | X9: 0 | Y9: 0 | Z9: 0 | AA9: 0 | AB9: 0 | AC9: 0 | AD9: 0 | AE9: 0 | AF9: 0 | AG9: 0 | AH9: 0 | AI9: 0 | AJ9: 0 | AK9: 0 | AL9: 0.1 | AM9: 0.1 | AN9: 0.1 | AO9: 0.1 | AP9: 0.1 | AQ9: 0 | AR9: 0.1 | AS9: 0.1 | AT9: 0.1 | AU9: 0 | AV9: 0.1 | AW9: 0.1 | AX9: 0 | AY9: 0.1 | AZ9: 0 | BA9: 0.1 | BB9: 0.1 | BC9: 0 | BD9: 0.1 | BE9: 0 | BF9: 0 | BG9: 0 | BH9: 0.1 | BI9: 0.1 | BJ9: 0 | BK9: 0.1 | BL9: 0.1 | BM9: 0.1 | BN9: 0.1 | BO9: 0.1 | BP9: 0.1 | BQ9: 0.1 | BR9: 0.1 | BS9: 0.1 | BT9: 0.2 | BU9: 0.1 | BV9: 0.1 | BW9: 0.1 | BX9: 0.2 | BY9: 0.2 | BZ9: 0.2 | CA9: 0.2 | CB9: 0.2 | CC9: 0.2 | CD9: 0.1 | CE9: 0.2 | CF9: 0.2 | CG9: 0.2 | CH9: 0.3 | CI9: 0.3 | CJ9: 0.3 | CK9: 0.3 | CL9: 0.4 | CM9: 0.3 | CN9: 0.3 | CO9: 0.4 | CP9: 0.3 | CQ9: 0.3 | CR9: 0.5 | CS9: 0.5 | CT9: 0.5 | CU9: 0.6 | CV9: 0.5 | CW9: 0.7 | CX9: 0.7 | CY9: 0.6 | CZ9: 0.5 | DA9: 0.7 | DB9: 0.9 | DC9: 0.7 | DD9: 0.7 | DE9: 0.9 | DF9: 0.9 | DG9: 1 | DH9: 1.4 | DI9: 1.4 | DJ9: 1.4 | DK9: 1.2 | DL9: 1.4 | DM9: 1.1 | DN9: 1 | DO9: 1.1 | DP9: 1.3 | DQ9: 2 | DR9: 1.9 | DS9: 1.7 | DT9: 1.9 | DU9: 2.1 | DV9: 2.7 | DW9: 1.5 | DX9: 2.3 | DY9: 2.2 | DZ9: 2 | EA9: 1.7 | EB9: 2.6 | EC9: 3.2 | ED9: 3.5 | EE9: 3.2 | EF9: 3.4 | EG9: 3.7 | EH9: 4.3 | EI9: 2.6 | EJ9: 2.4 | EK9: 2.3 | EL9: 2.2 | EM9: 3.7 | EN9: 3.4 | EO9: 4.3 | EP9: 2.9 | EQ9: 3.4 | ER9: 4.6 | ES9: 4.6 | ET9: 3.7 | EU9: 4.7 | EV9: 3.6 | EW9: 3.7 | EX9: 3.5 | EY9: 2.9 | EZ9: 4.9 | FA9: 5.9 | FB9: 6.4 | FC9: 6.7 | FD9: 5.2 | FE9: 4.5 | FF9: 6.6 | FG9: 5 | FH9: 3.7 | FI9: 3.6 | FJ9: 2.9 | FK9: 4.2 | FL9: 5.7 | FM9: 6.1 | FN9: 6.9 | FO9: 8 | FP9: 5.4 | FQ9: 6.1 | FR9: 7.9 | FS9: 5.3 | FT9: 5.2 | FU9: 4.6 | FV9: 5.6 | FW9: 5.8 | FX9: 8.2 | FY9: 7.3 | FZ9: 8.2 | GA9: 8.3 | GB9: 8.3 | GC9: 8.2 | GD9: 9.9 | GE9: 7.6 | GF9: 6 | GG9: 7.3 | GH9: 8.1 | GI9: 6.2 | GJ9: 9.3 | GK9: 9 | GL9: 10.2 | GM9: 6.4 | GN9: 8.6 | GO9: 12 | GP9: 10.3 | GQ9: 8.1 | GR9: 6.4 | GS9: 4.9 | GT9: 10.4 | GU9: 6.8 | GV9: 11 | GW9: 10.6 | GX9: 9.3 | GY9: 8.8 | GZ9: 13.2 | HA9: 13.3 | HB9: 6.5 | HC9: 12 | HD9: 8.2 | HE9: 8 | HF9: 11.1 | HG9: 9.2 | HH9: 8.4 | HI9: 11.5 | HJ9: 9.6 | HK9: 10.5 | HL9: 8.5 | HM9: 17.1 | HN9: 14.6 | HO9: 7.9 | HP9: 9.3 | HQ9: 8.7 | HR9: 8.7 | HS9: 9.6 | HT9: 11 | HU9: 14.8 | HV9: 14.9 | HW9: 13.9 | HX9: 14.8 | HY9: 14.5 | HZ9: 15.3 | IA9: 13.3 | IB9: 10.8 | IC9: 10.3 | ID9: 10.1 | IE9: 11.5 | IF9: 14.5 | IG9: 21.8 | IH9: 20.8 | II9: 17.3 | IJ9: 20.1 | IK9: 19 | IL9: 12.6 | IM9: 17 | IN9: 12 | IO9: 11.5 | IP9: 12.9 | IQ9: 10.5 | IR9: 17.9 | IS9: 19 | IT9: 19.1
B10: Solar fotovoltaica | C10: 0 | D10: 0 | E10: 0 | F10: 0 | G10: 0 | H10: 0 | I10: 0 | J10: 0 | K10: 0 | L10: 0 | M10: 0 | N10: 0 | O10: 0 | P10: 0 | Q10: 0 | R10: 0 | S10: 0 | T10: 0 | U10: 0 | V10: 0 | W10: 0 | X10: 0 | Y10: 0 | Z10: 0 | AA10: 0 | AB10: 0 | AC10: 0 | AD10: 0 | AE10: 0 | AF10: 0 | AG10: 0 | AH10: 0 | AI10: 0 | AJ10: 0 | AK10: 0 | AL10: 0 | AM10: 0 | AN10: 0 | AO10: 0 | AP10: 0 | AQ10: 0 | AR10: 0 | AS10: 0 | AT10: 0 | AU10: 0 | AV10: 0 | AW10: 0 | AX10: 0 | AY10: 0 | AZ10: 0 | BA10: 0 | BB10: 0 | BC10: 0 | BD10: 0 | BE10: 0 | BF10: 0 | BG10: 0 | BH10: 0 | BI10: 0 | BJ10: 0 | BK10: 0 | BL10: 0 | BM10: 0 | BN10: 0 | BO10: 0 | BP10: 0 | BQ10: 0 | BR10: 0 | BS10: 0 | BT10: 0 | BU10: 0 | BV10: 0 | BW10: 0 | BX10: 0 | BY10: 0 | BZ10: 0 | CA10: 0 | CB10: 0 | CC10: 0 | CD10: 0 | CE10: 0 | CF10: 0 | CG10: 0 | CH10: 0 | CI10: 0 | CJ10: 0 | CK10: 0 | CL10: 0 | CM10: 0 | CN10: 0 | CO10: 0 | CP10: 0 | CQ10: 0 | CR10: 0 | CS10: 0 | CT10: 0 | CU10: 0 | CV10: 0 | CW10: 0 | CX10: 0 | CY10: 0 | CZ10: 0 | DA10: 0 | DB10: 0 | DC10: 0 | DD10: 0 | DE10: 0 | DF10: 0 | DG10: 0 | DH10: 0 | DI10: 0 | DJ10: 0 | DK10: 0 | DL10: 0 | DM10: 0 | DN10: 0 | DO10: 0 | DP10: 0 | DQ10: 0 | DR10: 0 | DS10: 0 | DT10: 0 | DU10: 0 | DV10: 0 | DW10: 0 | DX10: 0 | DY10: 0 | DZ10: 0 | EA10: 0 | EB10: 0 | EC10: 0 | ED10: 0 | EE10: 0 | EF10: 0 | EG10: 0 | EH10: 0 | EI10: 0 | EJ10: 0 | EK10: 0 | EL10: 0 | EM10: 0 | EN10: 0 | EO10: 0 | EP10: 0 | EQ10: 0 | ER10: 0 | ES10: 0 | ET10: 0 | EU10: 0 | EV10: 0 | EW10: 0 | EX10: 0 | EY10: 0 | EZ10: 0 | FA10: 0 | FB10: 0 | FC10: 0 | FD10: 0 | FE10: 0 | FF10: 0 | FG10: 0 | FH10: 0 | FI10: 0 | FJ10: 0 | FK10: 0 | FL10: 0 | FM10: 0 | FN10: 0 | FO10: 0 | FP10: 0 | FQ10: 0 | FR10: 0 | FS10: 0 | FT10: 0 | FU10: 0 | FV10: 0 | FW10: 0 | FX10: 0 | FY10: 0 | FZ10: 0 | GA10: 0 | GB10: 0 | GC10: 0 | GD10: 0 | GE10: 0 | GF10: 0 | GG10: 0 | GH10: 0 | GI10: 0 | GJ10: 0 | GK10: 0 | GL10: 0 | GM10: 0 | GN10: 0 | GO10: 0 | GP10: 0 | GQ10: 0 | GR10: 0 | GS10: 0 | GT10: 0.1 | GU10: 0.1 | GV10: 0 | GW10: 0 | GX10: 0 | GY10: 0 | GZ10: 0.1 | HA10: 0.1 | HB10: 0.1 | HC10: 0.2 | HD10: 0.2 | HE10: 0.2 | HF10: 0.2 | HG10: 0.3 | HH10: 0.2 | HI10: 0.2 | HJ10: 0.2 | HK10: 0.2 | HL10: 0.3 | HM10: 0.4 | HN10: 0.5 | HO10: 0.6 | HP10: 0.8 | HQ10: 1 | HR10: 1.3 | HS10: 1.4 | HT10: 1.4 | HU10: 1.4 | HV10: 1 | HW10: 1 | HX10: 1.7 | HY10: 2.4 | HZ10: 2.7 | IA10: 3.2 | IB10: 2.9 | IC10: 2.9 | ID10: 2.9 | IE10: 2.3 | IF10: 2.2 | IG10: 1.6 | IH10: 1 | II10: 1 | IJ10: 1.3 | IK10: 1.9 | IL10: 2.7 | IM10: 3.2 | IN10: 3.1 | IO10: 3.1 | IP10: 3.1 | IQ10: 2.8 | IR10: 2.4 | IS10: 1.6 | IT10: 1.2
B11: Solar térmica | C11: - | D11: - | E11: - | F11: - | G11: - | H11: - | I11: - | J11: - | K11: - | L11: - | M11: - | N11: - | O11: - | P11: - | Q11: - | R11: - | S11: - | T11: - | U11: - | V11: - | W11: - | X11: - | Y11: - | Z11: - | AA11: - | AB11: - | AC11: - | AD11: - | AE11: - | AF11: - | AG11: - | AH11: - | AI11: - | AJ11: - | AK11: - | AL11: - | AM11: - | AN11: - | AO11: - | AP11: - | AQ11: - | AR11: - | AS11: - | AT11: - | AU11: - | AV11: - | AW11: - | AX11: - | AY11: - | AZ11: - | BA11: - | BB11: - | BC11: - | BD11: - | BE11: - | BF11: - | BG11: - | BH11: - | BI11: - | BJ11: - | BK11: - | BL11: - | BM11: - | BN11: - | BO11: - | BP11: - | BQ11: - | BR11: - | BS11: - | BT11: - | BU11: - | BV11: - | BW11: - | BX11: - | BY11: - | BZ11: - | CA11: - | CB11: - | CC11: - | CD11: - | CE11: - | CF11: - | CG11: - | CH11: - | CI11: - | CJ11: - | CK11: - | CL11: - | CM11: - | CN11: - | CO11: - | CP11: - | CQ11: - | CR11: - | CS11: - | CT11: - | CU11: - | CV11: - | CW11: - | CX11: - | CY11: - | CZ11: - | DA11: - | DB11: - | DC11: - | DD11: - | DE11: - | DF11: - | DG11: - | DH11: - | DI11: - | DJ11: - | DK11: - | DL11: - | DM11: - | DN11: - | DO11: - | DP11: - | DQ11: - | DR11: - | DS11: - | DT11: - | DU11: - | DV11: - | DW11: - | DX11: - | DY11: - | DZ11: - | EA11: - | EB11: - | EC11: - | ED11: - | EE11: - | EF11: - | EG11: - | EH11: - | EI11: - | EJ11: - | EK11: - | EL11: - | EM11: - | EN11: - | EO11: - | EP11: - | EQ11: - | ER11: - | ES11: - | ET11: - | EU11: - | EV11: - | EW11: - | EX11: - | EY11: - | EZ11: - | FA11: - | FB11: - | FC11: - | FD11: - | FE11: - | FF11: - | FG11: - | FH11: - | FI11: - | FJ11: - | FK11: - | FL11: - | FM11: - | FN11: - | FO11: - | FP11: - | FQ11: - | FR11: - | FS11: - | FT11: - | FU11: - | FV11: - | FW11: - | FX11: - | FY11: - | FZ11: - | GA11: - | GB11: - | GC11: - | GD11: - | GE11: - | GF11: - | GG11: - | GH11: - | GI11: - | GJ11: - | GK11: - | GL11: - | GM11: 0 | GN11: 0 | GO11: 0 | GP11: 0 | GQ11: 0 | GR11: 0 | GS11: 0 | GT11: 0 | GU11: 0 | GV11: 0 | GW11: 0 | GX11: 0 | GY11: 0 | GZ11: 0 | HA11: 0 | HB11: 0 | HC11: 0 | HD11: 0 | HE11: 0 | HF11: 0 | HG11: 0 | HH11: 0 | HI11: 0 | HJ11: 0 | HK11: 0 | HL11: 0 | HM11: 0 | HN11: 0 | HO11: 0 | HP11: 0 | HQ11: 0 | HR11: 0 | HS11: 0 | HT11: 0 | HU11: 0 | HV11: 0 | HW11: 0 | HX11: 0 | HY11: 0 | HZ11: 0 | IA11: 0 | IB11: 0 | IC11: 0.1 | ID11: 0.1 | IE11: 0.1 | IF11: 0.1 | IG11: 0.1 | IH11: 0 | II11: 0.1 | IJ11: 0.1 | IK11: 0.1 | IL11: 0.2 | IM11: 0.3 | IN11: 0.3 | IO11: 0.4 | IP11: 0.5 | IQ11: 0.5 | IR11: 0.3 | IS11: 0.1 | IT11: 0.1
B12: Térmica renovable/Otras renovables | C12: - | D12: - | E12: - | F12: - | G12: - | H12: - | I12: - | J12: - | K12: - | L12: - | M12: - | N12: - | O12: - | P12: - | Q12: - | R12: - | S12: - | T12: - | U12: - | V12: - | W12: - | X12: 0 | Y12: 0 | Z12: 0 | AA12: 0 | AB12: 0 | AC12: 0 | AD12: 0 | AE12: 0 | AF12: 0 | AG12: 0 | AH12: 0 | AI12: 0 | AJ12: 0 | AK12: 0 | AL12: 0 | AM12: 0 | AN12: 0 | AO12: 0 | AP12: 0 | AQ12: 0 | AR12: 0 | AS12: 0 | AT12: 0 | AU12: 0 | AV12: 0.1 | AW12: 0.1 | AX12: 0 | AY12: 0 | AZ12: 0 | BA12: 0.1 | BB12: 0.1 | BC12: 0.2 | BD12: 0.1 | BE12: 0.2 | BF12: 0.3 | BG12: 0.3 | BH12: 0.3 | BI12: 0.5 | BJ12: 0.5 | BK12: 0.4 | BL12: 0.5 | BM12: 0.5 | BN12: 0.5 | BO12: 0.5 | BP12: 0.3 | BQ12: 0.4 | BR12: 0.5 | BS12: 0.5 | BT12: 0.5 | BU12: 0.4 | BV12: 0.5 | BW12: 0.4 | BX12: 0.4 | BY12: 0.5 | BZ12: 0.6 | CA12: 0.5 | CB12: 0.6 | CC12: 0.6 | CD12: 0.6 | CE12: 0.6 | CF12: 0.5 | CG12: 0.4 | CH12: 0.4 | CI12: 0.4 | CJ12: 0.4 | CK12: 0.4 | CL12: 0.4 | CM12: 0.4 | CN12: 0.3 | CO12: 0.4 | CP12: 0.4 | CQ12: 0.4 | CR12: 0.4 | CS12: 0.4 | CT12: 0.4 | CU12: 0.2 | CV12: 0.4 | CW12: 0.4 | CX12: 0.5 | CY12: 0.5 | CZ12: 0.5 | DA12: 0.5 | DB12: 0.5 | DC12: 0.4 | DD12: 0.5 | DE12: 0.5 | DF12: 0.4 | DG12: 0.4 | DH12: 0.5 | DI12: 0.5 | DJ12: 0.5 | DK12: 0.5 | DL12: 0.4 | DM12: 0.5 | DN12: 0.5 | DO12: 0.6 | DP12: 0.6 | DQ12: 0.5 | DR12: 0.4 | DS12: 0.4 | DT12: 0.5 | DU12: 0.5 | DV12: 0.5 | DW12: 0.4 | DX12: 0.4 | DY12: 0.5 | DZ12: 0.5 | EA12: 0.5 | EB12: 0.6 | EC12: 0.6 | ED12: 0.6 | EE12: 0.6 | EF12: 0.6 | EG12: 0.7 | EH12: 0.7 | EI12: 0.7 | EJ12: 1 | EK12: 0.9 | EL12: 0.9 | EM12: 1.1 | EN12: 1.1 | EO12: 1 | EP12: 1 | EQ12: 0.5 | ER12: 0.6 | ES12: 0.7 | ET12: 0.7 | EU12: 0.7 | EV12: 0.6 | EW12: 0.7 | EX12: 0.8 | EY12: 0.7 | EZ12: 0.7 | FA12: 0.7 | FB12: 0.8 | FC12: 0.6 | FD12: 0.7 | FE12: 0.8 | FF12: 0.8 | FG12: 0.8 | FH12: 0.7 | FI12: 0.7 | FJ12: 0.8 | FK12: 0.8 | FL12: 0.9 | FM12: 0.8 | FN12: 0.8 | FO12: 0.8 | FP12: 0.7 | FQ12: 0.8 | FR12: 0.8 | FS12: 0.8 | FT12: 0.7 | FU12: 0.7 | FV12: 0.7 | FW12: 0.8 | FX12: 0.8 | FY12: 0.7 | FZ12: 0.7 | GA12: 0.8 | GB12: 0.7 | GC12: 0.8 | GD12: 0.8 | GE12: 0.9 | GF12: 0.8 | GG12: 0.8 | GH12: 0.9 | GI12: 0.8 | GJ12: 0.8 | GK12: 0.8 | GL12: 0.7 | GM12: 0.7 | GN12: 0.7 | GO12: 0.8 | GP12: 0.9 | GQ12: 0.9 | GR12: 0.9 | GS12: 0.8 | GT12: 0.9 | GU12: 0.8 | GV12: 0.9 | GW12: 0.8 | GX12: 0.8 | GY12: 0.8 | GZ12: 0.8 | HA12: 0.8 | HB12: 0.9 | HC12: 0.9 | HD12: 0.9 | HE12: 0.9 | HF12: 0.9 | HG12: 0.9 | HH12: 1 | HI12: 0.9 | HJ12: 0.9 | HK12: 0.9 | HL12: 0.9 | HM12: 0.9 | HN12: 1 | HO12: 1 | HP12: 1 | HQ12: 0.9 | HR12: 1 | HS12: 1 | HT12: 1 | HU12: 1 | HV12: 0.9 | HW12: 1 | HX12: 1.1 | HY12: 1.2 | HZ12: 1.4 | IA12: 1.2 | IB12: 1.1 | IC12: 1 | ID12: 1.1 | IE12: 1.2 | IF12: 1.5 | IG12: 1.1 | IH12: 1.1 | II12: 1 | IJ12: 1 | IK12: 1 | IL12: 1.2 | IM12: 1.3 | IN12: 1.3 | IO12: 1.1 | IP12: 1.2 | IQ12: 1.2 | IR12: 1.3 | IS12: 1.2 | IT12: 1.2
B13: Térmica no renovable/Cogeneración y resto/Cogeneración | C13: 0.3 | D13: 0.4 | E13: 0.4 | F13: 0.2 | G13: 0.4 | H13: 0.3 | I13: 0.5 | J13: 0.6 | K13: 0.7 | L13: 0.6 | M13: 0.7 | N13: 0.7 | O13: 0.6 | P13: 0.8 | Q13: 1 | R13: 1 | S13: 0.9 | T13: 0.9 | U13: 1 | V13: 1 | W13: 1.1 | X13: 1.3 | Y13: 1.2 | Z13: 1.1 | AA13: 1.1 | AB13: 1.1 | AC13: 1.4 | AD13: 1.2 | AE13: 1.4 | AF13: 1.4 | AG13: 1.3 | AH13: 1.4 | AI13: 1.4 | AJ13: 1.5 | AK13: 1.7 | AL13: 1.5 | AM13: 1.7 | AN13: 1.7 | AO13: 1.8 | AP13: 2.1 | AQ13: 2.3 | AR13: 2.3 | AS13: 2.4 | AT13: 2 | AU13: 2.7 | AV13: 2.9 | AW13: 3.1 | AX13: 3.2 | AY13: 3.2 | AZ13: 3.3 | BA13: 3.5 | BB13: 3.6 | BC13: 3.9 | BD13: 3.7 | BE13: 3.3 | BF13: 3.7 | BG13: 3.9 | BH13: 4 | BI13: 3.9 | BJ13: 3.9 | BK13: 3.4 | BL13: 3.9 | BM13: 4 | BN13: 4.5 | BO13: 4.4 | BP13: 4.2 | BQ13: 4.2 | BR13: 4.3 | BS13: 4.7 | BT13: 5.1 | BU13: 5 | BV13: 4.8 | BW13: 4.6 | BX13: 4.8 | BY13: 5.1 | BZ13: 6.1 | CA13: 5.8 | CB13: 5.7 | CC13: 5.6 | CD13: 6.1 | CE13: 6 | CF13: 6.5 | CG13: 6.6 | CH13: 6.4 | CI13: 5.8 | CJ13: 6.4 | CK13: 7.2 | CL13: 6.9 | CM13: 6.9 | CN13: 6.7 | CO13: 6.8 | CP13: 6.7 | CQ13: 6.7 | CR13: 7.8 | CS13: 7.5 | CT13: 6.9 | CU13: 7.4 | CV13: 7.9 | CW13: 8.3 | CX13: 8.4 | CY13: 8.5 | CZ13: 7.7 | DA13: 7.7 | DB13: 7.9 | DC13: 8.2 | DD13: 9.3 | DE13: 8.9 | DF13: 8.6 | DG13: 8.3 | DH13: 8.8 | DI13: 9.4 | DJ13: 10.3 | DK13: 10 | DL13: 9.6 | DM13: 9 | DN13: 9.4 | DO13: 9.2 | DP13: 10.3 | DQ13: 9.4 | DR13: 9.2 | DS13: 8.7 | DT13: 9.1 | DU13: 9.6 | DV13: 9.7 | DW13: 9.3 | DX13: 8.8 | DY13: 8.5 | DZ13: 8.6 | EA13: 8.8 | EB13: 9 | EC13: 8 | ED13: 8.3 | EE13: 7.9 | EF13: 8.5 | EG13: 8.4 | EH13: 9 | EI13: 9.1 | EJ13: 8.4 | EK13: 8.5 | EL13: 7.8 | EM13: 8.5 | EN13: 9.2 | EO13: 9 | EP13: 8.3 | EQ13: 9 | ER13: 9.7 | ES13: 9.9 | ET13: 10.4 | EU13: 10 | EV13: 9 | EW13: 9.3 | EX13: 9.4 | EY13: 9.9 | EZ13: 10.7 | FA13: 10.3 | FB13: 9.8 | FC13: 9.4 | FD13: 9.5 | FE13: 10.2 | FF13: 10.8 | FG13: 10.7 | FH13: 9.6 | FI13: 9.4 | FJ13: 9.1 | FK13: 10.4 | FL13: 10.9 | FM13: 10.1 | FN13: 9.7 | FO13: 9.8 | FP13: 9.7 | FQ13: 10 | FR13: 10.3 | FS13: 10.1 | FT13: 9.1 | FU13: 9 | FV13: 8.9 | FW13: 9.2 | FX13: 10.1 | FY13: 10.1 | FZ13: 9.8 | GA13: 9 | GB13: 9.3 | GC13: 9.8 | GD13: 10.6 | GE13: 10.3 | GF13: 9.2 | GG13: 8.6 | GH13: 9 | GI13: 9.4 | GJ13: 9 | GK13: 8.6 | GL13: 7.9 | GM13: 8.3 | GN13: 8.8 | GO13: 9 | GP13: 10.2 | GQ13: 9.2 | GR13: 8.2 | GS13: 7.2 | GT13: 7.8 | GU13: 7.9 | GV13: 8.8 | GW13: 8.8 | GX13: 8.2 | GY13: 8.1 | GZ13: 8 | HA13: 8.1 | HB13: 8.8 | HC13: 8.4 | HD13: 8.6 | HE13: 8.5 | HF13: 8.7 | HG13: 8.7 | HH13: 9.2 | HI13: 8.8 | HJ13: 8.6 | HK13: 8.8 | HL13: 9.5 | HM13: 9.6 | HN13: 9.6 | HO13: 9.6 | HP13: 9.3 | HQ13: 9.2 | HR13: 8.7 | HS13: 9.8 | HT13: 10.5 | HU13: 9.8 | HV13: 9.4 | HW13: 9.7 | HX13: 10.4 | HY13: 11.1 | HZ13: 11.7 | IA13: 11.5 | IB13: 10.7 | IC13: 10.2 | ID13: 9 | IE13: 11.1 | IF13: 11.5 | IG13: 11.7 | IH13: 11 | II13: 10.7 | IJ13: 10.6 | IK13: 11 | IL13: 12.2 | IM13: 12.2 | IN13: 11.8 | IO13: 10.6 | IP13: 9.6 | IQ13: 11.5 | IR13: 11.9 | IS13: 11.6 | IT13: 11.6
B14: Residuos no renovables | C14: - | D14: - | E14: - | F14: - | G14: - | H14: - | I14: - | J14: - | K14: - | L14: - | M14: - | N14: - | O14: - | P14: - | Q14: - | R14: - | S14: - | T14: - | U14: - | V14: - | W14: - | X14: - | Y14: - | Z14: - | AA14: - | AB14: - | AC14: - | AD14: - | AE14: - | AF14: - | AG14: - | AH14: - | AI14: - | AJ14: - | AK14: - | AL14: - | AM14: - | AN14: - | AO14: - | AP14: - | AQ14: - | AR14: - | AS14: - | AT14: - | AU14: - | AV14: - | AW14: - | AX14: - | AY14: - | AZ14: - | BA14: - | BB14: - | BC14: - | BD14: - | BE14: - | BF14: - | BG14: - | BH14: - | BI14: - | BJ14: - | BK14: - | BL14: - | BM14: - | BN14: - | BO14: - | BP14: - | BQ14: - | BR14: - | BS14: - | BT14: - | BU14: - | BV14: - | BW14: - | BX14: - | BY14: - | BZ14: - | CA14: - | CB14: - | CC14: - | CD14: - | CE14: - | CF14: - | CG14: - | CH14: - | CI14: - | CJ14: - | CK14: - | CL14: - | CM14: - | CN14: - | CO14: - | CP14: - | CQ14: - | CR14: - | CS14: - | CT14: - | CU14: - | CV14: - | CW14: - | CX14: - | CY14: - | CZ14: - | DA14: - | DB14: - | DC14: - | DD14: - | DE14: - | DF14: - | DG14: - | DH14: - | DI14: - | DJ14: - | DK14: - | DL14: - | DM14: - | DN14: - | DO14: - | DP14: - | DQ14: - | DR14: - | DS14: - | DT14: - | DU14: - | DV14: - | DW14: - | DX14: - | DY14: - | DZ14: - | EA14: - | EB14: - | EC14: - | ED14: - | EE14: - | EF14: - | EG14: - | EH14: - | EI14: - | EJ14: - | EK14: - | EL14: - | EM14: - | EN14: - | EO14: - | EP14: - | EQ14: - | ER14: - | ES14: - | ET14: - | EU14: - | EV14: - | EW14: - | EX14: - | EY14: - | EZ14: - | FA14: - | FB14: - | FC14: - | FD14: - | FE14: - | FF14: - | FG14: - | FH14: - | FI14: - | FJ14: - | FK14: - | FL14: - | FM14: - | FN14: - | FO14: - | FP14: - | FQ14: - | FR14: - | FS14: - | FT14: - | FU14: - | FV14: - | FW14: - | FX14: - | FY14: - | FZ14: - | GA14: - | GB14: - | GC14: - | GD14: - | GE14: - | GF14: - | GG14: - | GH14: - | GI14: - | GJ14: - | GK14: - | GL14: - | GM14: - | GN14: - | GO14: - | GP14: - | GQ14: - | GR14: - | GS14: - | GT14: - | GU14: - | GV14: - | GW14: - | GX14: - | GY14: - | GZ14: - | HA14: - | HB14: - | HC14: - | HD14: - | HE14: - | HF14: - | HG14: - | HH14: - | HI14: - | HJ14: - | HK14: - | HL14: - | HM14: - | HN14: - | HO14: - | HP14: - | HQ14: - | HR14: - | HS14: - | HT14: - | HU14: - | HV14: - | HW14: - | HX14: - | HY14: - | HZ14: - | IA14: - | IB14: - | IC14: - | ID14: - | IE14: - | IF14: - | IG14: - | IH14: - | II14: - | IJ14: - | IK14: - | IL14: - | IM14: - | IN14: - | IO14: - | IP14: - | IQ14: - | IR14: - | IS14: - | IT14: -
B15: Residuos renovables | C15: - | D15: - | E15: - | F15: - | G15: - | H15: - | I15: - | J15: - | K15: - | L15: - | M15: - | N15: - | O15: - | P15: - | Q15: - | R15: - | S15: - | T15: - | U15: - | V15: - | W15: - | X15: - | Y15: - | Z15: - | AA15: - | AB15: - | AC15: - | AD15: - | AE15: - | AF15: - | AG15: - | AH15: - | AI15: - | AJ15: - | AK15: - | AL15: - | AM15: - | AN15: - | AO15: - | AP15: - | AQ15: - | AR15: - | AS15: - | AT15: - | AU15: - | AV15: - | AW15: - | AX15: - | AY15: - | AZ15: - | BA15: - | BB15: - | BC15: - | BD15: - | BE15: - | BF15: - | BG15: - | BH15: - | BI15: - | BJ15: - | BK15: - | BL15: - | BM15: - | BN15: - | BO15: - | BP15: - | BQ15: - | BR15: - | BS15: - | BT15: - | BU15: - | BV15: - | BW15: - | BX15: - | BY15: - | BZ15: - | CA15: - | CB15: - | CC15: - | CD15: - | CE15: - | CF15: - | CG15: - | CH15: - | CI15: - | CJ15: - | CK15: - | CL15: - | CM15: - | CN15: - | CO15: - | CP15: - | CQ15: - | CR15: - | CS15: - | CT15: - | CU15: - | CV15: - | CW15: - | CX15: - | CY15: - | CZ15: - | DA15: - | DB15: - | DC15: - | DD15: - | DE15: - | DF15: - | DG15: - | DH15: - | DI15: - | DJ15: - | DK15: - | DL15: - | DM15: - | DN15: - | DO15: - | DP15: - | DQ15: - | DR15: - | DS15: - | DT15: - | DU15: - | DV15: - | DW15: - | DX15: - | DY15: - | DZ15: - | EA15: - | EB15: - | EC15: - | ED15: - | EE15: - | EF15: - | EG15: - | EH15: - | EI15: - | EJ15: - | EK15: - | EL15: - | EM15: - | EN15: - | EO15: - | EP15: - | EQ15: - | ER15: - | ES15: - | ET15: - | EU15: - | EV15: - | EW15: - | EX15: - | EY15: - | EZ15: - | FA15: - | FB15: - | FC15: - | FD15: - | FE15: - | FF15: - | FG15: - | FH15: - | FI15: - | FJ15: - | FK15: - | FL15: - | FM15: - | FN15: - | FO15: - | FP15: - | FQ15: - | FR15: - | FS15: - | FT15: - | FU15: - | FV15: - | FW15: - | FX15: - | FY15: - | FZ15: - | GA15: - | GB15: - | GC15: - | GD15: - | GE15: - | GF15: - | GG15: - | GH15: - | GI15: - | GJ15: - | GK15: - | GL15: - | GM15: - | GN15: - | GO15: - | GP15: - | GQ15: - | GR15: - | GS15: - | GT15: - | GU15: - | GV15: - | GW15: - | GX15: - | GY15: - | GZ15: - | HA15: - | HB15: - | HC15: - | HD15: - | HE15: - | HF15: - | HG15: - | HH15: - | HI15: - | HJ15: - | HK15: - | HL15: - | HM15: - | HN15: - | HO15: - | HP15: - | HQ15: - | HR15: - | HS15: - | HT15: - | HU15: - | HV15: - | HW15: - | HX15: - | HY15: - | HZ15: - | IA15: - | IB15: - | IC15: - | ID15: - | IE15: - | IF15: - | IG15: - | IH15: - | II15: - | IJ15: - | IK15: - | IL15: - | IM15: - | IN15: - | IO15: - | IP15: - | IQ15: - | IR15: - | IS15: - | IT15: -
B16: Generación renovable | C16: 30 | D16: 31.1 | E16: 21.3 | F16: 16.6 | G16: 17.4 | H16: 16.8 | I16: 13.8 | J16: 12 | K16: 11.1 | L16: 12.7 | M16: 16.8 | N16: 15.2 | O16: 19.6 | P16: 16.6 | Q16: 32.6 | R16: 31.1 | S16: 25.3 | T16: 19.2 | U16: 14.4 | V16: 10.8 | W16: 9.8 | X16: 13.1 | Y16: 16.3 | Z16: 14.9 | AA16: 9.7 | AB16: 6.3 | AC16: 6.4 | AD16: 14 | AE16: 13.3 | AF16: 14.9 | AG16: 13.7 | AH16: 10.6 | AI16: 10.7 | AJ16: 15.7 | AK16: 18.8 | AL16: 23.4 | AM16: 16.6 | AN16: 12.8 | AO16: 11.8 | AP16: 10.6 | AQ16: 17 | AR16: 20 | AS16: 16.1 | AT16: 11.5 | AU16: 10.6 | AV16: 24.1 | AW16: 28.1 | AX16: 21.3 | AY16: 28.7 | AZ16: 25.7 | BA16: 23.6 | BB16: 20.9 | BC16: 22.9 | BD16: 20.6 | BE16: 14.6 | BF16: 11.9 | BG16: 11 | BH16: 13.7 | BI16: 20 | BJ16: 15 | BK16: 21.2 | BL16: 23.5 | BM16: 25.3 | BN16: 17 | BO16: 15 | BP16: 14.8 | BQ16: 13.1 | BR16: 9.7 | BS16: 8.3 | BT16: 8.7 | BU16: 10.5 | BV16: 18.9 | BW16: 40.1 | BX16: 40.8 | BY16: 27.9 | BZ16: 33 | CA16: 32.4 | CB16: 24.4 | CC16: 18.4 | CD16: 14.1 | CE16: 15.6 | CF16: 14.7 | CG16: 17.6 | CH16: 31.3 | CI16: 37.3 | CJ16: 28.8 | CK16: 21.4 | CL16: 18.5 | CM16: 17.7 | CN16: 18.8 | CO16: 15.5 | CP16: 13.8 | CQ16: 12.6 | CR16: 11.8 | CS16: 25.7 | CT16: 36.1 | CU16: 40.3 | CV16: 31.1 | CW16: 20.7 | CX16: 27.4 | CY16: 31.5 | CZ16: 26 | DA16: 18.3 | DB16: 16.5 | DC16: 14.1 | DD16: 15.5 | DE16: 12 | DF16: 9.6 | DG16: 10.2 | DH16: 11.1 | DI16: 15.4 | DJ16: 18.2 | DK16: 22.4 | DL16: 19.1 | DM16: 14.1 | DN16: 11.7 | DO16: 12 | DP16: 13.6 | DQ16: 20.4 | DR16: 19.4 | DS16: 16.5 | DT16: 12.9 | DU16: 12.1 | DV16: 17.9 | DW16: 23.6 | DX16: 17.3 | DY16: 13.2 | DZ16: 13.7 | EA16: 13.8 | EB16: 14.2 | EC16: 18.7 | ED16: 29.9 | EE16: 37.7 | EF16: 38.9 | EG16: 42.2 | EH16: 34.1 | EI16: 24.4 | EJ16: 18.7 | EK16: 15.1 | EL16: 14.7 | EM16: 13.9 | EN16: 15 | EO16: 16.8 | EP16: 12.4 | EQ16: 10.8 | ER16: 12.3 | ES16: 16.3 | ET16: 15.7 | EU16: 16.8 | EV16: 15.2 | EW16: 11.8 | EX16: 10.5 | EY16: 9.7 | EZ16: 12.4 | FA16: 17.7 | FB16: 29.7 | FC16: 34.6 | FD16: 29 | FE16: 30 | FF16: 30.1 | FG16: 26.6 | FH16: 16.9 | FI16: 14.1 | FJ16: 11.4 | FK16: 14 | FL16: 17.2 | FM16: 24 | FN16: 31.9 | FO16: 26.8 | FP16: 23 | FQ16: 21.9 | FR16: 24.5 | FS16: 23.6 | FT16: 19.6 | FU16: 15.2 | FV16: 15.2 | FW16: 14.4 | FX16: 17.8 | FY16: 19.5 | FZ16: 17.4 | GA16: 16 | GB16: 16.3 | GC16: 17.4 | GD16: 21.5 | GE16: 19.6 | GF16: 15.5 | GG16: 14 | GH16: 14.6 | GI16: 11 | GJ16: 14.3 | GK16: 16.2 | GL16: 18.2 | GM16: 13.8 | GN16: 14.6 | GO16: 25.8 | GP16: 25.6 | GQ16: 19.3 | GR16: 14.3 | GS16: 12 | GT16: 16.3 | GU16: 12.9 | GV16: 19.6 | GW16: 25.3 | GX16: 31 | GY16: 18.9 | GZ16: 27.9 | HA16: 31.1 | HB16: 21.3 | HC16: 26.1 | HD16: 20 | HE16: 19.6 | HF16: 20.3 | HG16: 16.6 | HH16: 17.1 | HI16: 18.2 | HJ16: 15.6 | HK16: 17.1 | HL16: 13.8 | HM16: 22.9 | HN16: 28 | HO16: 24.9 | HP16: 25.3 | HQ16: 19.5 | HR16: 17.8 | HS16: 17.9 | HT16: 18.3 | HU16: 24 | HV16: 27 | HW16: 24.9 | HX16: 33.6 | HY16: 31.2 | HZ16: 30.4 | IA16: 30.4 | IB16: 24.7 | IC16: 21.7 | ID16: 20.7 | IE16: 19.7 | IF16: 24.1 | IG16: 33.8 | IH16: 36.5 | II16: 40.3 | IJ16: 40.2 | IK16: 46.3 | IL16: 39.2 | IM16: 40 | IN16: 33.2 | IO16: 28 | IP16: 26.8 | IQ16: 22 | IR16: 29.1 | IS16: 33.3 | IT16: 38
B17: Generación no renovable | C17: 70 | D17: 68.9 | E17: 78.7 | F17: 83.4 | G17: 82.6 | H17: 83.2 | I17: 86.2 | J17: 88 | K17: 88.9 | L17: 87.3 | M17: 83.2 | N17: 84.8 | O17: 80.4 | P17: 83.4 | Q17: 67.4 | R17: 68.9 | S17: 74.7 | T17: 80.8 | U17: 85.6 | V17: 89.2 | W17: 90.2 | X17: 86.9 | Y17: 83.7 | Z17: 85.1 | AA17: 90.3 | AB17: 93.7 | AC17: 93.6 | AD17: 86 | AE17: 86.7 | AF17: 85.1 | AG17: 86.3 | AH17: 89.4 | AI17: 89.3 | AJ17: 84.3 | AK17: 81.2 | AL17: 76.6 | AM17: 83.4 | AN17: 87.2 | AO17: 88.2 | AP17: 89.4 | AQ17: 83 | AR17: 80 | AS17: 83.9 | AT17: 88.5 | AU17: 89.4 | AV17: 75.9 | AW17: 71.9 | AX17: 78.7 | AY17: 71.3 | AZ17: 74.3 | BA17: 76.4 | BB17: 79.1 | BC17: 77.1 | BD17: 79.4 | BE17: 85.4 | BF17: 88.1 | BG17: 89 | BH17: 86.3 | BI17: 80 | BJ17: 85 | BK17: 78.8 | BL17: 76.5 | BM17: 74.7 | BN17: 83 | BO17: 85 | BP17: 85.2 | BQ17: 86.9 | BR17: 90.3 | BS17: 91.7 | BT17: 91.3 | BU17: 89.5 | BV17: 81.1 | BW17: 59.9 | BX17: 59.2 | BY17: 72.1 | BZ17: 67 | CA17: 67.6 | CB17: 75.6 | CC17: 81.6 | CD17: 85.9 | CE17: 84.4 | CF17: 85.3 | CG17: 82.4 | CH17: 68.7 | CI17: 62.7 | CJ17: 71.2 | CK17: 78.6 | CL17: 81.5 | CM17: 82.3 | CN17: 81.2 | CO17: 84.5 | CP17: 86.2 | CQ17: 87.4 | CR17: 88.2 | CS17: 74.3 | CT17: 63.9 | CU17: 59.7 | CV17: 68.9 | CW17: 79.3 | CX17: 72.6 | CY17: 68.5 | CZ17: 74 | DA17: 81.7 | DB17: 83.5 | DC17: 85.9 | DD17: 84.5 | DE17: 88 | DF17: 90.4 | DG17: 89.8 | DH17: 88.9 | DI17: 84.6 | DJ17: 81.8 | DK17: 77.6 | DL17: 80.9 | DM17: 85.9 | DN17: 88.3 | DO17: 88 | DP17: 86.4 | DQ17: 79.6 | DR17: 80.6 | DS17: 83.5 | DT17: 87.1 | DU17: 87.9 | DV17: 82.1 | DW17: 76.4 | DX17: 82.7 | DY17: 86.8 | DZ17: 86.3 | EA17: 86.2 | EB17: 85.8 | EC17: 81.3 | ED17: 70.1 | EE17: 62.3 | EF17: 61.1 | EG17: 57.8 | EH17: 65.9 | EI17: 75.6 | EJ17: 81.3 | EK17: 84.9 | EL17: 85.3 | EM17: 86.1 | EN17: 85 | EO17: 83.2 | EP17: 87.6 | EQ17: 89.2 | ER17: 87.7 | ES17: 83.7 | ET17: 84.3 | EU17: 83.2 | EV17: 84.8 | EW17: 88.2 | EX17: 89.5 | EY17: 90.3 | EZ17: 87.6 | FA17: 82.3 | FB17: 70.3 | FC17: 65.4 | FD17: 71 | FE17: 70 | FF17: 69.9 | FG17: 73.4 | FH17: 83.1 | FI17: 85.9 | FJ17: 88.6 | FK17: 86 | FL17: 82.8 | FM17: 76 | FN17: 68.1 | FO17: 73.2 | FP17: 77 | FQ17: 78.1 | FR17: 75.5 | FS17: 76.4 | FT17: 80.4 | FU17: 84.8 | FV17: 84.8 | FW17: 85.6 | FX17: 82.2 | FY17: 80.5 | FZ17: 82.6 | GA17: 84 | GB17: 83.7 | GC17: 82.6 | GD17: 78.5 | GE17: 80.4 | GF17: 84.5 | GG17: 86 | GH17: 85.4 | GI17: 89 | GJ17: 85.7 | GK17: 83.8 | GL17: 81.8 | GM17: 86.2 | GN17: 85.4 | GO17: 74.2 | GP17: 74.4 | GQ17: 80.7 | GR17: 85.7 | GS17: 88 | GT17: 83.7 | GU17: 87.1 | GV17: 80.4 | GW17: 74.7 | GX17: 69 | GY17: 81.1 | GZ17: 72.1 | HA17: 68.9 | HB17: 78.7 | HC17: 73.9 | HD17: 80 | HE17: 80.4 | HF17: 79.7 | HG17: 83.4 | HH17: 82.9 | HI17: 81.8 | HJ17: 84.4 | HK17: 82.9 | HL17: 86.2 | HM17: 77.1 | HN17: 72 | HO17: 75.1 | HP17: 74.7 | HQ17: 80.5 | HR17: 82.2 | HS17: 82.1 | HT17: 81.7 | HU17: 76 | HV17: 73 | HW17: 75.1 | HX17: 66.4 | HY17: 68.8 | HZ17: 69.6 | IA17: 69.6 | IB17: 75.3 | IC17: 78.3 | ID17: 79.3 | IE17: 80.3 | IF17: 75.9 | IG17: 66.2 | IH17: 63.5 | II17: 59.7 | IJ17: 59.8 | IK17: 53.7 | IL17: 60.8 | IM17: 60 | IN17: 66.8 | IO17: 72 | IP17: 73.2 | IQ17: 78 | IR17: 70.9 | IS17: 66.7 | IT17: 62
B19: Estructura de generación mensual Islas Baleares (%) | C19: 2006-01-01 | D19: 2006-02-01 | E19: 2006-03-01 | F19: 2006-04-01 | G19: 2006-05-01 | H19: 2006-06-01 | I19: 2006-07-01 | J19: 2006-08-01 | K19: 2006-09-01 | L19: 2006-10-01 | M19: 2006-11-01 | N19: 2006-12-01 | O19: 2007-01-01 | P19: 2007-02-01 | Q19: 2007-03-01 | R19: 2007-04-01 | S19: 2007-05-01 | T19: 2007-06-01 | U19: 2007-07-01 | V19: 2007-08-01 | W19: 2007-09-01 | X19: 2007-10-01 | Y19: 2007-11-01 | Z19: 2007-12-01 | AA19: 2008-01-01 | AB19: 2008-02-01 | AC19: 2008-03-01 | AD19: 2008-04-01 | AE19: 2008-05-01 | AF19: 2008-06-01 | AG19: 2008-07-01 | AH19: 2008-08-01 | AI19: 2008-09-01 | AJ19: 2008-10-01 | AK19: 2008-11-01 | AL19: 2008-12-01 | AM19: 2009-01-01 | AN19: 2009-02-01 | AO19: 2009-03-01 | AP19: 2009-04-01 | AQ19: 2009-05-01 | AR19: 2009-06-01 | AS19: 2009-07-01 | AT19: 2009-08-01 | AU19: 2009-09-01 | AV19: 2009-10-01 | AW19: 2009-11-01 | AX19: 2009-12-01 | AY19: 2010-01-01 | AZ19: 2010-02-01 | BA19: 2010-03-01 | BB19: 2010-04-01 | BC19: 2010-05-01 | BD19: 2010-06-01 | BE19: 2010-07-01 | BF19: 2010-08-01 | BG19: 2010-09-01 | BH19: 2010-10-01 | BI19: 2010-11-01 | BJ19: 2010-12-01
B20: Carbón | C20: 56.7 | D20: 54.6 | E20: 61.1 | F20: 61.7 | G20: 59.6 | H20: 55.2 | I20: 45.9 | J20: 46.4 | K20: 48.3 | L20: 38.2 | M20: 53.8 | N20: 59 | O20: 53.3 | P20: 53.7 | Q20: 47.7 | R20: 61.1 | S20: 48.5 | T20: 41.8 | U20: 44.9 | V20: 46.9 | W20: 49.3 | X20: 48.3 | Y20: 45.8 | Z20: 53.9 | AA20: 58.8 | AB20: 58.1 | AC20: 56.4 | AD20: 49.7 | AE20: 52.1 | AF20: 53.8 | AG20: 46 | AH20: 46.1 | AI20: 51.6 | AJ20: 51.8 | AK20: 49.9 | AL20: 37.2 | AM20: 36.3 | AN20: 59.1 | AO20: 49.8 | AP20: 55.4 | AQ20: 58.5 | AR20: 54.4 | AS20: 45.7 | AT20: 47 | AU20: 49.6 | AV20: 62.3 | AW20: 66.3 | AX20: 61.2 | AY20: 58.7 | AZ20: 55.6 | BA20: 60 | BB20: 65.5 | BC20: 52.5 | BD20: 58.6 | BE20: 46.3 | BF20: 45.8 | BG20: 54.8 | BH20: 48.8 | BI20: 47.7 | BJ20: 47.1
B21: Motores diesel | C21: 16 | D21: 15.2 | E21: 15.4 | F21: 16.6 | G21: 17.4 | H21: 16.3 | I21: 16.3 | J21: 16.7 | K21: 17.8 | L21: 17.3 | M21: 17 | N21: 16.7 | O21: 16.4 | P21: 15.6 | Q21: 16.2 | R21: 16.6 | S21: 17.9 | T21: 17.4 | U21: 16.5 | V21: 16.9 | W21: 18.1 | X21: 16.7 | Y21: 16.8 | Z21: 16.5 | AA21: 16.4 | AB21: 15.2 | AC21: 16 | AD21: 16.7 | AE21: 18.2 | AF21: 18.6 | AG21: 18.1 | AH21: 18.1 | AI21: 17.7 | AJ21: 16.6 | AK21: 16.6 | AL21: 16 | AM21: 16.5 | AN21: 15 | AO21: 15.4 | AP21: 17 | AQ21: 16.4 | AR21: 17.2 | AS21: 16.1 | AT21: 16.2 | AU21: 16.4 | AV21: 15.6 | AW21: 16.1 | AX21: 16.3 | AY21: 16.4 | AZ21: 15.6 | BA21: 16.5 | BB21: 17 | BC21: 19.1 | BD21: 19.9 | BE21: 17.9 | BF21: 18.2 | BG21: 18.8 | BH21: 17.3 | BI21: 16.6 | BJ21: 17.3
B22: Turbina de gas | C22: 1.4 | D22: 2.4 | E22: 5 | F22: 3.5 | G22: 3.4 | H22: 5.6 | I22: 8.8 | J22: 6.7 | K22: 6 | L22: 6.4 | M22: 4.9 | N22: 3.8 | O22: 5 | P22: 4.9 | Q22: 4.4 | R22: 3.9 | S22: 7.8 | T22: 6 | U22: 6.7 | V22: 6.1 | W22: 4 | X22: 4.4 | Y22: 4.7 | Z22: 3.7 | AA22: 3.6 | AB22: 4.3 | AC22: 4.2 | AD22: 2.9 | AE22: 2.8 | AF22: 4.4 | AG22: 5.4 | AH22: 5.8 | AI22: 5.7 | AJ22: 4.4 | AK22: 4.4 | AL22: 4.3 | AM22: 3.7 | AN22: 4.5 | AO22: 4.2 | AP22: 2.8 | AQ22: 5.3 | AR22: 6.3 | AS22: 8.1 | AT22: 8 | AU22: 7.1 | AV22: 5.4 | AW22: 5.5 | AX22: 4.6 | AY22: 4.7 | AZ22: 5.6 | BA22: 4.7 | BB22: 4.1 | BC22: 3.6 | BD22: 4.3 | BE22: 6.6 | BF22: 6.7 | BG22: 5.2 | BH22: 5.1 | BI22: 5.3 | BJ22: 4.6
B23: Ciclo combinado | C23: 23.2 | D23: 25.1 | E23: 15.6 | F23: 15 | G23: 17.5 | H23: 20.6 | I23: 27.2 | J23: 27.6 | K23: 25.2 | L23: 35.4 | M23: 21.4 | N23: 17.6 | O23: 23 | P23: 23 | Q23: 28.8 | R23: 15.5 | S23: 24 | T23: 32.8 | U23: 30 | V23: 27.1 | W23: 26.4 | X23: 30.3 | Y23: 30.7 | Z23: 23.2 | AA23: 18.9 | AB23: 19.7 | AC23: 20.6 | AD23: 27.7 | AE23: 24.2 | AF23: 20.6 | AG23: 27.9 | AH23: 27.1 | AI23: 21.9 | AJ23: 23.7 | AK23: 25.5 | AL23: 39.2 | AM23: 40.2 | AN23: 18 | AO23: 28.7 | AP23: 20.5 | AQ23: 15.1 | AR23: 18.2 | AS23: 26.8 | AT23: 25.4 | AU23: 23.1 | AV23: 12.7 | AW23: 7.6 | AX23: 14.2 | AY23: 17.1 | AZ23: 19.9 | BA23: 14.8 | BB23: 8.6 | BC23: 20.1 | BD23: 13 | BE23: 25.2 | BF23: 23.4 | BG23: 14.3 | BH23: 24.1 | BI23: 24.5 | BJ23: 25.5
B24: Generación auxiliar | C24: - | D24: - | E24: - | F24: - | G24: - | H24: - | I24: 0 | J24: 0.6 | K24: 0.5 | L24: 0 | M24: - | N24: 0 | O24: - | P24: - | Q24: - | R24: - | S24: - | T24: - | U24: 0.4 | V24: 1.4 | W24: 0.3 | X24: - | Y24: - | Z24: - | AA24: - | AB24: - | AC24: - | AD24: - | AE24: - | AF24: - | AG24: 0.3 | AH24: 0.4 | AI24: 0.2 | AJ24: 0 | AK24: - | AL24: - | AM24: - | AN24: - | AO24: - | AP24: - | AQ24: - | AR24: - | AS24: 0.2 | AT24: 0.5 | AU24: 0.2 | AV24: 0 | AW24: - | AX24: - | AY24: - | AZ24: - | BA24: - | BB24: - | BC24: - | BD24: 0 | BE24: 0.4 | BF24: 0.5 | BG24: 0.2 | BH24: 0 | BI24: - | BJ24: -
B25: Eólica | C25: 0.1 | D25: 0.1 | E25: 0.1 | F25: 0.1 | G25: 0.1 | H25: 0.1 | I25: 0 | J25: 0.1 | K25: 0.1 | L25: 0.1 | M25: 0.1 | N25: 0.1 | O25: 0.1 | P25: 0.1 | Q25: 0.1 | R25: 0.1 | S25: 0.1 | T25: 0.1 | U25: 0.1 | V25: 0.1 | W25: 0.1 | X25: 0.1 | Y25: 0.2 | Z25: 0.2 | AA25: 0.1 | AB25: 0.1 | AC25: 0.1 | AD25: 0.2 | AE25: 0 | AF25: 0.1 | AG25: 0 | AH25: 0.1 | AI25: 0.1 | AJ25: 0.1 | AK25: 0.1 | AL25: 0.1 | AM25: 0.1 | AN25: 0.2 | AO25: 0.1 | AP25: 0.1 | AQ25: 0.1 | AR25: 0.1 | AS25: 0 | AT25: 0 | AU25: 0.1 | AV25: 0.1 | AW25: 0.1 | AX25: 0.2 | AY25: 0.1 | AZ25: 0.2 | BA25: 0.1 | BB25: 0.1 | BC25: 0.1 | BD25: 0.1 | BE25: 0.1 | BF25: 0.1 | BG25: 0.1 | BH25: 0.1 | BI25: 0.1 | BJ25: 0.1
B26: Solar fotovoltaica | C26: 0 | D26: 0 | E26: 0 | F26: 0 | G26: 0 | H26: 0 | I26: 0 | J26: 0 | K26: 0 | L26: 0 | M26: 0 | N26: 0 | O26: 0 | P26: 0 | Q26: 0 | R26: 0 | S26: 0 | T26: 0 | U26: 0 | V26: 0 | W26: 0 | X26: 0 | Y26: 0 | Z26: 0 | AA26: 0 | AB26: 0 | AC26: 0.1 | AD26: 0.2 | AE26: 0.2 | AF26: 0.3 | AG26: 0.4 | AH26: 0.7 | AI26: 0.9 | AJ26: 0.9 | AK26: 0.8 | AL26: 0.8 | AM26: 0.7 | AN26: 1.1 | AO26: 1.6 | AP26: 1.6 | AQ26: 1.9 | AR26: 1.7 | AS26: 1.4 | AT26: 1.3 | AU26: 1.3 | AV26: 1.4 | AW26: 1.3 | AX26: 0.8 | AY26: 0.8 | AZ26: 1.1 | BA26: 1.5 | BB26: 2 | BC26: 2.1 | BD26: 1.9 | BE26: 1.7 | BF26: 1.6 | BG26: 1.6 | BH26: 1.5 | BI26: 1.4 | BJ26: 1
B27: Térmica renovable/Otras renovables | C27: - | D27: - | E27: - | F27: - | G27: - | H27: - | I27: - | J27: - | K27: - | L27: - | M27: - | N27: - | O27: - | P27: - | Q27: - | R27: - | S27: - | T27: - | U27: - | V27: - | W27: - | X27: - | Y27: - | Z27: - | AA27: - | AB27: - | AC27: - | AD27: - | AE27: - | AF27: - | AG27: - | AH27: - | AI27: - | AJ27: - | AK27: - | AL27: - | AM27: - | AN27: - | AO27: - | AP27: - | AQ27: - | AR27: - | AS27: - | AT27: - | AU27: - | AV27: - | AW27: - | AX27: - | AY27: - | AZ27: - | BA27: - | BB27: - | BC27: - | BD27: - | BE27: - | BF27: - | BG27: - | BH27: - | BI27: - | BJ27: -
B28: Térmica no renovable/Cogeneración y resto/Cogeneración | C28: 2.6 | D28: 2.6 | E28: 2.8 | F28: 3.1 | G28: 2 | H28: 2.2 | I28: 1.8 | J28: 1.9 | K28: 2.1 | L28: 2.6 | M28: 2.8 | N28: 2.8 | O28: 2.2 | P28: 2.7 | Q28: 2.8 | R28: 2.8 | S28: 1.7 | T28: 1.9 | U28: 1.4 | V28: 1.5 | W28: 1.8 | X28: 0.2 | Y28: 1.8 | Z28: 2.5 | AA28: 2.2 | AB28: 2.6 | AC28: 2.6 | AD28: 2.6 | AE28: 2.5 | AF28: 2.2 | AG28: 1.9 | AH28: 1.7 | AI28: 1.9 | AJ28: 2.5 | AK28: 2.7 | AL28: 2.4 | AM28: 2.5 | AN28: 2.1 | AO28: 0.2 | AP28: 2.6 | AQ28: 2.7 | AR28: 2.1 | AS28: 1.7 | AT28: 1.6 | AU28: 2.2 | AV28: 2.5 | AW28: 3.1 | AX28: 2.7 | AY28: 2.2 | AZ28: 2 | BA28: 2.4 | BB28: 2.7 | BC28: 2.5 | BD28: 2.2 | BE28: 1.8 | BF28: 3.7 | BG28: 5 | BH28: 3.1 | BI28: 4.4 | BJ28: 4.4
B29: Residuos no renovables | C29: - | D29: - | E29: - | F29: - | G29: - | H29: - | I29: - | J29: - | K29: - | L29: - | M29: - | N29: - | O29: - | P29: - | Q29: - | R29: - | S29: - | T29: - | U29: - | V29: - | W29: - | X29: - | Y29: - | Z29: - | AA29: - | AB29: - | AC29: - | AD29: - | AE29: - | AF29: - | AG29: - | AH29: - | AI29: - | AJ29: - | AK29: - | AL29: - | AM29: - | AN29: - | AO29: - | AP29: - | AQ29: - | AR29: - | AS29: - | AT29: - | AU29: - | AV29: - | AW29: - | AX29: - | AY29: - | AZ29: - | BA29: - | BB29: - | BC29: - | BD29: - | BE29: - | BF29: - | BG29: - | BH29: - | BI29: - | BJ29: -
B30: Residuos renovables | C30: - | D30: - | E30: - | F30: - | G30: - | H30: - | I30: - | J30: - | K30: - | L30: - | M30: - | N30: - | O30: - | P30: - | Q30: - | R30: - | S30: - | T30: - | U30: - | V30: - | W30: - | X30: - | Y30: - | Z30: - | AA30: - | AB30: - | AC30: - | AD30: - | AE30: - | AF30: - | AG30: - | AH30: - | AI30: - | AJ30: - | AK30: - | AL30: - | AM30: - | AN30: - | AO30: - | AP30: - | AQ30: - | AR30: - | AS30: - | AT30: - | AU30: - | AV30: - | AW30: - | AX30: - | AY30: - | AZ30: - | BA30: - | BB30: - | BC30: - | BD30: - | BE30: - | BF30: - | BG30: - | BH30: - | BI30: - | BJ30: -
B31: Generación renovable | C31: 0.1 | D31: 0.1 | E31: 0.1 | F31: 0.1 | G31: 0.1 | H31: 0.1 | I31: 0 | J31: 0.1 | K31: 0.1 | L31: 0.1 | M31: 0.1 | N31: 0.1 | O31: 0.1 | P31: 0.1 | Q31: 0.1 | R31: 0.1 | S31: 0.1 | T31: 0.1 | U31: 0.1 | V31: 0.1 | W31: 0.1 | X31: 0.1 | Y31: 0.2 | Z31: 0.2 | AA31: 0.1 | AB31: 0.1 | AC31: 0.2 | AD31: 0.4 | AE31: 0.2 | AF31: 0.4 | AG31: 0.4 | AH31: 0.8 | AI31: 1 | AJ31: 1 | AK31: 0.9 | AL31: 0.9 | AM31: 0.8 | AN31: 1.3 | AO31: 1.7 | AP31: 1.7 | AQ31: 2 | AR31: 1.8 | AS31: 1.4 | AT31: 1.3 | AU31: 1.4 | AV31: 1.5 | AW31: 1.4 | AX31: 1 | AY31: 0.9 | AZ31: 1.3 | BA31: 1.6 | BB31: 2.1 | BC31: 2.2 | BD31: 2 | BE31: 1.8 | BF31: 1.7 | BG31: 1.7 | BH31: 1.6 | BI31: 1.5 | BJ31: 1.1
B32: Generación no renovable | C32: 99.9 | D32: 99.9 | E32: 99.9 | F32: 99.9 | G32: 99.9 | H32: 99.9 | I32: 100 | J32: 99.9 | K32: 99.9 | L32: 99.9 | M32: 99.9 | N32: 99.9 | O32: 99.9 | P32: 99.9 | Q32: 99.9 | R32: 99.9 | S32: 99.9 | T32: 99.9 | U32: 99.9 | V32: 99.9 | W32: 99.9 | X32: 99.9 | Y32: 99.8 | Z32: 99.8 | AA32: 99.9 | AB32: 99.9 | AC32: 99.8 | AD32: 99.6 | AE32: 99.8 | AF32: 99.6 | AG32: 99.6 | AH32: 99.2 | AI32: 99 | AJ32: 99 | AK32: 99.1 | AL32: 99.1 | AM32: 99.2 | AN32: 98.7 | AO32: 98.3 | AP32: 98.3 | AQ32: 98 | AR32: 98.2 | AS32: 98.6 | AT32: 98.7 | AU32: 98.6 | AV32: 98.5 | AW32: 98.6 | AX32: 99 | AY32: 99.1 | AZ32: 98.7 | BA32: 98.4 | BB32: 97.9 | BC32: 97.8 | BD32: 98 | BE32: 98.2 | BF32: 98.3 | BG32: 98.3 | BH32: 98.4 | BI32: 98.5 | BJ32: 98.9
B34: Estructura de generación mensual Islas Canarias (%) | C34: 2006-01-01 | D34: 2006-02-01 | E34: 2006-03-01 | F34: 2006-04-01 | G34: 2006-05-01 | H34: 2006-06-01 | I34: 2006-07-01 | J34: 2006-08-01 | K34: 2006-09-01 | L34: 2006-10-01 | M34: 2006-11-01 | N34: 2006-12-01 | O34: 2007-01-01 | P34: 2007-02-01 | Q34: 2007-03-01 | R34: 2007-04-01 | S34: 2007-05-01 | T34: 2007-06-01 | U34: 2007-07-01 | V34: 2007-08-01 | W34: 2007-09-01 | X34: 2007-10-01 | Y34: 2007-11-01 | Z34: 2007-12-01 | AA34: 2008-01-01 | AB34: 2008-02-01 | AC34: 2008-03-01 | AD34: 2008-04-01 | AE34: 2008-05-01 | AF34: 2008-06-01 | AG34: 2008-07-01 | AH34: 2008-08-01 | AI34: 2008-09-01 | AJ34: 2008-10-01 | AK34: 2008-11-01 | AL34: 2008-12-01 | AM34: 2009-01-01 | AN34: 2009-02-01 | AO34: 2009-03-01 | AP34: 2009-04-01 | AQ34: 2009-05-01 | AR34: 2009-06-01 | AS34: 2009-07-01 | AT34: 2009-08-01 | AU34: 2009-09-01 | AV34: 2009-10-01 | AW34: 2009-11-01 | AX34: 2009-12-01 | AY34: 2010-01-01 | AZ34: 2010-02-01 | BA34: 2010-03-01 | BB34: 2010-04-01 | BC34: 2010-05-01 | BD34: 2010-06-01 | BE34: 2010-07-01 | BF34: 2010-08-01 | BG34: 2010-09-01 | BH34: 2010-10-01 | BI34: 2010-11-01 | BJ34: 2010-12-01
B35: Hidráulica | C35: - | D35: - | E35: - | F35: - | G35: - | H35: - | I35: - | J35: - | K35: - | L35: - | M35: - | N35: - | O35: - | P35: - | Q35: - | R35: - | S35: - | T35: - | U35: 0 | V35: 0 | W35: 0 | X35: 0 | Y35: 0 | Z35: 0 | AA35: 0 | AB35: 0 | AC35: 0 | AD35: - | AE35: 0 | AF35: 0 | AG35: 0 | AH35: 0 | AI35: - | AJ35: - | AK35: - | AL35: - | AM35: 0 | AN35: 0 | AO35: 0 | AP35: 0 | AQ35: - | AR35: - | AS35: - | AT35: - | AU35: - | AV35: - | AW35: - | AX35: - | AY35: - | AZ35: - | BA35: - | BB35: - | BC35: - | BD35: - | BE35: - | BF35: - | BG35: - | BH35: - | BI35: - | BJ35: -
B36: Motores diesel | C36: 22.9 | D36: 22.8 | E36: 21.7 | F36: 20.8 | G36: 24 | H36: 24.8 | I36: 23.1 | J36: 23 | K36: 23.4 | L36: 23 | M36: 21.3 | N36: 22.4 | O36: 24.2 | P36: 22.3 | Q36: 22.2 | R36: 21.9 | S36: 21.4 | T36: 22.6 | U36: 22.8 | V36: 22.1 | W36: 21.9 | X36: 21.3 | Y36: 21.8 | Z36: 21.4 | AA36: 21.5 | AB36: 23.1 | AC36: 21.2 | AD36: 22.5 | AE36: 24 | AF36: 22.7 | AG36: 22.7 | AH36: 22.3 | AI36: 23.3 | AJ36: 22.3 | AK36: 22.4 | AL36: 22.7 | AM36: 22.7 | AN36: 23.4 | AO36: 22.3 | AP36: 22.7 | AQ36: 24.1 | AR36: 24.1 | AS36: 22.4 | AT36: 22.7 | AU36: 24.1 | AV36: 24.1 | AW36: 24.1 | AX36: 25.4 | AY36: 24.9 | AZ36: 24.9 | BA36: 25.1 | BB36: 24.4 | BC36: 22.5 | BD36: 22.9 | BE36: 24 | BF36: 25.3 | BG36: 24.7 | BH36: 26.1 | BI36: 25 | BJ36: 24.6
B37: Turbina de gas | C37: 7.3 | D37: 9 | E37: 12.6 | F37: 8.8 | G37: 8.1 | H37: 10.5 | I37: 8.8 | J37: 8.8 | K37: 9.8 | L37: 10.6 | M37: 10 | N37: 7.7 | O37: 8.3 | P37: 9.3 | Q37: 9 | R37: 8.8 | S37: 8.2 | T37: 6.8 | U37: 5.9 | V37: 6.9 | W37: 8.1 | X37: 7.1 | Y37: 7.1 | Z37: 6 | AA37: 6.2 | AB37: 5.3 | AC37: 3.7 | AD37: 4.3 | AE37: 5.2 | AF37: 6.3 | AG37: 5.9 | AH37: 5.2 | AI37: 6.4 | AJ37: 4.6 | AK37: 3.9 | AL37: 3.8 | AM37: 4.5 | AN37: 3.2 | AO37: 4 | AP37: 1.6 | AQ37: 5.3 | AR37: 5.1 | AS37: 3.1 | AT37: 3.6 | AU37: 5.2 | AV37: 3.9 | AW37: 3.3 | AX37: 2.2 | AY37: 1.8 | AZ37: 2.8 | BA37: 2.7 | BB37: 2 | BC37: 4.3 | BD37: 4.4 | BE37: 3.9 | BF37: 3.2 | BG37: 3.7 | BH37: 6.1 | BI37: 6.1 | BJ37: 5.3
B38: Turbina de vapor | C38: 48.3 | D38: 47 | E38: 48.7 | F38: 43.1 | G38: 38.5 | H38: 34.8 | I38: 33.4 | J38: 34.2 | K38: 36.5 | L38: 33.4 | M38: 36.6 | N38: 34.9 | O38: 34.6 | P38: 35.6 | Q38: 35.4 | R38: 40.6 | S38: 29.6 | T38: 37.8 | U38: 31.6 | V38: 37.1 | W38: 37.3 | X38: 36.8 | Y38: 36 | Z38: 38.4 | AA38: 41.1 | AB38: 42.3 | AC38: 37.2 | AD38: 35.7 | AE38: 37.1 | AF38: 30.4 | AG38: 34.5 | AH38: 33.5 | AI38: 36 | AJ38: 37.5 | AK38: 37.2 | AL38: 36.7 | AM38: 36.7 | AN38: 35.7 | AO38: 36.9 | AP38: 35.2 | AQ38: 39.9 | AR38: 34.6 | AS38: 32.8 | AT38: 34.8 | AU38: 36.6 | AV38: 37 | AW38: 32.8 | AX38: 34.5 | AY38: 36.6 | AZ38: 35.6 | BA38: 34.4 | BB38: 32.9 | BC38: 35.3 | BD38: 35.5 | BE38: 32.6 | BF38: 33.8 | BG38: 33.3 | BH38: 28.5 | BI38: 30 | BJ38: 33
B39: Ciclo combinado | C39: 17.5 | D39: 16.6 | E39: 11 | F39: 20.2 | G39: 21.8 | H39: 23.4 | I39: 24.5 | J39: 26.5 | K39: 25.6 | L39: 27.6 | M39: 27.5 | N39: 28.5 | O39: 26.2 | P39: 24.8 | Q39: 26.2 | R39: 20.9 | S39: 32.5 | T39: 24.9 | U39: 28.5 | V39: 23.5 | W39: 25 | X39: 28.4 | Y39: 29.2 | Z39: 27.6 | AA39: 25.2 | AB39: 22.7 | AC39: 28.3 | AD39: 28.4 | AE39: 25.3 | AF39: 31.7 | AG39: 27.7 | AH39: 27.2 | AI39: 28.9 | AJ39: 27.3 | AK39: 28.9 | AL39: 29.2 | AM39: 28.3 | AN39: 29.8 | AO39: 29.7 | AP39: 27.8 | AQ39: 20.5 | AR39: 27.5 | AS39: 28.9 | AT39: 26.2 | AU39: 26.2 | AV39: 28.8 | AW39: 31.8 | AX39: 30.8 | AY39: 30.5 | AZ39: 30.2 | BA39: 30.3 | BB39: 30.5 | BC39: 26.7 | BD39: 26.4 | BE39: 28.9 | BF39: 28.7 | BG39: 30.6 | BH39: 34.7 | BI39: 34.3 | BJ39: 32.9
B40: Generación auxiliar | C40: - | D40: - | E40: - | F40: - | G40: - | H40: - | I40: - | J40: - | K40: - | L40: - | M40: - | N40: - | O40: 1.6 | P40: 1.7 | Q40: 1.5 | R40: 1.6 | S40: 1.4 | T40: 1.3 | U40: 1.3 | V40: 1.5 | W40: 1.5 | X40: 1.5 | Y40: 1.3 | Z40: 1.1 | AA40: 1.3 | AB40: 1.3 | AC40: 1.4 | AD40: 1.3 | AE40: 0.9 | AF40: 0.9 | AG40: 1 | AH40: 1 | AI40: 0.6 | AJ40: 0.6 | AK40: 0.7 | AL40: 0.6 | AM40: 0.6 | AN40: 0.6 | AO40: 0.6 | AP40: 0.4 | AQ40: 0.4 | AR40: 0.4 | AS40: 0.7 | AT40: 0.4 | AU40: 0.2 | AV40: 0.1 | AW40: 0.1 | AX40: 0 | AY40: - | AZ40: - | BA40: - | BB40: - | BC40: - | BD40: - | BE40: - | BF40: - | BG40: - | BH40: - | BI40: - | BJ40: -
B41: Hidroeólica | C41: - | D41: - | E41: - | F41: - | G41: - | H41: - | I41: - | J41: - | K41: - | L41: - | M41: - | N41: - | O41: - | P41: - | Q41: - | R41: - | S41: - | T41: - | U41: - | V41: - | W41: - | X41: - | Y41: - | Z41: - | AA41: - | AB41: - | AC41: - | AD41: - | AE41: - | AF41: - | AG41: - | AH41: - | AI41: - | AJ41: - | AK41: - | AL41: - | AM41: - | AN41: - | AO41: - | AP41: - | AQ41: - | AR41: - | AS41: - | AT41: - | AU41: - | AV41: - | AW41: - | AX41: - | AY41: - | AZ41: - | BA41: - | BB41: - | BC41: - | BD41: - | BE41: - | BF41: - | BG41: - | BH41: - | BI41: - | BJ41: -
B42: Eólica | C42: 2.4 | D42: 2.9 | E42: 3.1 | F42: 4.1 | G42: 4.9 | H42: 3.6 | I42: 7.4 | J42: 4.9 | K42: 2.9 | L42: 2.5 | M42: 2.1 | N42: 3.4 | O42: 2.3 | P42: 3.3 | Q42: 4.8 | R42: 3.6 | S42: 4.6 | T42: 4.3 | U42: 7.2 | V42: 6 | W42: 3.4 | X42: 2.4 | Y42: 2.1 | Z42: 2.4 | AA42: 1.6 | AB42: 2.2 | AC42: 5.1 | AD42: 4.7 | AE42: 4.1 | AF42: 5.3 | AG42: 7.5 | AH42: 7.5 | AI42: 2.2 | AJ42: 4.3 | AK42: 2.9 | AL42: 3.2 | AM42: 3.1 | AN42: 2.5 | AO42: 3.2 | AP42: 6.5 | AQ42: 4.4 | AR42: 2.8 | AS42: 6.9 | AT42: 7.1 | AU42: 3 | AV42: 1.6 | AW42: 3.3 | AX42: 2.7 | AY42: 1.6 | AZ42: 2.2 | BA42: 3.1 | BB42: 4.5 | BC42: 5 | BD42: 5.4 | BE42: 6.3 | BF42: 5.4 | BG42: 4.7 | BH42: 1.8 | BI42: 2.4 | BJ42: 2.2
B43: Solar fotovoltaica | C43: 0 | D43: 0 | E43: 0 | F43: 0 | G43: 0 | H43: 0 | I43: 0 | J43: 0.1 | K43: 0.1 | L43: 0.1 | M43: 0.1 | N43: 0.1 | O43: 0.1 | P43: 0.1 | Q43: 0.2 | R43: 0.2 | S43: 0.2 | T43: 0.2 | U43: 0.3 | V43: 0.3 | W43: 0.3 | X43: 0.2 | Y43: 0.2 | Z43: 0.2 | AA43: 0.3 | AB43: 0.4 | AC43: 0.5 | AD43: 0.5 | AE43: 0.6 | AF43: 0.7 | AG43: 0.7 | AH43: 0.7 | AI43: 0.8 | AJ43: 1.2 | AK43: 1 | AL43: 0.9 | AM43: 1.1 | AN43: 1.6 | AO43: 1.7 | AP43: 2.3 | AQ43: 2.2 | AR43: 2.2 | AS43: 2.2 | AT43: 2.2 | AU43: 1.6 | AV43: 1.7 | AW43: 1.5 | AX43: 1.2 | AY43: 1.4 | AZ43: 1.5 | BA43: 2.2 | BB43: 2.3 | BC43: 2.7 | BD43: 2.7 | BE43: 3 | BF43: 2.8 | BG43: 2.3 | BH43: 2.1 | BI43: 1.7 | BJ43: 1.7
B44: Térmica renovable/Otras renovables | C44: 1.2 | D44: 1.7 | E44: 2.9 | F44: 3 | G44: 2.7 | H44: 2.9 | I44: 2.8 | J44: 2.5 | K44: 1.7 | L44: 2.8 | M44: 2.4 | N44: 3 | O44: 2.7 | P44: 2.9 | Q44: 0.7 | R44: 2.4 | S44: 2.1 | T44: 2.1 | U44: 2.4 | V44: 2.6 | W44: 2.5 | X44: 2.3 | Y44: 2.3 | Z44: 2.9 | AA44: 2.8 | AB44: 2.7 | AC44: 2.6 | AD44: 2.6 | AE44: 2.8 | AF44: 2 | AG44: 0 | AH44: 2.6 | AI44: 1.8 | AJ44: 2.2 | AK44: 3 | AL44: 2.9 | AM44: 3 | AN44: 3.2 | AO44: 1.6 | AP44: 3.5 | AQ44: 3.2 | AR44: 3.3 | AS44: 3 | AT44: 3 | AU44: 3.1 | AV44: 2.8 | AW44: 3.1 | AX44: 3.2 | AY44: 3.2 | AZ44: 2.8 | BA44: 2.2 | BB44: 3.4 | BC44: 3.5 | BD44: 2.7 | BE44: 1.3 | BF44: 0.8 | BG44: 0.7 | BH44: 0.7 | BI44: 0.5 | BJ44: 0.3
B45: Térmica no renovable/Cogeneración y resto/Cogeneración | C45: 0.4 | D45: - | E45: - | F45: - | G45: - | H45: - | I45: - | J45: - | K45: - | L45: - | M45: - | N45: - | O45: - | P45: - | Q45: - | R45: - | S45: - | T45: - | U45: - | V45: - | W45: - | X45: - | Y45: - | Z45: - | AA45: - | AB45: - | AC45: - | AD45: - | AE45: - | AF45: - | AG45: - | AH45: - | AI45: - | AJ45: - | AK45: - | AL45: - | AM45: - | AN45: - | AO45: - | AP45: - | AQ45: 0 | AR45: 0 | AS45: - | AT45: - | AU45: - | AV45: - | AW45: - | AX45: - | AY45: - | AZ45: - | BA45: - | BB45: - | BC45: - | BD45: - | BE45: - | BF45: - | BG45: - | BH45: - | BI45: - | BJ45: -
B46: Generación renovable | C46: 3.6 | D46: 4.6 | E46: 6 | F46: 7.1 | G46: 7.6 | H46: 6.5 | I46: 10.2 | J46: 7.5 | K46: 4.7 | L46: 5.4 | M46: 4.6 | N46: 6.5 | O46: 5.1 | P46: 6.3 | Q46: 5.7 | R46: 6.2 | S46: 6.9 | T46: 6.6 | U46: 9.9 | V46: 8.9 | W46: 6.2 | X46: 4.9 | Y46: 4.6 | Z46: 5.5 | AA46: 4.7 | AB46: 5.3 | AC46: 8.2 | AD46: 7.8 | AE46: 7.5 | AF46: 8 | AG46: 8.2 | AH46: 10.8 | AI46: 4.8 | AJ46: 7.7 | AK46: 6.9 | AL46: 7 | AM46: 7.2 | AN46: 7.3 | AO46: 6.5 | AP46: 12.3 | AQ46: 9.8 | AR46: 8.3 | AS46: 12.1 | AT46: 12.3 | AU46: 7.7 | AV46: 6.1 | AW46: 7.9 | AX46: 7.1 | AY46: 6.2 | AZ46: 6.5 | BA46: 7.5 | BB46: 10.2 | BC46: 11.2 | BD46: 10.8 | BE46: 10.6 | BF46: 9 | BG46: 7.7 | BH46: 4.6 | BI46: 4.6 | BJ46: 4.2
B47: Generación no renovable | C47: 96.4 | D47: 95.4 | E47: 94 | F47: 92.9 | G47: 92.4 | H47: 93.5 | I47: 89.8 | J47: 92.5 | K47: 95.3 | L47: 94.6 | M47: 95.4 | N47: 93.5 | O47: 94.9 | P47: 93.7 | Q47: 94.3 | R47: 93.8 | S47: 93.1 | T47: 93.4 | U47: 90.1 | V47: 91.1 | W47: 93.8 | X47: 95.1 | Y47: 95.4 | Z47: 94.5 | AA47: 95.3 | AB47: 94.7 | AC47: 91.8 | AD47: 92.2 | AE47: 92.5 | AF47: 92 | AG47: 91.8 | AH47: 89.2 | AI47: 95.2 | AJ47: 92.3 | AK47: 93.1 | AL47: 93 | AM47: 92.8 | AN47: 92.7 | AO47: 93.5 | AP47: 87.7 | AQ47: 90.2 | AR47: 91.7 | AS47: 87.9 | AT47: 87.7 | AU47: 92.3 | AV47: 93.9 | AW47: 92.1 | AX47: 92.9 | AY47: 93.8 | AZ47: 93.5 | BA47: 92.5 | BB47: 89.8 | BC47: 88.8 | BD47: 89.2 | BE47: 89.4 | BF47: 91 | BG47: 92.3 | BH47: 95.4 | BI47: 95.4 | BJ47: 95.8
B49: Estructura de generación mensual Ceuta (%) | C49: 2007-01-01 | D49: 2007-02-01 | E49: 2007-03-01 | F49: 2007-04-01 | G49: 2007-05-01 | H49: 2007-06-01 | I49: 2007-07-01 | J49: 2007-08-01 | K49: 2007-09-01 | L49: 2007-10-01 | M49: 2007-11-01 | N49: 2007-12-01 | O49: 2008-01-01 | P49: 2008-02-01 | Q49: 2008-03-01 | R49: 2008-04-01 | S49: 2008-05-01 | T49: 2008-06-01 | U49: 2008-07-01 | V49: 2008-08-01 | W49: 2008-09-01 | X49: 2008-10-01 | Y49: 2008-11-01 | Z49: 2008-12-01 | AA49: 2009-01-01 | AB49: 2009-02-01 | AC49: 2009-03-01 | AD49: 2009-04-01 | AE49: 2009-05-01 | AF49: 2009-06-01 | AG49: 2009-07-01 | AH49: 2009-08-01 | AI49: 2009-09-01 | AJ49: 2009-10-01 | AK49: 2009-11-01 | AL49: 2009-12-01 | AM49: 2010-01-01 | AN49: 2010-02-01 | AO49: 2010-03-01 | AP49: 2010-04-01 | AQ49: 2010-05-01 | AR49: 2010-06-01 | AS49: 2010-07-01 | AT49: 2010-08-01 | AU49: 2010-09-01 | AV49: 2010-10-01 | AW49: 2010-11-01 | AX49: 2010-12-01
B50: Motores diesel | C50: 100 | D50: 100 | E50: 100 | F50: 100 | G50: 100 | H50: 100 | I50: 100 | J50: 100 | K50: 100 | L50: 100 | M50: 100 | N50: 100 | O50: 100 | P50: 100 | Q50: 100 | R50: 100 | S50: 100 | T50: 100 | U50: 100 | V50: 100 | W50: 100 | X50: 100 | Y50: 100 | Z50: 100 | AA50: 100 | AB50: 100 | AC50: 100 | AD50: 100 | AE50: 100 | AF50: 100 | AG50: 99.2 | AH50: 90 | AI50: 100 | AJ50: 100 | AK50: 94 | AL50: 98.9 | AM50: 89.2 | AN50: 96.8 | AO50: 100 | AP50: 99.1 | AQ50: 99.3 | AR50: 100 | AS50: 100 | AT50: 100 | AU50: 100 | AV50: 100 | AW50: 100 | AX50: 100
B51: Turbina de gas | C51: - | D51: - | E51: - | F51: - | G51: - | H51: - | I51: - | J51: - | K51: - | L51: - | M51: - | N51: - | O51: - | P51: - | Q51: - | R51: - | S51: - | T51: - | U51: - | V51: - | W51: - | X51: - | Y51: - | Z51: - | AA51: - | AB51: - | AC51: - | AD51: - | AE51: - | AF51: - | AG51: 0.8 | AH51: 10 | AI51: - | AJ51: - | AK51: 6 | AL51: 1.1 | AM51: 10.8 | AN51: 3.2 | AO51: - | AP51: 0.9 | AQ51: 0.7 | AR51: - | AS51: - | AT51: - | AU51: - | AV51: - | AW51: - | AX51: 0
B52: Generación renovable | C52: - | D52: - | E52: - | F52: - | G52: - | H52: - | I52: - | J52: - | K52: - | L52: - | M52: - | N52: - | O52: - | P52: - | Q52: - | R52: - | S52: - | T52: - | U52: - | V52: - | W52: - | X52: - | Y52: - | Z52: - | AA52: - | AB52: - | AC52: - | AD52: - | AE52: - | AF52: - | AG52: - | AH52: - | AI52: - | AJ52: - | AK52: - | AL52: - | AM52: - | AN52: - | AO52: - | AP52: - | AQ52: - | AR52: - | AS52: - | AT52: - | AU52: - | AV52: - | AW52: - | AX52: -
B53: Generación no renovable | C53: 100 | D53: 100 | E53: 100 | F53: 100 | G53: 100 | H53: 100 | I53: 100 | J53: 100 | K53: 100 | L53: 100 | M53: 100 | N53: 100 | O53: 100 | P53: 100 | Q53: 100 | R53: 100 | S53: 100 | T53: 100 | U53: 100 | V53: 100 | W53: 100 | X53: 100 | Y53: 100 | Z53: 100 | AA53: 100 | AB53: 100 | AC53: 100 | AD53: 100 | AE53: 100 | AF53: 100 | AG53: 100 | AH53: 100 | AI53: 100 | AJ53: 100 | AK53: 100 | AL53: 100 | AM53: 100 | AN53: 100 | AO53: 100 | AP53: 100 | AQ53: 100 | AR53: 100 | AS53: 100 | AT53: 100 | AU53: 100 | AV53: 100 | AW53: 100 | AX53: 100
B55: Estructura de generación mensual Melilla (%) | C55: 2007-01-01 | D55: 2007-02-01 | E55: 2007-03-01 | F55: 2007-04-01 | G55: 2007-05-01 | H55: 2007-06-01 | I55: 2007-07-01 | J55: 2007-08-01 | K55: 2007-09-01 | L55: 2007-10-01 | M55: 2007-11-01 | N55: 2007-12-01 | O55: 2008-01-01 | P55: 2008-02-01 | Q55: 2008-03-01 | R55: 2008-04-01 | S55: 2008-05-01 | T55: 2008-06-01 | U55: 2008-07-01 | V55: 2008-08-01 | W55: 2008-09-01 | X55: 2008-10-01 | Y55: 2008-11-01 | Z55: 2008-12-01 | AA55: 2009-01-01 | AB55: 2009-02-01 | AC55: 2009-03-01 | AD55: 2009-04-01 | AE55: 2009-05-01 | AF55: 2009-06-01 | AG55: 2009-07-01 | AH55: 2009-08-01 | AI55: 2009-09-01 | AJ55: 2009-10-01 | AK55: 2009-11-01 | AL55: 2009-12-01 | AM55: 2010-01-01 | AN55: 2010-02-01 | AO55: 2010-03-01 | AP55: 2010-04-01 | AQ55: 2010-05-01 | AR55: 2010-06-01 | AS55: 2010-07-01 | AT55: 2010-08-01 | AU55: 2010-09-01 | AV55: 2010-10-01 | AW55: 2010-11-01 | AX55: 2010-12-01
B56: Motores diesel | C56: 92.6 | D56: 93.4 | E56: 92.5 | F56: 94.8 | G56: 94.1 | H56: 94.9 | I56: 95.4 | J56: 94.2 | K56: 98.1 | L56: 96.1 | M56: 91.7 | N56: 92.3 | O56: 89.8 | P56: 92.3 | Q56: 91.5 | R56: 93.7 | S56: 94.9 | T56: 95.1 | U56: 98.9 | V56: 99.6 | W56: 98.8 | X56: 98.4 | Y56: 98.6 | Z56: 99.9 | AA56: 95.5 | AB56: 95.2 | AC56: 94.6 | AD56: 93.6 | AE56: 94.8 | AF56: 95.2 | AG56: 96 | AH56: 96.1 | AI56: 95.4 | AJ56: 100 | AK56: 99.2 | AL56: 95.4 | AM56: 95.9 | AN56: 96.1 | AO56: 95.5 | AP56: 94.7 | AQ56: 94.2 | AR56: 95.5 | AS56: 95.6 | AT56: 96.1 | AU56: 95 | AV56: 97 | AW56: 99.7 | AX56: 96.8
B57: Turbina de gas | C57: 2.5 | D57: 1.5 | E57: 1.8 | F57: 0.7 | G57: 0.4 | H57: 0 | I57: 0.7 | J57: 1.3 | K57: 0.2 | L57: 0.3 | M57: 3.1 | N57: 2.7 | O57: 4.8 | P57: 2.7 | Q57: 3.1 | R57: 1.1 | S57: 0.3 | T57: 0.8 | U57: 1.1 | V57: 0.4 | W57: 1.2 | X57: 1.6 | Y57: 1.4 | Z57: 0.1 | AA57: 0.1 | AB57: 0.1 | AC57: 0.5 | AD57: 0.3 | AE57: 0 | AF57: 0.4 | AG57: - | AH57: 0.3 | AI57: 0.5 | AJ57: 0 | AK57: 0.8 | AL57: 0.3 | AM57: 0.1 | AN57: 0.1 | AO57: 0 | AP57: 0.2 | AQ57: 0.2 | AR57: 0.5 | AS57: 0.5 | AT57: 0.2 | AU57: 0.2 | AV57: 0.2 | AW57: 0.3 | AX57: 0.2
B58: Solar fotovoltaica | C58: - | D58: - | E58: - | F58: - | G58: - | H58: - | I58: - | J58: - | K58: - | L58: - | M58: - | N58: - | O58: 0 | P58: - | Q58: - | R58: - | S58: - | T58: 0 | U58: 0 | V58: 0 | W58: 0 | X58: - | Y58: 0 | Z58: - | AA58: 0 | AB58: 0.1 | AC58: 0.1 | AD58: 0.2 | AE58: 0.1 | AF58: 0 | AG58: 0 | AH58: 0 | AI58: 0 | AJ58: 0 | AK58: - | AL58: 0 | AM58: 0 | AN58: 0 | AO58: 0 | AP58: 0 | AQ58: 0.1 | AR58: 0 | AS58: 0 | AT58: 0 | AU58: 0 | AV58: 0 | AW58: 0 | AX58: 0
B59: Térmica no renovable/Cogeneración y resto/Cogeneración | C59: 4.9 | D59: 5.1 | E59: 5.7 | F59: 4.5 | G59: 5.5 | H59: 5.1 | I59: 3.9 | J59: 4.5 | K59: 1.7 | L59: 3.6 | M59: 5.2 | N59: 5 | O59: 5.4 | P59: 5 | Q59: 5.4 | R59: 5.2 | S59: 4.8 | T59: 4.1 | U59: - | V59: - | W59: - | X59: - | Y59: - | Z59: - | AA59: 4.4 | AB59: 4.6 | AC59: 4.8 | AD59: 5.9 | AE59: 5.1 | AF59: 4.4 | AG59: 4 | AH59: 3.6 | AI59: 4.1 | AJ59: 0 | AK59: - | AL59: 4.3 | AM59: 4 | AN59: 3.8 | AO59: 4.5 | AP59: 5.1 | AQ59: 5.5 | AR59: 4 | AS59: 3.9 | AT59: 3.7 | AU59: 4.8 | AV59: 2.8 | AW59: - | AX59: 3
B60: Residuos no renovables | C60: - | D60: - | E60: - | F60: - | G60: - | H60: - | I60: - | J60: - | K60: - | L60: - | M60: - | N60: - | O60: - | P60: - | Q60: - | R60: - | S60: - | T60: - | U60: - | V60: - | W60: - | X60: - | Y60: - | Z60: - | AA60: - | AB60: - | AC60: - | AD60: - | AE60: - | AF60: - | AG60: - | AH60: - | AI60: - | AJ60: - | AK60: - | AL60: - | AM60: - | AN60: - | AO60: - | AP60: - | AQ60: - | AR60: - | AS60: - | AT60: - | AU60: - | AV60: - | AW60: - | AX60: -
B61: Residuos renovables | C61: - | D61: - | E61: - | F61: - | G61: - | H61: - | I61: - | J61: - | K61: - | L61: - | M61: - | N61: - | O61: - | P61: - | Q61: - | R61: - | S61: - | T61: - | U61: - | V61: - | W61: - | X61: - | Y61: - | Z61: - | AA61: - | AB61: - | AC61: - | AD61: - | AE61: - | AF61: - | AG61: - | AH61: - | AI61: - | AJ61: - | AK61: - | AL61: - | AM61: - | AN61: - | AO61: - | AP61: - | AQ61: - | AR61: - | AS61: - | AT61: - | AU61: - | AV61: - | AW61: - | AX61: -
B62: Generación renovable | C62: 0 | D62: 0 | E62: 0 | F62: 0 | G62: 0 | H62: 0 | I62: 0 | J62: 0 | K62: 0 | L62: 0 | M62: 0 | N62: 0 | O62: 0 | P62: 0 | Q62: 0 | R62: 0 | S62: 0 | T62: 0 | U62: 0 | V62: 0 | W62: 0 | X62: 0 | Y62: 0 | Z62: 0 | AA62: 0 | AB62: 0.1 | AC62: 0.1 | AD62: 0.2 | AE62: 0.1 | AF62: 0 | AG62: 0 | AH62: 0 | AI62: 0 | AJ62: 0 | AK62: 0 | AL62: 0 | AM62: 0 | AN62: 0 | AO62: 0 | AP62: 0 | AQ62: 0.1 | AR62: 0 | AS62: 0 | AT62: 0 | AU62: 0 | AV62: 0 | AW62: 0 | AX62: 0
B63: Generación no renovable | C63: 100 | D63: 100 | E63: 100 | F63: 100 | G63: 100 | H63: 100 | I63: 100 | J63: 100 | K63: 100 | L63: 100 | M63: 100 | N63: 100 | O63: 100 | P63: 100 | Q63: 100 | R63: 100 | S63: 100 | T63: 100 | U63: 100 | V63: 100 | W63: 100 | X63: 100 | Y63: 100 | Z63: 100 | AA63: 100 | AB63: 99.9 | AC63: 99.9 | AD63: 99.8 | AE63: 99.9 | AF63: 100 | AG63: 100 | AH63: 100 | AI63: 100 | AJ63: 100 | AK63: 100 | AL63: 100 | AM63: 100 | AN63: 100 | AO63: 100 | AP63: 100 | AQ63: 99.9 | AR63: 100 | AS63: 100 | AT63: 100 | AU63: 100 | AV63: 100 | AW63: 100 | AX63: 100
B65: Estructura de generación mensual nacional (%) | C65: 2007-01-01 | D65: 2007-02-01 | E65: 2007-03-01 | F65: 2007-04-01 | G65: 2007-05-01 | H65: 2007-06-01 | I65: 2007-07-01 | J65: 2007-08-01 | K65: 2007-09-01 | L65: 2007-10-01 | M65: 2007-11-01 | N65: 2007-12-01 | O65: 2008-01-01 | P65: 2008-02-01 | Q65: 2008-03-01 | R65: 2008-04-01 | S65: 2008-05-01 | T65: 2008-06-01 | U65: 2008-07-01 | V65: 2008-08-01 | W65: 2008-09-01 | X65: 2008-10-01 | Y65: 2008-11-01 | Z65: 2008-12-01 | AA65: 2009-01-01 | AB65: 2009-02-01 | AC65: 2009-03-01 | AD65: 2009-04-01 | AE65: 2009-05-01 | AF65: 2009-06-01 | AG65: 2009-07-01 | AH65: 2009-08-01 | AI65: 2009-09-01 | AJ65: 2009-10-01 | AK65: 2009-11-01 | AL65: 2009-12-01 | AM65: 2010-01-01 | AN65: 2010-02-01 | AO65: 2010-03-01 | AP65: 2010-04-01 | AQ65: 2010-05-01 | AR65: 2010-06-01 | AS65: 2010-07-01 | AT65: 2010-08-01 | AU65: 2010-09-01 | AV65: 2010-10-01 | AW65: 2010-11-01 | AX65: 2010-12-01
B66: Hidráulica | C66: 8.8 | D66: 13.2 | E66: 16.1 | F66: 13 | G66: 12.3 | H66: 10.1 | I66: 9.8 | J66: 7.6 | K66: 5.9 | L66: 7.1 | M66: 5.3 | N66: 4.7 | O66: 5.2 | P66: 3.9 | Q66: 4.3 | R66: 11.3 | S66: 14.5 | T66: 13.4 | U66: 8.4 | V66: 6.4 | W66: 5.6 | X66: 4.6 | Y66: 6.5 | Z66: 9.7 | AA66: 8.6 | AB66: 15.2 | AC66: 12.3 | AD66: 10.4 | AE66: 12 | AF66: 9.3 | AG66: 7 | AH66: 6.1 | AI66: 4.4 | AJ66: 5.5 | AK66: 8.8 | AL66: 13 | AM66: 19.8 | AN66: 16.9 | AO66: 23.1 | AP66: 21.3 | AQ66: 17.2 | AR66: 15.6 | AS66: 11.2 | AT66: 8.5 | AU66: 6.6 | AV66: 6.8 | AW66: 10.8 | AX66: 15.6
B67: Turbinación bombeo | C67: 1 | D67: 1.2 | E67: 1.1 | F67: 0.9 | G67: 1.2 | H67: 1.1 | I67: 0.9 | J67: 1.1 | K67: 1 | L67: 0.9 | M67: 1.1 | N67: 1.3 | O67: 1.1 | P67: 1.2 | Q67: 1.1 | R67: 0.6 | S67: 0.6 | T67: 0.8 | U67: 0.7 | V67: 0.6 | W67: 0.7 | X67: 0.9 | Y67: 1.2 | Z67: 1.2 | AA67: 1.3 | AB67: 1.2 | AC67: 0.9 | AD67: 0.8 | AE67: 0.8 | AF67: 0.7 | AG67: 0.7 | AH67: 0.7 | AI67: 0.8 | AJ67: 0.9 | AK67: 1.2 | AL67: 1.3 | AM67: 2 | AN67: 1.6 | AO67: 1.5 | AP67: 1 | AQ67: 0.9 | AR67: 0.7 | AS67: 0.5 | AT67: 0.7 | AU67: 0.7 | AV67: 1 | AW67: 0.9 | AX67: 1.3
B68: Nuclear | C68: 20.7 | D68: 20.8 | E68: 20.2 | F68: 19.7 | G68: 15.1 | H68: 13.8 | I68: 15.5 | J68: 17.1 | K68: 20.8 | L68: 20.4 | M68: 15.6 | N68: 19.3 | O68: 20 | P68: 20.6 | Q68: 21.3 | R68: 16.7 | S68: 20.2 | T68: 19.3 | U68: 17.6 | V68: 20.7 | W68: 19 | X68: 18.1 | Y68: 16.4 | Z68: 19.1 | AA68: 20.5 | AB68: 18.9 | AC68: 17.4 | AD68: 19.2 | AE68: 17.1 | AF68: 15.5 | AG68: 15.9 | AH68: 22.3 | AI68: 19.3 | AJ68: 17.3 | AK68: 17.2 | AL68: 15.9 | AM68: 17.2 | AN68: 19.2 | AO68: 19.4 | AP68: 22.1 | AQ68: 19.7 | AR68: 20.7 | AS68: 21 | AT68: 22.7 | AU68: 21.8 | AV68: 23.2 | AW68: 21.1 | AX68: 19
B69: Carbón | C69: 24.7 | D69: 22.3 | E69: 20.8 | F69: 27.7 | G69: 27 | H69: 26.1 | I69: 24.9 | J69: 26.6 | K69: 24.6 | L69: 23.2 | M69: 22.6 | N69: 24.1 | O69: 19.8 | P69: 19.6 | Q69: 15.6 | R69: 13.7 | S69: 10.4 | T69: 9.8 | U69: 15.4 | V69: 13.9 | W69: 15.8 | X69: 18.2 | Y69: 17.5 | Z69: 17.9 | AA69: 18 | AB69: 14.3 | AC69: 14.1 | AD69: 9.6 | AE69: 11.6 | AF69: 12 | AG69: 14 | AH69: 8.9 | AI69: 13 | AJ69: 14.6 | AK69: 9.7 | AL69: 8.5 | AM69: 7.6 | AN69: 6.7 | AO69: 4.5 | AP69: 4.1 | AQ69: 4.7 | AR69: 7 | AS69: 10.6 | AT69: 13.1 | AU69: 14 | AV69: 9.4 | AW69: 7.5 | AX69: 8.9
B70: Fuel + Gas | C70: 3 | D70: 3.5 | E70: 3.4 | F70: 3.5 | G70: 3.4 | H70: 3.3 | I70: 3.8 | J70: 4.1 | K70: 3.9 | L70: 3.3 | M70: 3.3 | N70: 3.2 | O70: 3.1 | P70: 3.1 | Q70: 2.7 | R70: 3 | S70: 3.4 | T70: 3.6 | U70: 3.3 | V70: 3.9 | W70: 3.7 | X70: 3.6 | Y70: 3.4 | Z70: 3.2 | AA70: 2.9 | AB70: 2.9 | AC70: 3.5 | AD70: 3.2 | AE70: 3.4 | AF70: 3.4 | AG70: 3.5 | AH70: 3.7 | AI70: 3.6 | AJ70: 3.3 | AK70: 3.2 | AL70: 3.1 | AM70: 2.9 | AN70: 2.8 | AO70: 2.5 | AP70: 2.9 | AQ70: 3.3 | AR70: 3.4 | AS70: 3.1 | AT70: 3.4 | AU70: 3.3 | AV70: 3.1 | AW70: 3.1 | AX70: 3
B71: Ciclo combinado | C71: 24.7 | D71: 17.8 | E71: 17 | F71: 19.4 | G71: 20.4 | H71: 28.4 | I71: 28.1 | J71: 23.7 | K71: 25.5 | L71: 26.9 | M71: 31.6 | N71: 28.9 | O71: 31.1 | P71: 33.2 | Q71: 28.1 | R71: 29.9 | S71: 32.4 | T71: 33.5 | U71: 35.8 | V71: 35.6 | W71: 34.6 | X71: 31.7 | Y71: 29.1 | Z71: 23.7 | AA71: 24.1 | AB71: 20.6 | AC71: 23.8 | AD71: 27 | AE71: 27 | AF71: 34.7 | AG71: 35.5 | AH71: 36.1 | AI71: 34 | AJ71: 30 | AK71: 25.1 | AL71: 25.8 | AM71: 21.5 | AN71: 20.9 | AO71: 17.4 | AP71: 20.9 | AQ71: 21.5 | AR71: 25.2 | AS71: 27.8 | AT71: 25.6 | AU71: 28.2 | AV71: 24.2 | AW71: 24.4 | AX71: 20.5
B72: Hidroeólica | C72: - | D72: - | E72: - | F72: - | G72: - | H72: - | I72: - | J72: - | K72: - | L72: - | M72: - | N72: - | O72: - | P72: - | Q72: - | R72: - | S72: - | T72: - | U72: - | V72: - | W72: - | X72: - | Y72: - | Z72: - | AA72: - | AB72: - | AC72: - | AD72: - | AE72: - | AF72: - | AG72: - | AH72: - | AI72: - | AJ72: - | AK72: - | AL72: - | AM72: - | AN72: - | AO72: - | AP72: - | AQ72: - | AR72: - | AS72: - | AT72: - | AU72: - | AV72: - | AW72: - | AX72: -
B73: Eólica | C73: 8.4 | D73: 12.6 | E73: 12.8 | F73: 6.3 | G73: 11.5 | H73: 7.9 | I73: 7.8 | J73: 10.6 | K73: 8.8 | L73: 8 | M73: 11 | N73: 9.2 | O73: 10 | P73: 8.2 | Q73: 16.4 | R73: 14 | S73: 7.6 | T73: 9 | U73: 8.4 | V73: 8.4 | W73: 9.1 | X73: 10.6 | Y73: 14.1 | Z73: 14.2 | AA73: 13.3 | AB73: 14.2 | AC73: 13.8 | AD73: 14.6 | AE73: 12.7 | AF73: 10.3 | AG73: 9.9 | AH73: 9.7 | AI73: 11 | AJ73: 13.7 | AK73: 20.8 | AL73: 19.8 | AM73: 16.5 | AN73: 19.2 | AO73: 18.2 | AP73: 12.1 | AQ73: 16.3 | AR73: 11.5 | AS73: 11 | AT73: 12.3 | AU73: 10.1 | AV73: 17 | AW73: 18.1 | AX73: 18.3
B74: Solar fotovoltaica | C74: 0 | D74: 0.1 | E74: 0.1 | F74: 0.1 | G74: 0.2 | H74: 0.2 | I74: 0.2 | J74: 0.2 | K74: 0.3 | L74: 0.2 | M74: 0.2 | N74: 0.2 | O74: 0.2 | P74: 0.3 | Q74: 0.4 | R74: 0.5 | S74: 0.6 | T74: 0.8 | U74: 0.9 | V74: 1.2 | W74: 1.4 | X74: 1.4 | Y74: 1.4 | Z74: 1 | AA74: 1 | AB74: 1.7 | AC74: 2.3 | AD74: 2.7 | AE74: 3.1 | AF74: 2.8 | AG74: 2.9 | AH74: 2.8 | AI74: 2.3 | AJ74: 2.2 | AK74: 1.6 | AL74: 1 | AM74: 1 | AN74: 1.3 | AO74: 1.9 | AP74: 2.7 | AQ74: 3.2 | AR74: 3 | AS74: 3 | AT74: 3 | AU74: 2.7 | AV74: 2.3 | AW74: 1.6 | AX74: 1.2
B75: Solar térmica | C75: - | D75: - | E75: 0 | F75: 0 | G75: 0 | H75: 0 | I75: 0 | J75: 0 | K75: 0 | L75: 0 | M75: 0 | N75: 0 | O75: 0 | P75: 0 | Q75: 0 | R75: 0 | S75: 0 | T75: 0 | U75: 0 | V75: 0 | W75: 0 | X75: 0 | Y75: 0 | Z75: 0 | AA75: 0 | AB75: 0 | AC75: 0 | AD75: 0 | AE75: 0 | AF75: 0 | AG75: 0 | AH75: 0.1 | AI75: 0.1 | AJ75: 0.1 | AK75: 0.1 | AL75: 0 | AM75: 0.1 | AN75: 0 | AO75: 0.1 | AP75: 0.2 | AQ75: 0.3 | AR75: 0.3 | AS75: 0.4 | AT75: 0.5 | AU75: 0.4 | AV75: 0.3 | AW75: 0.1 | AX75: 0.1
B76: Térmica renovable/Otras renovables | C76: 0.8 | D76: 0.8 | E76: 0.8 | F76: 0.9 | G76: 0.9 | H76: 0.9 | I76: 0.9 | J76: 1 | K76: 0.9 | L76: 1 | M76: 0.9 | N76: 0.9 | O76: 0.9 | P76: 0.9 | Q76: 1 | R76: 1 | S76: 1 | T76: 1 | U76: 0.9 | V76: 1 | W76: 1 | X76: 1 | Y76: 1 | Z76: 1 | AA76: 1 | AB76: 1.1 | AC76: 1.2 | AD76: 1.4 | AE76: 1.3 | AF76: 1.1 | AG76: 1 | AH76: 1.1 | AI76: 1.3 | AJ76: 1.5 | AK76: 1.2 | AL76: 1.1 | AM76: 1.1 | AN76: 1 | AO76: 1 | AP76: 1.3 | AQ76: 1.3 | AR76: 1.3 | AS76: 1.1 | AT76: 1.2 | AU76: 1.2 | AV76: 1.2 | AW76: 1.1 | AX76: 1.2
B77: Térmica no renovable/Cogeneración y resto/Cogeneración | C77: 7.9 | D77: 7.7 | E77: 7.7 | F77: 8.5 | G77: 8 | H77: 8.2 | I77: 8.1 | J77: 8 | K77: 8.3 | L77: 9 | M77: 8.4 | N77: 8.2 | O77: 8.6 | P77: 9 | Q77: 9.1 | R77: 9.3 | S77: 9.3 | T77: 8.8 | U77: 8.6 | V77: 8.3 | W77: 9.1 | X77: 9.9 | Y77: 9.4 | Z77: 9 | AA77: 9.3 | AB77: 9.9 | AC77: 10.7 | AD77: 11.1 | AE77: 11 | AF77: 10.2 | AG77: 9.6 | AH77: 8.5 | AI77: 10.2 | AJ77: 10.9 | AK77: 11.1 | AL77: 10.5 | AM77: 10.3 | AN77: 10.4 | AO77: 10.4 | AP77: 11.4 | AQ77: 11.6 | AR77: 11.3 | AS77: 10.3 | AT77: 9 | AU77: 11 | AV77: 11.5 | AW77: 11.3 | AX77: 10.9
B78: Residuos no renovables | C78: - | D78: - | E78: - | F78: - | G78: - | H78: - | I78: - | J78: - | K78: - | L78: - | M78: - | N78: - | O78: - | P78: - | Q78: - | R78: - | S78: - | T78: - | U78: - | V78: - | W78: - | X78: - | Y78: - | Z78: - | AA78: - | AB78: - | AC78: - | AD78: - | AE78: - | AF78: - | AG78: - | AH78: - | AI78: - | AJ78: - | AK78: - | AL78: - | AM78: - | AN78: - | AO78: - | AP78: - | AQ78: - | AR78: - | AS78: - | AT78: - | AU78: - | AV78: - | AW78: - | AX78: -
B79: Residuos renovables | C79: - | D79: - | E79: - | F79: - | G79: - | H79: - | I79: - | J79: - | K79: - | L79: - | M79: - | N79: - | O79: - | P79: - | Q79: - | R79: - | S79: - | T79: - | U79: - | V79: - | W79: - | X79: - | Y79: - | Z79: - | AA79: - | AB79: - | AC79: - | AD79: - | AE79: - | AF79: - | AG79: - | AH79: - | AI79: - | AJ79: - | AK79: - | AL79: - | AM79: - | AN79: - | AO79: - | AP79: - | AQ79: - | AR79: - | AS79: - | AT79: - | AU79: - | AV79: - | AW79: - | AX79: -
B80: Generación renovable | C80: 18 | D80: 26.7 | E80: 29.8 | F80: 20.3 | G80: 24.9 | H80: 19.1 | I80: 18.7 | J80: 19.4 | K80: 15.9 | L80: 16.3 | M80: 17.4 | N80: 15 | O80: 16.3 | P80: 13.3 | Q80: 22.1 | R80: 26.8 | S80: 23.7 | T80: 24.2 | U80: 18.6 | V80: 17 | W80: 17.1 | X80: 17.6 | Y80: 23 | Z80: 25.9 | AA80: 23.9 | AB80: 32.2 | AC80: 29.6 | AD80: 29.1 | AE80: 29.1 | AF80: 23.5 | AG80: 20.8 | AH80: 19.8 | AI80: 19.1 | AJ80: 23 | AK80: 32.5 | AL80: 34.9 | AM80: 38.5 | AN80: 38.4 | AO80: 44.3 | AP80: 37.6 | AQ80: 38.3 | AR80: 31.7 | AS80: 26.7 | AT80: 25.5 | AU80: 21 | AV80: 27.6 | AW80: 31.7 | AX80: 36.4
B81: Generación no renovable | C81: 82 | D81: 73.3 | E81: 70.2 | F81: 79.7 | G81: 75.1 | H81: 80.9 | I81: 81.3 | J81: 80.6 | K81: 84.1 | L81: 83.7 | M81: 82.6 | N81: 85 | O81: 83.7 | P81: 86.7 | Q81: 77.9 | R81: 73.2 | S81: 76.3 | T81: 75.8 | U81: 81.4 | V81: 83 | W81: 82.9 | X81: 82.4 | Y81: 77 | Z81: 74.1 | AA81: 76.1 | AB81: 67.8 | AC81: 70.4 | AD81: 70.9 | AE81: 70.9 | AF81: 76.5 | AG81: 79.2 | AH81: 80.2 | AI81: 80.9 | AJ81: 77 | AK81: 67.5 | AL81: 65.1 | AM81: 61.5 | AN81: 61.6 | AO81: 55.7 | AP81: 62.4 | AQ81: 61.7 | AR81: 68.3 | AS81: 73.3 | AT81: 74.5 | AU81: 79 | AV81: 72.4 | AW81: 68.3 | AX81: 63.6
B83: Estructura de generación anual peninsular (%) | C83: 1990 | D83: 1991 | E83: 1992 | F83: 1993 | G83: 1994 | H83: 1995 | I83: 1996 | J83: 1997 | K83: 1998 | L83: 1999 | M83: 2000 | N83: 2001 | O83: 2002 | P83: 2003 | Q83: 2004 | R83: 2005 | S83: 2006 | T83: 2007 | U83: 2008 | V83: 2009 | W83: 2010 | X83: 2011 | Y83: 2012 | Z83: 2013
B84: Hidráulica | C84: 18 | D84: 18.6 | E84: 13 | F84: 16.7 | G84: 18.9 | H84: 15 | I84: 25.4 | J84: 21 | K84: 20.6 | L84: 13.7 | M84: 14.3 | N84: 19.6 | O84: 10 | P84: 17.5 | Q84: 12.7 | R84: 7.2 | S84: 9.6 | T84: 9.9 | U84: 8.2 | V84: 9.9 | W84: 15.3 | X84: - | Y84: - | Z84: -
B85: Turbinación bombeo | C85: 0.5 | D85: 0.7 | E85: 1.4 | F85: 0.9 | G85: 0.6 | H85: 1 | I85: 0.7 | J85: 0.7 | K85: 1.1 | L85: 1.4 | M85: 1.8 | N85: 1.4 | O85: 2.3 | P85: 1.4 | Q85: 1.3 | R85: 1.8 | S85: 1.4 | T85: 1.1 | U85: 1 | V85: 1 | W85: 1.1 | X85: - | Y85: - | Z85: -
B86: Nuclear | C86: 38.2 | D86: 37.5 | E86: 37.3 | F86: 37.8 | G86: 36.4 | H86: 35.6 | I86: 34.5 | J86: 31.7 | K86: 32.8 | L86: 30.9 | M86: 30.5 | N86: 29.6 | O86: 28.3 | P86: 25.8 | Q86: 25 | R86: 21.6 | S86: 21.8 | T86: 19.3 | U86: 20.2 | V86: 19.1 | W86: 21.7 | X86: - | Y86: - | Z86: -
B87: Carbón | C87: 40.7 | D87: 39.3 | E87: 41.8 | F87: 40.8 | G87: 39.2 | H87: 41 | I87: 31.6 | J87: 35 | K87: 33.1 | L87: 37.5 | M87: 37 | N87: 31.2 | O87: 35 | P87: 29.8 | Q87: 29.6 | R87: 28.8 | S87: 23.6 | T87: 24.8 | U87: 15.5 | V87: 12 | W87: 7.5 | X87: - | Y87: - | Z87: -
B88: Fuel + Gas | C88: 2.1 | D88: 2.8 | E88: 5.2 | F88: 1.3 | G88: 1 | H88: 2.5 | I88: 1.3 | J88: 3.9 | K88: 3.1 | L88: 5.1 | M88: 4.9 | N88: 5.6 | O88: 7.3 | P88: 3.2 | Q88: 2.9 | R88: 3.7 | S88: 2 | T88: 0.8 | U88: 0.7 | V88: 0.7 | W88: 0.6 | X88: - | Y88: - | Z88: -
B89: Ciclo combinado | C89: - | D89: - | E89: - | F89: 0 | G89: - | H89: - | I89: - | J89: - | K89: - | L89: - | M89: - | N89: - | O89: 2.4 | P89: 6.4 | Q89: 11.6 | R89: 18.8 | S89: 23.6 | T89: 24.4 | U89: 31.8 | V89: 28.9 | W89: 23 | X89: - | Y89: - | Z89: -
B90: Eólica | C90: 0 | D90: 0 | E90: 0 | F90: 0.1 | G90: 0 | H90: 0.1 | I90: 0.2 | J90: 0.4 | K90: 0.7 | L90: 1.4 | M90: 2.3 | N90: 3.2 | O90: 4.3 | P90: 5.1 | Q90: 6.5 | R90: 8.2 | S90: 8.7 | T90: 10 | U90: 11.3 | V90: 14.3 | W90: 15.8 | X90: - | Y90: - | Z90: -
B91: Solar fotovoltaica | C91: - | D91: - | E91: 0 | F91: 0 | G91: 0 | H91: 0 | I91: 0 | J91: 0 | K91: 0 | L91: 0 | M91: 0 | N91: 0 | O91: 0 | P91: 0 | Q91: 0 | R91: 0 | S91: 0 | T91: 0.2 | U91: 0.9 | V91: 2.2 | W91: 2.2 | X91: - | Y91: - | Z91: -
B92: Solar térmica | C92: - | D92: - | E92: - | F92: - | G92: - | H92: - | I92: - | J92: - | K92: - | L92: - | M92: - | N92: - | O92: - | P92: - | Q92: - | R92: - | S92: - | T92: 0 | U92: 0 | V92: 0 | W92: 0.3 | X92: - | Y92: - | Z92: -
B93: Térmica renovable/Otras renovables | C93: - | D93: 0 | E93: 0 | F93: 0 | G93: 0.2 | H93: 0.4 | I93: 0.5 | J93: 0.4 | K93: 0.4 | L93: 0.5 | M93: 0.5 | N93: 0.8 | O93: 0.7 | P93: 0.8 | Q93: 0.7 | R93: 0.8 | S93: 0.8 | T93: 0.9 | U93: 0.9 | V93: 1.2 | W93: 1.2 | X93: - | Y93: - | Z93: -
B94: Térmica no renovable/Cogeneración y resto/Cogeneración | C94: 0.5 | D94: 1.1 | E94: 1.3 | F94: 2.4 | G94: 3.7 | H94: 4.4 | I94: 5.8 | J94: 6.9 | K94: 8.2 | L94: 9.5 | M94: 8.7 | N94: 8.6 | O94: 9.7 | P94: 10 | Q94: 9.7 | R94: 9.1 | S94: 8.5 | T94: 8.6 | U94: 9.5 | V94: 10.7 | W94: 11.3 | X94: - | Y94: - | Z94: -
B95: Residuos no renovables | C95: - | D95: - | E95: - | F95: - | G95: - | H95: - | I95: - | J95: - | K95: - | L95: - | M95: - | N95: - | O95: - | P95: - | Q95: - | R95: - | S95: - | T95: - | U95: - | V95: - | W95: - | X95: - | Y95: - | Z95: -
B96: Residuos renovables | C96: - | D96: - | E96: - | F96: - | G96: - | H96: - | I96: - | J96: - | K96: - | L96: - | M96: - | N96: - | O96: - | P96: - | Q96: - | R96: - | S96: - | T96: - | U96: - | V96: - | W96: - | X96: - | Y96: - | Z96: -
B97: Generación renovable | C97: 18 | D97: 18.6 | E97: 13 | F97: 16.8 | G97: 19.1 | H97: 15.5 | I97: 26.1 | J97: 21.8 | K97: 21.7 | L97: 15.6 | M97: 17.1 | N97: 23.6 | O97: 15 | P97: 23.4 | Q97: 19.9 | R97: 16.2 | S97: 19.1 | T97: 21 | U97: 21.3 | V97: 27.6 | W97: 34.8 | X97: - | Y97: - | Z97: -
B98: Generación no renovable | C98: 82 | D98: 81.4 | E98: 87 | F98: 83.2 | G98: 80.9 | H98: 84.5 | I98: 73.9 | J98: 78.2 | K98: 78.3 | L98: 84.4 | M98: 82.9 | N98: 76.4 | O98: 85 | P98: 76.6 | Q98: 80.1 | R98: 83.8 | S98: 80.9 | T98: 79 | U98: 78.7 | V98: 72.4 | W98: 65.2 | X98: - | Y98: - | Z98: -
B100: Estructura de generación anual Islas Baleares (%) | C100: 2006 | D100: 2007 | E100: 2008 | F100: 2009 | G100: 2010 | H100: 2011 | I100: 2012 | J100: 2013
B101: Carbón | C101: 52.8 | D101: 49.3 | E101: 50.5 | F101: 52.8 | G101: 53.2 | H101: - | I101: - | J101: -
B102: Motores diesel | C102: 16.6 | D102: 16.8 | E102: 17.1 | F102: 16.2 | G102: 17.6 | H102: - | I102: - | J102: -
B103: Turbina de gas | C103: 5 | D103: 5.2 | E103: 4.5 | F103: 5.7 | G103: 5.1 | H103: - | I103: - | J103: -
B104: Ciclo combinado | C104: 23 | D104: 26.5 | E104: 24.9 | F104: 21.6 | G104: 19.4 | H104: - | I104: - | J104: -
B105: Generación auxiliar | C105: 0.1 | D105: 0.2 | E105: 0.1 | F105: 0.1 | G105: 0.1 | H105: - | I105: - | J105: -
B106: Eólica | C106: 0.1 | D106: 0.1 | E106: 0.1 | F106: 0.1 | G106: 0.1 | H106: - | I106: - | J106: -
B107: Solar fotovoltaica | C107: 0 | D107: 0 | E107: 0.5 | F107: 1.4 | G107: 1.5 | H107: - | I107: - | J107: -
B108: Térmica renovable/Otras renovables | C108: - | D108: - | E108: - | F108: - | G108: - | H108: - | I108: - | J108: -
B109: Térmica no renovable/Cogeneración y resto/Cogeneración | C109: 2.4 | D109: 1.9 | E109: 2.3 | F109: 2.1 | G109: 3 | H109: - | I109: - | J109: -
B110: Residuos no renovables | C110: - | D110: - | E110: - | F110: - | G110: - | H110: - | I110: - | J110: -
B111: Residuos renovables | C111: - | D111: - | E111: - | F111: - | G111: - | H111: - | I111: - | J111: -
B112: Generación renovable | C112: 0.1 | D112: 0.1 | E112: 0.6 | F112: 1.5 | G112: 1.6 | H112: - | I112: - | J112: -
B113: Generación no renovable | C113: 99.9 | D113: 99.9 | E113: 99.4 | F113: 98.5 | G113: 98.4 | H113: - | I113: - | J113: -
B115: Estructura de generación anual Islas Canarias (%) | C115: 2006 | D115: 2007 | E115: 2008 | F115: 2009 | G115: 2010 | H115: 2011 | I115: 2012 | J115: 2013
B116: Hidráulica | C116: - | D116: 0 | E116: 0 | F116: 0 | G116: - | H116: - | I116: - | J116: -
B117: Motores diesel | C117: 22.8 | D117: 22.2 | E117: 22.5 | F117: 23.5 | G117: 24.5 | H117: - | I117: - | J117: -
B118: Turbina de gas | C118: 9.3 | D118: 7.6 | E118: 5.1 | F118: 3.8 | G118: 3.9 | H118: - | I118: - | J118: -
B119: Turbina de vapor | C119: 38.9 | D119: 35.9 | E119: 36.6 | F119: 35.6 | G119: 33.4 | H119: - | I119: - | J119: -
B120: Ciclo combinado | C120: 22.8 | D120: 26.5 | E120: 27.6 | F120: 28 | G120: 30.5 | H120: - | I120: - | J120: -
B121: Generación auxiliar | C121: - | D121: 1.4 | E121: 1 | F121: 0.4 | G121: - | H121: - | I121: - | J121: -
B122: Hidroeólica | C122: - | D122: - | E122: - | F122: - | G122: - | H122: - | I122: - | J122: -
B123: Eólica | C123: 3.7 | D123: 3.9 | E123: 4.2 | F123: 3.9 | G123: 3.7 | H123: - | I123: - | J123: -
B124: Solar fotovoltaica | C124: 0 | D124: 0.2 | E124: 0.7 | F124: 1.8 | G124: 2.2 | H124: - | I124: - | J124: -
B125: Térmica renovable/Otras renovables | C125: 2.5 | D125: 2.3 | E125: 2.3 | F125: 3 | G125: 1.8 | H125: - | I125: - | J125: -
B126: Térmica no renovable/Cogeneración y resto/Cogeneración | C126: 0 | D126: - | E126: - | F126: 0 | G126: - | H126: - | I126: - | J126: -
B127: Generación renovable | C127: 6.2 | D127: 6.4 | E127: 7.2 | F127: 8.7 | G127: 7.7 | H127: - | I127: - | J127: -
B128: Generación no renovable | C128: 93.8 | D128: 93.6 | E128: 92.8 | F128: 91.3 | G128: 92.3 | H128: - | I128: - | J128: -
B130: Estructura de generación anual Ceuta (%) | C130: 2007 | D130: 2008 | E130: 2009 | F130: 2010 | G130: 2011 | H130: 2012 | I130: 2013
B131: Motores diesel | C131: 100 | D131: 100 | E131: 98.5 | F131: 98.7 | G131: - | H131: - | I131: -
B132: Turbina de gas | C132: - | D132: - | E132: 1.5 | F132: 1.3 | G132: - | H132: - | I132: -
B133: Generación renovable | C133: - | D133: - | E133: - | F133: - | G133: - | H133: - | I133: -
B134: Generación no renovable | C134: 100 | D134: 100 | E134: 100 | F134: 100 | G134: - | H134: - | I134: -
B136: Estructura de generación anual Melilla (%) | C136: 2007 | D136: 2008 | E136: 2009 | F136: 2010 | G136: 2011 | H136: 2012 | I136: 2013
B137: Motores diesel | C137: 94.3 | D137: 96.1 | E137: 95.8 | F137: 96 | G137: - | H137: - | I137: -
B138: Turbina de gas | C138: 1.2 | D138: 1.5 | E138: 0.3 | F138: 0.2 | G138: - | H138: - | I138: -
B139: Solar fotovoltaica | C139: - | D139: 0 | E139: 0.1 | F139: 0 | G139: - | H139: - | I139: -
B140: Térmica no renovable/Cogeneración y resto/Cogeneración | C140: 4.5 | D140: 2.4 | E140: 3.8 | F140: 3.8 | G140: - | H140: - | I140: -
B141: Residuos no renovables | C141: - | D141: - | E141: - | F141: - | G141: - | H141: - | I141: -
B142: Residuos renovables | C142: - | D142: - | E142: - | F142: - | G142: - | H142: - | I142: -
B143: Generación renovable | C143: 0 | D143: 0 | E143: 0.1 | F143: 0 | G143: - | H143: - | I143: -
B144: Generación no renovable | C144: 100 | D144: 100 | E144: 99.9 | F144: 100 | G144: - | H144: - | I144: -
B146: Estructura de generación anual nacional (%) | C146: 2007 | D146: 2008 | E146: 2009 | F146: 2010 | G146: 2011 | H146: 2012 | I146: 2013
B147: Hidráulica | C147: 9.4 | D147: 7.8 | E147: 9.4 | F147: 14.5 | G147: - | H147: - | I147: -
B148: Turbinación bombeo | C148: 1.1 | D148: 0.9 | E148: 0.9 | F148: 1.1 | G148: - | H148: - | I148: -
B149: Nuclear | C149: 18.3 | D149: 19.1 | E149: 18 | F149: 20.5 | G149: - | H149: - | I149: -
B150: Carbón | C150: 24.5 | D150: 15.7 | E150: 12.4 | F150: 8.2 | G150: - | H150: - | I150: -
B151: Fuel + Gas | C151: 3.5 | D151: 3.3 | E151: 3.3 | F151: 3.1 | G151: - | H151: - | I151: -
B152: Ciclo combinado | C152: 24.5 | D152: 31.5 | E152: 28.6 | F152: 23.2 | G152: - | H152: - | I152: -
B153: Hidroeólica | C153: 0 | D153: 0 | E153: 0 | F153: 0 | G153: - | H153: - | I153: -
B154: Eólica | C154: 9.6 | D154: 10.9 | E154: 13.7 | F154: 15.1 | G154: - | H154: - | I154: -
B155: Solar fotovoltaica | C155: 0.2 | D155: 0.8 | E155: 2.2 | F155: 2.2 | G155: - | H155: - | I155: -
B156: Solar térmica | C156: 0 | D156: 0 | E156: 0 | F156: 0.2 | G156: - | H156: - | I156: -
B157: Térmica renovable/Otras renovables | C157: 0.9 | D157: 1 | E157: 1.2 | F157: 1.2 | G157: - | H157: - | I157: -
B158: Térmica no renovable/Cogeneración y resto/Cogeneración | C158: 8 | D158: 9 | E158: 10.3 | F158: 10.7 | G158: - | H158: - | I158: -
B159: Residuos no renovables | C159: - | D159: - | E159: - | F159: - | G159: - | H159: - | I159: -
B160: Residuos renovables | C160: - | D160: - | E160: - | F160: - | G160: - | H160: - | I160: -
B161: Generación renovable | C161: 20.1 | D161: 20.5 | E161: 26.5 | F161: 33.2 | G161: - | H161: - | I161: -
B162: Generación no renovable | C162: 79.9 | D162: 79.5 | E162: 73.5 | F162: 66.8 | G162: - | H162: - | I162: -

Sheet Año (hidden)
Y1: 1 | Z1: 1
B2: 1990 | C2: 1990-1997 | D2: 2006-2013 | E2: 2007-2013 | O2: Nacional | P2: Mensual
B3: 1991 | C3: 1998-2005 | D3: 2014-2021 | E3: 2014-2020 | O3: Peninsular | P3: Anual
B4: 1992 | C4: 2006-2013 | O4: Canarias
B5: 1993 | C5: 2014-2021 | O5: Baleares
B6: 1994 | O6: Ceuta
B7: 1995 | O7: Melilla
B8: 1996
B9: 1997
B10: 1998
B11: 1999
B12: 2000
B13: 2001
B14: 2002
B15: 2003
B16: 2004
B17: 2005
B18: 2006
B19: 2007
B20: 2008
B21: 2009
B22: 2010
B23: 2011
B24: 2012
B25: 2013
B26: 2014
B27: 2015
B28: 2016
B29: 2017
B30: 2018
B31: 2019
